Col. Code,Agency,Check No.,Payee,Month,Day,Year,Purpose,Source,Amount
48,J.F. Drake State,205852,KEMBA CHAMBERS,Oct,11,2011,In-State Travel,TITLE III,$406.48
48,J.F. Drake State,205853,DRAKE TECH COL GEN FUND,Oct,11,2011,Institutional Use,STUDENT SUPPORT SERVICES,$300.00
48,J.F. Drake State,205854,HARLAND TECHNOLOGY SERV,Oct,11,2011,Materials and Supplies,TITLE III,$604.00
48,J.F. Drake State,205855,"HYMAN, JAN",Oct,11,2011,In-State Travel,TITLE III,$148.79
48,J.F. Drake State,205856,LARDELL GOODLOE,Oct,11,2011,In-State Travel,TITLE III,$683.51
48,J.F. Drake State,205858,DR. JOHN REUTTER,Oct,11,2011,In-State Travel,TITLE III,$341.88
48,J.F. Drake State,205858,DR. JOHN REUTTER,Oct,11,2011,Employee Taxable Per Diem,TITLE III,$22.50
48,J.F. Drake State,205859,RICHARD COLLIE,Oct,11,2011,In-State Travel,STUDENT SUPPORT SERVICES,$75.00
48,J.F. Drake State,205860,ROGER CHEN,Oct,11,2011,In-State Travel,TITLE III,$40.20
48,J.F. Drake State,103914,WEATHERTECH DIST,Oct,6,2011,Materials and Supplies,UNRESTRICTED,$315.10
48,J.F. Drake State,103915,AACC,Oct,6,2011,Memberships,UNRESTRICTED,"$2,570.00"
48,J.F. Drake State,103916,BIRNBAUM INTERPRETING,Oct,6,2011,Other Contractual Services,UNRESTRICTED,"$1,755.00"
48,J.F. Drake State,103920,"DYNAMIC SECURITY, INC.",Oct,6,2011,Other Contractual Services,UNRESTRICTED,"$5,940.48"
48,J.F. Drake State,103921,"DYNAMIC SECURITY, INC.",Oct,6,2011,Other Contractual Services,UNRESTRICTED,"$5,940.48"
48,J.F. Drake State,103922,"DYNAMIC SECURITY, INC.",Oct,6,2011,Other Contractual Services,UNRESTRICTED,"$5,940.48"
48,J.F. Drake State,103923,ENTERPRISE RENTAL CAR,Oct,6,2011,Institutional Use,UNRESTRICTED,"$1,209.60"
48,J.F. Drake State,103924,MENS WAREHOUSE,Oct,6,2011,Materials and Supplies,UNRESTRICTED,$149.79
48,J.F. Drake State,103925,NAFEO,Oct,6,2011,Memberships,UNRESTRICTED,"$2,000.00"
48,J.F. Drake State,103926,"NEAL, KATHRYN B.",Oct,6,2011,Institutional Use,UNRESTRICTED,$90.94
48,J.F. Drake State,103927,OAK HALL CAP & GOWN CO,Oct,6,2011,Institutional Use,UNRESTRICTED,"$6,212.90"
48,J.F. Drake State,103929,PEREGRINE CORP,Oct,6,2011,Materials and Supplies,UNRESTRICTED,$402.08
48,J.F. Drake State,103930,ROCKET CITY TRAILERS,Oct,6,2011,Materials and Supplies,SESP,"$4,999.00"
48,J.F. Drake State,103931,SOUTHERN SLOAR SYSTEMS,Oct,6,2011,Furniture and Equipment,SESP,"$14,000.00"
48,J.F. Drake State,103932,TARCOG,Oct,6,2011,Other Contractual Services,UNRESTRICTED,$700.00
48,J.F. Drake State,205845,"CAMCAD TECHNOLOGIES, INC",Oct,4,2011,Institutional Use,PERKINS FUNDS,"$1,200.00"
48,J.F. Drake State,205846,KEN HALL,Oct,4,2011,Other Contractual Services,TITLE III,$200.00
48,J.F. Drake State,205847,"OFFICE DEPOT, INC.",Oct,4,2011,Materials and Supplies,TITLE III,$367.96
48,J.F. Drake State,205848,DR. JOHN REUTTER,Oct,4,2011,Out-of-State Travel,NSF CARRYOVER,$60.90
48,J.F. Drake State,205849,SHERMAN D. LEETH,Oct,4,2011,Other Contractual Services,TITLE III,$298.23
48,J.F. Drake State,205850,VICTOR JOLLEY,Oct,4,2011,Other Contractual Services,TITLE III,$200.00
48,J.F. Drake State,103909,DEPT OF INDUSTRIAL RELATI,Oct,3,2011,Investment Transaction Expense,UNRESTRICTED,"$2,869.91"
48,J.F. Drake State,103910,PAPERCLIP COMMUNICATIONS,Oct,3,2011,In-State Travel,ADULT ED,$259.00
48,J.F. Drake State,103863,AL COMMUN COLLEGE SYS,Sep,30,2011,Advertising and Promotions,UNRESTRICTED,$400.00
48,J.F. Drake State,103864,CDW-G,Sep,30,2011,Materials and Supplies,UNRESTRICTED,$563.11
48,J.F. Drake State,103865,CENGAGE LEARNING,Sep,30,2011,Purchases for Resale,UNRESTRICTED,"$2,812.62"
48,J.F. Drake State,103866,CHEVRON CARD SERVICES,Sep,30,2011,Gasoline and Oil - Motor Vehic,UNRESTRICTED,$896.89
48,J.F. Drake State,103868,"DYNAMIC SECURITY, INC.",Sep,30,2011,Other Contractual Services,UNRESTRICTED,"$11,880.96"
48,J.F. Drake State,103869,FEDEX,Sep,30,2011,Postage,UNRESTRICTED,$70.88
48,J.F. Drake State,103870,GLIDDEN PROFESSIONAL PAI,Sep,30,2011,Materials and Supplies,PLANT FUNDS,$472.43
48,J.F. Drake State,103871,J. A. MAJORS COMPANY,Sep,30,2011,Purchases for Resale,UNRESTRICTED,"$2,815.05"
48,J.F. Drake State,103872,LABOR READY,Sep,30,2011,Other Contractual Services,PLANT FUNDS,"$1,767.15"
48,J.F. Drake State,103873,MID CITY SUPPLY CO,Sep,30,2011,Materials and Supplies,ARMY GRANT,"$3,592.16"
48,J.F. Drake State,103874,MINUTEMAN PRESS,Sep,30,2011,Advertising and Promotions,UNRESTRICTED,$223.50
48,J.F. Drake State,103875,PEARSON,Sep,30,2011,Purchases for Resale,UNRESTRICTED,"$5,538.27"
48,J.F. Drake State,103876,PITNEY BOWES,Sep,30,2011,Other Contractual Services,UNRESTRICTED,$657.00
48,J.F. Drake State,103877,QUICK LANE,Sep,30,2011,Maintenance and Repairs,UNRESTRICTED,$42.42
48,J.F. Drake State,103878,SAM'S CLUB/WALMART,Sep,30,2011,Materials and Supplies,UNRESTRICTED,$581.28
48,J.F. Drake State,103879,ST JOHN AME CHURCH,Sep,30,2011,Advertising and Promotions,UNRESTRICTED,$75.00
48,J.F. Drake State,103880,SUCCESS MARKETING,Sep,30,2011,Advertising and Promotions,UNRESTRICTED,$80.00
48,J.F. Drake State,103881,"THE SOLUTIONS TEAM, INC",Sep,30,2011,Other Contractual Services,UNRESTRICTED,$200.00
48,J.F. Drake State,103882,"THOMAS ELECTRIC, INC",Sep,30,2011,Materials and Supplies,ARMY GRANT,$145.00
48,J.F. Drake State,103883,UPS,Sep,30,2011,Freight,UNRESTRICTED,$45.28
48,J.F. Drake State,103884,WALKER 360,Sep,30,2011,Materials and Supplies,ADULT ED,$280.00
48,J.F. Drake State,103885,4IMPRINT,Sep,30,2011,Purchases for Resale,UNRESTRICTED,"$5,631.65"
48,J.F. Drake State,205822,AMERICAN PSYCHOLOGICAL AS,Sep,30,2011,Materials and Supplies,TITLE III,$185.04
48,J.F. Drake State,205823,BERNEY OFFICE SOLUTIONS,Sep,30,2011,Materials and Supplies,TITLE III,$138.01
48,J.F. Drake State,205824,BERNEY OFFICE SOLUTIONS,Sep,30,2011,Furniture and Equipment,PERKINS FUNDS,"$4,915.35"
48,J.F. Drake State,205825,EARTHLINK/DELTACOM,Sep,30,2011,Furniture and Equipment,TITLE III,"$5,350.92"
48,J.F. Drake State,205826,"GIGAPARTS, INC",Sep,30,2011,Materials and Supplies,TECH PREP FUNDS,$959.70
48,J.F. Drake State,205826,"GIGAPARTS, INC",Sep,30,2011,Institutional Use,PERKINS FUNDS,"$1,479.00"
48,J.F. Drake State,205827,L. MILLER & SON,Sep,30,2011,Materials and Supplies,TECH PREP FUNDS,"$1,067.99"
48,J.F. Drake State,205828,MIDWEST LIBRARY SERVICE,Sep,30,2011,Books,TITLE III,"$7,055.76"
48,J.F. Drake State,205829,NEWMAN IND,Sep,30,2011,Materials and Supplies,TECH PREP FUNDS,$159.89
48,J.F. Drake State,205830,"OFFICE DEPOT, INC.",Sep,30,2011,Materials and Supplies,TITLE III,"$3,010.68"
48,J.F. Drake State,205831,"OFFICE DEPOT, INC.",Sep,30,2011,Materials and Supplies,PERKINS FUNDS,$586.36
48,J.F. Drake State,205832,"OFFICE DEPOT, INC.",Sep,30,2011,Materials and Supplies,TITLE III,$349.94
48,J.F. Drake State,205833,ROCKHURST UNIVER CONT ED,Sep,30,2011,In-State Travel,TITLE III,$199.00
48,J.F. Drake State,205834,SCANTRON CORPORATION,Sep,30,2011,Materials and Supplies,ALLIED HEALTH,$96.00
48,J.F. Drake State,205835,SCHAEFFER'S,Sep,30,2011,Materials and Supplies,TECH PREP FUNDS,$622.11
48,J.F. Drake State,205836,SEXTON WELDING SUPPLY,Sep,30,2011,Materials and Supplies,PERKINS FUNDS,"$1,087.50"
48,J.F. Drake State,205837,SEXTON WELDING SUPPLY,Sep,30,2011,Materials and Supplies,PERKINS FUNDS,"$2,706.00"
48,J.F. Drake State,205838,TRAVERS TOOL CO,Sep,30,2011,Materials and Supplies,TECH PREP FUNDS,$871.29
48,J.F. Drake State,8201181,AT&T,Sep,30,2011,Communications,UNRESTRICTED,"$5,781.46"
48,J.F. Drake State,8201183,COMCAST,Sep,30,2011,Communications,UNRESTRICTED,$94.76
48,J.F. Drake State,8201184,COOK'S PEST CONTROL,Sep,30,2011,Other Contractual Services,UNRESTRICTED,$386.00
48,J.F. Drake State,8201185,HUNTSVILLE UTILITIES,Sep,30,2011,Water and Sewer,UNRESTRICTED,"$1,717.86"
48,J.F. Drake State,8201185,HUNTSVILLE UTILITIES,Sep,30,2011,Electricity,UNRESTRICTED,"$23,971.85"
48,J.F. Drake State,8201185,HUNTSVILLE UTILITIES,Sep,30,2011,Electricity,ARMY GRANT,"$4,004.11"
48,J.F. Drake State,8201185,HUNTSVILLE UTILITIES,Sep,30,2011,Water and Sewer,ARMY GRANT,$7.00
48,J.F. Drake State,8201185,HUNTSVILLE UTILITIES,Sep,30,2011,Gas and Heating Fuel,UNRESTRICTED,$649.17
48,J.F. Drake State,8201186,WOW! BUSINESS,Sep,30,2011,Communications,UNRESTRICTED,"$1,097.57"
48,J.F. Drake State,8201187,PITNEY BOWES,Sep,30,2011,Postage,UNRESTRICTED,"$1,200.00"
48,J.F. Drake State,9201181,AT&T,Sep,30,2011,Communications,UNRESTRICTED,"$5,038.27"
48,J.F. Drake State,9201183,COOK'S PEST CONTROL,Sep,30,2011,Other Contractual Services,UNRESTRICTED,$386.00
48,J.F. Drake State,9201184,HUNTSVILLE UTILITIES,Sep,30,2011,Water and Sewer,UNRESTRICTED,$541.67
48,J.F. Drake State,9201184,HUNTSVILLE UTILITIES,Sep,30,2011,Electricity,UNRESTRICTED,"$23,527.31"
48,J.F. Drake State,9201184,HUNTSVILLE UTILITIES,Sep,30,2011,Electricity,ARMY GRANT,"$4,243.80"
48,J.F. Drake State,9201184,HUNTSVILLE UTILITIES,Sep,30,2011,Gas and Heating Fuel,ARMY GRANT,$7.00
48,J.F. Drake State,9201184,HUNTSVILLE UTILITIES,Sep,30,2011,Gas and Heating Fuel,UNRESTRICTED,$544.15
48,J.F. Drake State,9201185,WOW! BUSINESS,Sep,30,2011,Communications,UNRESTRICTED,"$1,097.57"
48,J.F. Drake State,9201186,PITNEY BOWES,Sep,30,2011,Postage,UNRESTRICTED,"$1,200.00"
48,J.F. Drake State,302285,ROBBIE LEE AKINS,Sep,30,2011,Support Personnel Salaries - S,UNRESTRICTED,"$2,113.17"
48,J.F. Drake State,302286,FRANCO S BLACKBURN,Sep,30,2011,Instructional Salaries - Tempo,UNRESTRICTED,$337.50
48,J.F. Drake State,302287,DEAVIANCE FOWLKS BLEVINS,Sep,30,2011,Hourly Wages,NAT'L SCIENCE FOUNDATION,$251.25
48,J.F. Drake State,302288,STEPHANIE JONES BOUNDS,Sep,30,2011,Instructional Salaries - Tempo,UNRESTRICTED,$562.50
48,J.F. Drake State,302289,APRIL CLEMENT,Sep,30,2011,Other Professional Salaries -,TITLE III,"$4,000.00"
48,J.F. Drake State,302290,RICHARD COLLIE,Sep,30,2011,Other Professional Salaries -,STUDENT SUPPORT SERVICES,"$3,750.00"
48,J.F. Drake State,302292,CHRISTINE H DAVIS,Sep,30,2011,Instructional Salaries - Regul,UNRESTRICTED,"$5,306.33"
48,J.F. Drake State,302293,ZEBULON REED FERGUSON,Sep,30,2011,Instructional Salaries - Tempo,UNRESTRICTED,$562.50
48,J.F. Drake State,302294,CHARMAINE A HOVIS,Sep,30,2011,Instructional Salaries - Tempo,UNRESTRICTED,$660.00
48,J.F. Drake State,302295,JUSTIN M KELLY,Sep,30,2011,Instructional Salaries - Tempo,UNRESTRICTED,"$1,575.00"
48,J.F. Drake State,302296,PAMELA LONG,Sep,30,2011,Instructional Salaries - Tempo,UNRESTRICTED,$225.00
48,J.F. Drake State,302296,PAMELA LONG,Sep,30,2011,Hourly Wages,NAT'L SCIENCE FOUNDATION,$237.50
48,J.F. Drake State,302297,SANDRA O MITCHELL,Sep,30,2011,Hourly Wages,NAT'L SCIENCE FOUNDATION,$121.25
48,J.F. Drake State,302298,HAZEL L RICHARDSON,Sep,30,2011,Instructional Salaries - Tempo,UNRESTRICTED,$225.00
48,J.F. Drake State,302299,MICHELLE L WATKINS,Sep,30,2011,Instructional Salaries - Tempo,NAT'L SCIENCE FOUNDATION,"$1,020.00"
48,J.F. Drake State,90002056,LYSA AUGUSTIN,Sep,30,2011,Instructional Salaries - Tempo,ADULT ED,$704.00
48,J.F. Drake State,90002057,CAROLYN AVRITTE,Sep,30,2011,Instructional Salaries - Tempo,UNRESTRICTED,$480.00
48,J.F. Drake State,90002058,NELSON E BARNES,Sep,30,2011,Instructional Salaries - Tempo,UNRESTRICTED,"$1,012.50"
48,J.F. Drake State,90002059,VALERIE ARLENE BARNES,Sep,30,2011,Support Personnel Salaries - S,STUDENT SUPPORT SERVICES,"$2,857.17"
48,J.F. Drake State,90002060,BEN BATTLE,Sep,30,2011,Instructional Salaries - Regul,UNRESTRICTED,"$5,306.33"
48,J.F. Drake State,90002062,HAROLD E BATTS,Sep,30,2011,Other Professional Salaries -,UNRESTRICTED,"$8,649.00"
48,J.F. Drake State,90002064,CHARLOTTE KATHRYN BAUCOM,Sep,30,2011,Instructional Salaries - Tempo,UNRESTRICTED,"$1,012.50"
48,J.F. Drake State,90002065,ANGELA NICOLE BELL,Sep,30,2011,Instructional Salaries - Regul,UNRESTRICTED,"$5,520.33"
48,J.F. Drake State,90002068,PATRICE BIVINS,Sep,30,2011,Support Personnel Salaries - S,STUDENT SUPPORT SERVICES,"$1,889.83"
48,J.F. Drake State,90002069,CHERYL BRAWLEY-KELLY,Sep,30,2011,Instructional Salaries - Tempo,UNRESTRICTED,"$1,050.00"
48,J.F. Drake State,90002070,LASHONDA D BROWN,Sep,30,2011,Instructional Salaries - Tempo,UNRESTRICTED,$337.50
48,J.F. Drake State,90002071,BRUCE A BULLUCK,Sep,30,2011,Other Professional Salaries -,UNRESTRICTED,"$5,833.33"
48,J.F. Drake State,90002072,KHALILAH BURTON,Sep,30,2011,Instructional Salaries - Tempo,UNRESTRICTED,"$1,125.00"
48,J.F. Drake State,90002073,DERICK R CARPENAY,Sep,30,2011,Instructional Salaries - Tempo,UNRESTRICTED,$675.00
48,J.F. Drake State,90002074,KEMBA CHAMBERS,Sep,30,2011,Other Professional Salaries -,UNRESTRICTED,"$7,360.42"
48,J.F. Drake State,90002075,KATIE E CHANCE,Sep,30,2011,Support Personnel Salaries - S,UNRESTRICTED,"$2,485.42"
48,J.F. Drake State,90002076,ROGER CHEN,Sep,30,2011,Instructional Salaries - Tempo,UNRESTRICTED,$675.00
48,J.F. Drake State,90002076,ROGER CHEN,Sep,30,2011,Hourly Wages,NAT'L SCIENCE FOUNDATION,"$1,065.00"
48,J.F. Drake State,90002077,ADAM CLARK,Sep,30,2011,Instructional Salaries - Regul,UNRESTRICTED,"$5,082.67"
48,J.F. Drake State,90002079,CARLA R CLIFT,Sep,30,2011,Other Professional Salaries -,UNRESTRICTED,"$5,609.75"
48,J.F. Drake State,90002080,MONIQUE C COSBY,Sep,30,2011,Support Personnel Salaries - S,UNRESTRICTED,"$3,303.17"
48,J.F. Drake State,90002081,REGINA LYNNE CRAWFORD,Sep,30,2011,Support Personnel Salaries - S,UNRESTRICTED,"$2,973.21"
48,J.F. Drake State,90002082,DEIONE L CRUTCHER,Sep,30,2011,Hourly Wages,ADULT ED,$994.50
48,J.F. Drake State,90002083,MATTIE D DAVIS,Sep,30,2011,Instructional Salaries - Regul,UNRESTRICTED,"$6,641.89"
48,J.F. Drake State,90002084,BRANDIE A DEL VALLE,Sep,30,2011,Instructional Salaries - Tempo,UNRESTRICTED,$682.50
48,J.F. Drake State,90002085,MARLO DRAKE,Sep,30,2011,Support Personnel Salaries - S,UNRESTRICTED,"$2,421.56"
48,J.F. Drake State,90002085,MARLO DRAKE,Sep,30,2011,Support Personnel Salaries - S,TITLE III,$807.19
48,J.F. Drake State,90002086,GABRIELE DUNSEITH,Sep,30,2011,Instructional Salaries - Tempo,UNRESTRICTED,$600.00
48,J.F. Drake State,90002087,VERNESSA M EDWARDS,Sep,30,2011,Instructional Salaries - Tempo,UNRESTRICTED,"$1,125.00"
48,J.F. Drake State,90002088,CHRISTIANA A OPARA EGBUJO,Sep,30,2011,Instructional Salaries - Tempo,UNRESTRICTED,"$1,560.00"
48,J.F. Drake State,90002089,RONALD E EGSON,Sep,30,2011,Instructional Salaries - Tempo,UNRESTRICTED,"$1,575.00"
48,J.F. Drake State,90002090,ROSELINE C ELIKE,Sep,30,2011,Instructional Salaries - Tempo,UNRESTRICTED,$480.00
48,J.F. Drake State,90002091,AVA D FARR,Sep,30,2011,Instructional Salaries - Regul,,"$4,861.56"
48,J.F. Drake State,90002092,GAIL E FISCH,Sep,30,2011,Instructional Salaries - Regul,ADULT ED,"$2,687.50"
48,J.F. Drake State,90002093,EDWIN T FORBES,Sep,30,2011,Instructional Salaries - Regul,UNRESTRICTED,"$4,062.58"
48,J.F. Drake State,90002093,EDWIN T FORBES,Sep,30,2011,Instructional Salaries - Tempo,UNRESTRICTED,$337.50
48,J.F. Drake State,90002094,HORACE L FRANKLIN JR,Sep,30,2011,Instructional Salaries - Regul,UNRESTRICTED,"$4,972.00"
48,J.F. Drake State,90002095,MATTIE B FREEMAN,Sep,30,2011,Instructional Salaries - Tempo,UNRESTRICTED,"$1,230.00"
48,J.F. Drake State,90002096,WENDY F GANNON,Sep,30,2011,Other Professional Salaries -,,"$5,268.56"
48,J.F. Drake State,90002097,BONNIE GARRETT,Sep,30,2011,Instructional Salaries - Tempo,UNRESTRICTED,"$1,125.00"
48,J.F. Drake State,90002098,FESSEHA GEBREMIKAEL,Sep,30,2011,Instructional Salaries - Tempo,UNRESTRICTED,$337.50
48,J.F. Drake State,90002099,SYMMETRIS K GOHANNA,Sep,30,2011,Instructional Salaries - Regul,UNRESTRICTED,"$4,367.92"
48,J.F. Drake State,90002100,LARDELL GOODLOE JR,Sep,30,2011,Instructional Salaries - Regul,UNRESTRICTED,"$5,009.89"
48,J.F. Drake State,90002101,TIMOTHY RYAN GREEN,Sep,30,2011,Instructional Salaries - Regul,UNRESTRICTED,"$3,972.11"
48,J.F. Drake State,90002101,TIMOTHY RYAN GREEN,Sep,30,2011,Instructional Salaries - Tempo,UNRESTRICTED,$450.00
48,J.F. Drake State,90002102,VICKIE E GREEN,Sep,30,2011,Instructional Salaries - Regul,,"$4,972.00"
48,J.F. Drake State,90002103,ROBERT N GRISSIM,Sep,30,2011,Instructional Salaries - Regul,UNRESTRICTED,"$3,646.17"
48,J.F. Drake State,90002104,CHARLES GROSS,Sep,30,2011,Instructional Salaries - Tempo,UNRESTRICTED,$675.00
48,J.F. Drake State,90002105,SAMUEL V GUISHARD,Sep,30,2011,Instructional Salaries - Tempo,UNRESTRICTED,"$1,687.50"
48,J.F. Drake State,90002106,MANELZA CRAWFORD HAMBRICK,Sep,30,2011,Support Personnel Salaries - S,UNRESTRICTED,"$2,485.42"
48,J.F. Drake State,90002107,AUNDREA D HANSON,Sep,30,2011,Instructional Salaries - Tempo,UNRESTRICTED,$337.50
48,J.F. Drake State,90002108,KATRINA J HARRIS,Sep,30,2011,Support Personnel Salaries - S,UNRESTRICTED,$955.90
48,J.F. Drake State,90002108,KATRINA J HARRIS,Sep,30,2011,Support Personnel Salaries - S,TITLE III,"$2,867.69"
48,J.F. Drake State,90002109,CAROLYN HENDERSON,Sep,30,2011,Instructional Salaries - Tempo,UNRESTRICTED,$337.50
48,J.F. Drake State,90002109,CAROLYN HENDERSON,Sep,30,2011,Instructional Salaries - Regul,UNRESTRICTED,"$4,062.58"
48,J.F. Drake State,90002110,DEXTER R HENRY,Sep,30,2011,Instructional Salaries - Tempo,UNRESTRICTED,$562.50
48,J.F. Drake State,90002110,DEXTER R HENRY,Sep,30,2011,Instructional Salaries - Regul,UNRESTRICTED,"$6,416.89"
48,J.F. Drake State,90002111,KARL W HENRY SR,Sep,30,2011,Instructional Salaries - Regul,UNRESTRICTED,"$7,261.67"
48,J.F. Drake State,90002112,ISSAC D HINES,Sep,30,2011,Instructional Salaries - Tempo,UNRESTRICTED,$337.50
48,J.F. Drake State,90002113,DORIS HINTON,Sep,30,2011,Instructional Salaries - Regul,UNRESTRICTED,"$5,416.78"
48,J.F. Drake State,90002114,KHALID HOLMES,Sep,30,2011,Instructional Salaries - Regul,UNRESTRICTED,"$4,230.78"
48,J.F. Drake State,90002114,KHALID HOLMES,Sep,30,2011,Instructional Salaries - Tempo,UNRESTRICTED,$450.00
48,J.F. Drake State,90002115,TERESA HOOPER,Sep,30,2011,Instructional Salaries - Tempo,UNRESTRICTED,"$1,050.00"
48,J.F. Drake State,90002116,PATRICIA HUGHES,Sep,30,2011,Administrative Salaries- Sched,UNRESTRICTED,"$7,893.08"
48,J.F. Drake State,90002118,JAN J HYMAN,Sep,30,2011,Support Personnel Salaries - S,,"$3,154.50"
48,J.F. Drake State,90002120,NEOKA JANE IVEY,Sep,30,2011,Support Personnel Salaries - S,UNRESTRICTED,"$1,889.83"
48,J.F. Drake State,90002121,SARAH J JAMAR,Sep,30,2011,Instructional Salaries - Tempo,UNRESTRICTED,$675.00
48,J.F. Drake State,90002121,SARAH J JAMAR,Sep,30,2011,Instructional Salaries - Tempo,STUDENT SUPPORT SERVICES,$675.00
48,J.F. Drake State,90002122,DONYALE D JONES,Sep,30,2011,Support Personnel Salaries - S,UNRESTRICTED,"$1,651.71"
48,J.F. Drake State,90002122,DONYALE D JONES,Sep,30,2011,Support Personnel Salaries - S,TITLE III,"$1,651.71"
48,J.F. Drake State,90002123,PINEY L JORDAN,Sep,30,2011,Instructional Salaries - Tempo,UNRESTRICTED,"$1,950.00"
48,J.F. Drake State,90002124,CHERYL P KEMP,Sep,30,2011,Instructional Salaries - Tempo,UNRESTRICTED,"$2,400.00"
48,J.F. Drake State,90002125,PRAVEENA KOMMIDI,Sep,30,2011,Instructional Salaries - Tempo,UNRESTRICTED,$337.50
48,J.F. Drake State,90002125,PRAVEENA KOMMIDI,Sep,30,2011,Instructional Salaries - Regul,UNRESTRICTED,"$6,493.56"
48,J.F. Drake State,90002126,SUSAN KREULEN,Sep,30,2011,Instructional Salaries - Tempo,ADULT ED,"$1,270.50"
48,J.F. Drake State,90002127,NICHOLAS PAUL KSEPKA,Sep,30,2011,Hourly Wages,UNRESTRICTED,"$1,605.00"
48,J.F. Drake State,90002128,HONG THUYDUC LAM,Sep,30,2011,Instructional Salaries - Regul,UNRESTRICTED,"$6,231.00"
48,J.F. Drake State,90002129,JOYCE P LAMAR,Sep,30,2011,Support Personnel Salaries - S,UNRESTRICTED,"$4,419.17"
48,J.F. Drake State,90002130,TELLUS LANGFORD,Sep,30,2011,Instructional Salaries - Tempo,UNRESTRICTED,$337.50
48,J.F. Drake State,90002131,STEPHANY L STEINFAITH,Sep,30,2011,Instructional Salaries - Tempo,UNRESTRICTED,$337.50
48,J.F. Drake State,90002132,MICHEAL V MAXTON,Sep,30,2011,Instructional Salaries - Tempo,UNRESTRICTED,$675.00
48,J.F. Drake State,90002133,HELEN T MCALPINE,Sep,30,2011,Administrative Salaries- Sched,UNRESTRICTED,"$14,266.45"
48,J.F. Drake State,90002133,HELEN T MCALPINE,Sep,30,2011,President's Expense Allowance,UNRESTRICTED,$200.00
48,J.F. Drake State,90002133,HELEN T MCALPINE,Sep,30,2011,Housing Allowance,UNRESTRICTED,"$1,000.00"
48,J.F. Drake State,90002134,DEMETIUS L MCCARTY,Sep,30,2011,Support Personnel Salaries - S,UNRESTRICTED,"$2,113.17"
48,J.F. Drake State,90002135,JERRY L MCCAULLEY,Sep,30,2011,Instructional Salaries - Tempo,UNRESTRICTED,"$1,012.50"
48,J.F. Drake State,90002136,PATRICK T MCDONALD,Sep,30,2011,Instructional Salaries - Tempo,NSF CARRYOVER,"$1,065.00"
48,J.F. Drake State,90002138,SCOTTY MCLAUGHLIN,Sep,30,2011,Instructional Salaries - Tempo,UNRESTRICTED,$450.00
48,J.F. Drake State,90002138,SCOTTY MCLAUGHLIN,Sep,30,2011,Instructional Salaries - Regul,UNRESTRICTED,"$7,016.44"
48,J.F. Drake State,90002139,TABITHA D MCWILLIAMS,Sep,30,2011,Support Personnel Salaries - S,UNRESTRICTED,"$2,038.67"
48,J.F. Drake State,90002140,DEBORAH A MILLING,Sep,30,2011,Instructional Salaries - Regul,UNRESTRICTED,"$4,962.33"
48,J.F. Drake State,90002141,SAMMY J MILTON,Sep,30,2011,Support Personnel Salaries - S,UNRESTRICTED,"$3,452.83"
48,J.F. Drake State,90002142,PREMA A MONTEIRO,Sep,30,2011,Instructional Salaries - Regul,UNRESTRICTED,"$4,972.00"
48,J.F. Drake State,90002143,ACOLEA J MOORE,Sep,30,2011,Instructional Salaries - Tempo,UNRESTRICTED,$675.00
48,J.F. Drake State,90002144,ALFRED CROSHAN MOORE,Sep,30,2011,Instructional Salaries - Tempo,UNRESTRICTED,"$1,125.00"
48,J.F. Drake State,90002145,MARY JO MORAN,Sep,30,2011,Instructional Salaries - Tempo,UNRESTRICTED,"$1,245.00"
48,J.F. Drake State,90002146,BRUCE D MORRISON,Sep,30,2011,Support Personnel Salaries - S,UNRESTRICTED,"$4,196.17"
48,J.F. Drake State,90002147,KAREN NEIR,Sep,30,2011,Instructional Salaries - Tempo,UNRESTRICTED,"$2,025.00"
48,J.F. Drake State,90002148,JENNIFER O'LINGER,Sep,30,2011,Other Professional Salaries -,UNRESTRICTED,"$4,333.33"
48,J.F. Drake State,90002149,DONALD ORR,Sep,30,2011,Support Personnel Salaries - S,UNRESTRICTED,"$3,750.17"
48,J.F. Drake State,90002150,COURTNEY P PATTERSON,Sep,30,2011,Support Personnel Salaries - S,UNRESTRICTED,"$3,208.33"
48,J.F. Drake State,90002150,COURTNEY P PATTERSON,Sep,30,2011,Instructional Salaries - Tempo,ADULT ED,$135.00
48,J.F. Drake State,90002151,JENNIFER E PATTERSON,Sep,30,2011,Instructional Salaries - Regul,UNRESTRICTED,"$5,092.58"
48,J.F. Drake State,90002152,ALBERT B PETERSON II,Sep,30,2011,Instructional Salaries - Tempo,ADULT ED,$273.00
48,J.F. Drake State,90002153,JERROLD DION PHIPPS,Sep,30,2011,Instructional Salaries - Tempo,UNRESTRICTED,"$1,350.00"
48,J.F. Drake State,90002154,INODU TONY PIRI,Sep,30,2011,Instructional Salaries - Tempo,UNRESTRICTED,$337.50
48,J.F. Drake State,90002155,JAMES W PLEASURE,Sep,30,2011,Instructional Salaries - Tempo,UNRESTRICTED,"$1,575.00"
48,J.F. Drake State,90002156,GWENDOLYN D POPE,Sep,30,2011,Instructional Salaries - Regul,UNRESTRICTED,"$5,651.75"
48,J.F. Drake State,90002157,BARBARA J PRIMEAUX,Sep,30,2011,Support Personnel Salaries - S,UNRESTRICTED,"$2,336.00"
48,J.F. Drake State,90002158,FREDRICK O PRUITT,Sep,30,2011,Instructional Salaries - Regul,UNRESTRICTED,"$3,840.25"
48,J.F. Drake State,90002159,MICHAEL RADDEN,Sep,30,2011,Instructional Salaries - Tempo,UNRESTRICTED,"$1,012.50"
48,J.F. Drake State,90002160,LORAINE RAGIN,Sep,30,2011,Instructional Salaries - Regul,UNRESTRICTED,"$2,979.08"
48,J.F. Drake State,90002161,ALICE G RAYMOND,Sep,30,2011,Instructional Salaries - Regul,UNRESTRICTED,"$8,079.67"
48,J.F. Drake State,90002162,JOYCE L RENTZ,Sep,30,2011,Instructional Salaries - Regul,UNRESTRICTED,"$6,706.33"
48,J.F. Drake State,90002162,JOYCE L RENTZ,Sep,30,2011,Instructional Salaries - Tempo,UNRESTRICTED,$337.50
48,J.F. Drake State,90002163,JOHN REUTTER III,Sep,30,2011,Other Professional Salaries -,TITLE III,"$7,053.25"
48,J.F. Drake State,90002164,LYSCELLE M REYES,Sep,30,2011,Instructional Salaries - Tempo,UNRESTRICTED,"$2,025.00"
48,J.F. Drake State,90002165,MARTHA J ROBERTS,Sep,30,2011,Support Personnel Salaries - S,UNRESTRICTED,"$4,940.33"
48,J.F. Drake State,90002166,BARRY E SHELTON,Sep,30,2011,Instructional Salaries - Tempo,UNRESTRICTED,"$1,290.00"
48,J.F. Drake State,90002167,JACQUELINE M SHIVERS,Sep,30,2011,Instructional Salaries - Tempo,ADULT ED,"$2,012.50"
48,J.F. Drake State,90002168,LESLEY SHOTTS,Sep,30,2011,Instructional Salaries - Regul,UNRESTRICTED,"$4,481.83"
48,J.F. Drake State,90002169,AMANDA R SIMPSON,Sep,30,2011,Support Personnel Salaries - S,UNRESTRICTED,"$2,016.00"
48,J.F. Drake State,90002170,PATRICIA GORDON SIMS,Sep,30,2011,Administrative Salaries- Sched,UNRESTRICTED,"$9,245.09"
48,J.F. Drake State,90002171,KAREN DENISE SMITH,Sep,30,2011,Instructional Salaries - Tempo,UNRESTRICTED,$225.00
48,J.F. Drake State,90002172,RYAN E SMITH,Sep,30,2011,Other Professional Salaries -,TITLE III,"$5,577.00"
48,J.F. Drake State,90002173,WANDA L SMITH,Sep,30,2011,Instructional Salaries - Tempo,UNRESTRICTED,$630.00
48,J.F. Drake State,90002174,DELORIS A SMOTHERS,Sep,30,2011,Instructional Salaries - Regul,UNRESTRICTED,"$7,261.67"
48,J.F. Drake State,90002175,JULIE P SPURGEON,Sep,30,2011,Support Personnel Salaries - S,UNRESTRICTED,"$2,038.67"
48,J.F. Drake State,90002176,VERLINDSEY B STEWART,Sep,30,2011,Instructional Salaries - Regul,UNRESTRICTED,"$6,616.44"
48,J.F. Drake State,90002177,MONICA SUDEALL-HAWKINS,Sep,30,2011,Instructional Salaries - Tempo,UNRESTRICTED,$337.50
48,J.F. Drake State,90002177,MONICA SUDEALL-HAWKINS,Sep,30,2011,Other Professional Salaries -,UNRESTRICTED,"$4,993.33"
48,J.F. Drake State,90002178,CHARLES A SULLINS JR,Sep,30,2011,Instructional Salaries - Tempo,UNRESTRICTED,$337.50
48,J.F. Drake State,90002179,SHANNON SUMMERS,Sep,30,2011,Instructional Salaries - Tempo,ADULT ED,$660.00
48,J.F. Drake State,90002180,DOCQUINN N TAYLOR,Sep,30,2011,Instructional Salaries - Tempo,UNRESTRICTED,$112.50
48,J.F. Drake State,90002180,DOCQUINN N TAYLOR,Sep,30,2011,Instructional Salaries - Tempo,STUDENT SUPPORT SERVICES,$30.00
48,J.F. Drake State,90002181,MALCOLM G TAYLOR,Sep,30,2011,Instructional Salaries - Tempo,UNRESTRICTED,"$1,012.50"
48,J.F. Drake State,90002182,YOLANDA R TONEY,Sep,30,2011,Instructional Salaries - Tempo,UNRESTRICTED,"$1,012.50"
48,J.F. Drake State,90002183,JOY D TORNQUIST,Sep,30,2011,Instructional Salaries - Tempo,UNRESTRICTED,"$2,520.00"
48,J.F. Drake State,90002184,KRISTIN TREADWAY,Sep,30,2011,Support Personnel Salaries - S,,"$2,856.75"
48,J.F. Drake State,90002185,ELIZABETH A TUGGLE,Sep,30,2011,Instructional Salaries - Tempo,ADULT ED,"$1,404.00"
48,J.F. Drake State,90002186,MAX PHILLIP TUNSTILL,Sep,30,2011,Instructional Salaries - Tempo,UNRESTRICTED,$450.00
48,J.F. Drake State,90002187,GILBERT T TURLEY,Sep,30,2011,Other Professional Salaries -,UNRESTRICTED,"$6,886.58"
48,J.F. Drake State,90002188,KAROL C WADDELL,Sep,30,2011,Hourly Wages,READY TO WORK,"$2,190.00"
48,J.F. Drake State,90002189,LETITIA E WALKER,Sep,30,2011,Support Personnel Salaries - S,UNRESTRICTED,"$3,229.42"
48,J.F. Drake State,90002190,THEO NATHAN WALSTON,Sep,30,2011,Support Personnel Salaries - S,UNRESTRICTED,"$3,169.83"
48,J.F. Drake State,90002191,KATINA L WALTON,Sep,30,2011,Instructional Salaries - Tempo,ADULT ED,$924.00
48,J.F. Drake State,90002192,DWAYNIA WILKERSON,Sep,30,2011,Instructional Salaries - Tempo,STUDENT SUPPORT SERVICES,$30.00
48,J.F. Drake State,90002193,CALANDRA S WILLIAMS,Sep,30,2011,Instructional Salaries - Tempo,ADULT ED,$644.00
48,J.F. Drake State,90002194,RICKY WILLINGHAM,Sep,30,2011,Other Professional Salaries -,TITLE III,"$6,886.58"
48,J.F. Drake State,90002195,INA M WILSON,Sep,30,2011,Support Personnel Salaries - S,UNRESTRICTED,"$3,675.42"
48,J.F. Drake State,90002196,TRACEY L WILSON,Sep,30,2011,Instructional Salaries - Tempo,UNRESTRICTED,$900.00
48,J.F. Drake State,90002197,BRANDI G WINCHESTER,Sep,30,2011,Instructional Salaries - Regul,UNRESTRICTED,"$4,675.56"
48,J.F. Drake State,90002198,GEORGE R WINN,Sep,30,2011,Instructional Salaries - Regul,UNRESTRICTED,"$5,675.67"
48,J.F. Drake State,90002198,GEORGE R WINN,Sep,30,2011,Instructional Salaries - Tempo,UNRESTRICTED,$675.00
48,J.F. Drake State,90002199,ANDRAIN YELDELL,Sep,30,2011,Instructional Salaries - Tempo,UNRESTRICTED,$225.00
48,J.F. Drake State,302303,MARTHA W DUBEY,Sep,30,2011,Compensated Absences,UNRESTRICTED,"$2,180.64"
48,J.F. Drake State,302304,DEBORAH WORLEY LEMIRE,Sep,30,2011,Instructional Salaries - Regul,ALLIED HEALTH,$900.00
48,J.F. Drake State,302305,KRISHALON WILKERSON,Sep,30,2011,Compensated Absences,TECH PREP FUNDS,$331.33
48,J.F. Drake State,302305,KRISHALON WILKERSON,Sep,30,2011,Compensated Absences,NAT'L SCIENCE FOUNDATION,$331.33
48,J.F. Drake State,103791,WEATHERTECH DIST,Sep,27,2011,Materials and Supplies,PLANT FUNDS,$768.71
48,J.F. Drake State,103792,ACT,Sep,27,2011,Materials and Supplies,UNRESTRICTED,$170.50
48,J.F. Drake State,103793,ALABAMA A&M ATHLETICS,Sep,27,2011,Advertising and Promotions,UNRESTRICTED,$600.00
48,J.F. Drake State,103794,AMERICAN TECH. PUBLISHERS,Sep,27,2011,Purchases for Resale,UNRESTRICTED,"$2,118.13"
48,J.F. Drake State,103795,AMERICAN HOTEL&LODGING,Sep,27,2011,Purchases for Resale,UNRESTRICTED,"$1,580.80"
48,J.F. Drake State,103796,BANKS INDUSTRIES INC.,Sep,27,2011,Materials and Supplies,UNRESTRICTED,$900.22
48,J.F. Drake State,103797,BB&T,Sep,27,2011,Investment Transaction Expense,UNRESTRICTED,$75.00
48,J.F. Drake State,103798,BEAUTIFICATION PAINTING,Sep,27,2011,Maintenance and Repairs,PLANT FUNDS,$330.00
48,J.F. Drake State,103799,BIRNBAUM INTERPRETING,Sep,27,2011,Other Contractual Services,UNRESTRICTED,"$5,056.35"
48,J.F. Drake State,103800,"BURMAX, INC.",Sep,27,2011,Purchases for Resale,UNRESTRICTED,"$2,099.74"
48,J.F. Drake State,103801,"BURMAX, INC.",Sep,27,2011,Purchases for Resale,UNRESTRICTED,$591.21
48,J.F. Drake State,103802,CDW-G,Sep,27,2011,Materials and Supplies,UNRESTRICTED,$246.69
48,J.F. Drake State,103802,CDW-G,Sep,27,2011,Computer Software,UNRESTRICTED,"$1,685.97"
48,J.F. Drake State,103803,CENGAGE LEARNING,Sep,27,2011,Purchases for Resale,UNRESTRICTED,$130.64
48,J.F. Drake State,103804,CENGAGE LEARNING,Sep,27,2011,Purchases for Resale,UNRESTRICTED,"$4,633.32"
48,J.F. Drake State,103805,"CERTIPORT, INC",Sep,27,2011,Purchases for Resale,UNRESTRICTED,$810.00
48,J.F. Drake State,103806,COPELAND CLEANERS,Sep,27,2011,Materials and Supplies,UNRESTRICTED,$13.39
48,J.F. Drake State,103807,"DYNAMIC SECURITY, INC.",Sep,27,2011,Other Contractual Services,UNRESTRICTED,"$6,377.28"
48,J.F. Drake State,103808,"DYNAMIC SECURITY, INC.",Sep,27,2011,Other Contractual Services,UNRESTRICTED,"$5,940.48"
48,J.F. Drake State,103809,FEDEX,Sep,27,2011,Postage,UNRESTRICTED,$857.90
48,J.F. Drake State,103810,GADSDEN ST COMM COLLEGE,Sep,27,2011,Reserve Fee Expense,UNRESTRICTED,"$5,558.50"
48,J.F. Drake State,103811,GOODHEART-WILCOX COMPANY,Sep,27,2011,Purchases for Resale,UNRESTRICTED,"$1,061.94"
48,J.F. Drake State,103814,KOORSEN PROTECTION SERVIC,Sep,27,2011,Other Contractual Services,UNRESTRICTED,"$1,317.00"
48,J.F. Drake State,103815,KOORSEN PROTECTION SERVIC,Sep,27,2011,Other Contractual Services,UNRESTRICTED,$315.00
48,J.F. Drake State,103816,LABOR READY,Sep,27,2011,Maintenance and Repairs,PLANT FUNDS,"$3,193.97"
48,J.F. Drake State,103817,THE LAMAR COMPANIES,Sep,27,2011,Advertising and Promotions,UNRESTRICTED,"$1,500.00"
48,J.F. Drake State,103818,THE LAMAR COMPANIES,Sep,27,2011,Advertising and Promotions,UNRESTRICTED,"$1,500.00"
48,J.F. Drake State,103819,"LANIER,FORD,SHAVER &",Sep,27,2011,Legal Services,UNRESTRICTED,"$1,539.30"
48,J.F. Drake State,103820,"LANIER,FORD,SHAVER &",Sep,27,2011,Legal Services,UNRESTRICTED,"$5,025.35"
48,J.F. Drake State,103821,"LANIER,FORD,SHAVER &",Sep,27,2011,Legal Services,UNRESTRICTED,"$7,599.35"
48,J.F. Drake State,103822,LOOK ADVERTISING INC,Sep,27,2011,Advertising and Promotions,ADULT ED,$350.00
48,J.F. Drake State,103823,LOWE'S,Sep,27,2011,Materials and Supplies,UNRESTRICTED,$64.13
48,J.F. Drake State,103823,LOWE'S,Sep,27,2011,Materials and Supplies,ARMY GRANT,$170.05
48,J.F. Drake State,103824,MCCRARYS SUPPLY CORP,Sep,27,2011,Maintenance and Repairs,UNRESTRICTED,$298.70
48,J.F. Drake State,103825,MCGRAW HILL EDUCATION,Sep,27,2011,Purchases for Resale,UNRESTRICTED,"$4,109.48"
48,J.F. Drake State,103827,MSC INDUSTRIAL SUPPLY,Sep,27,2011,Materials and Supplies,UNRESTRICTED,$147.75
48,J.F. Drake State,103828,"NBC UNIVERSAL, INC",Sep,27,2011,Computer Software,UNRESTRICTED,"$2,000.00"
48,J.F. Drake State,103829,OAK HALL CAP & GOWN CO,Sep,27,2011,Institutional Use,UNRESTRICTED,$57.00
48,J.F. Drake State,103830,"OFFICE DEPOT, INC.",Sep,27,2011,Purchases for Resale,UNRESTRICTED,"$1,716.91"
48,J.F. Drake State,103830,"OFFICE DEPOT, INC.",Sep,27,2011,Materials and Supplies,READY TO WORK,$314.70
48,J.F. Drake State,103831,"OFFICE DEPOT, INC.",Sep,27,2011,Purchases for Resale,UNRESTRICTED,$35.18
48,J.F. Drake State,103833,PEARSON,Sep,27,2011,Purchases for Resale,UNRESTRICTED,"$25,132.32"
48,J.F. Drake State,103835,PIVOT POINT INTERNATIONAL,Sep,27,2011,Purchases for Resale,UNRESTRICTED,"$2,624.28"
48,J.F. Drake State,103836,"QUALITY COUNTS, INC",Sep,27,2011,Purchases for Resale,AUXILIARY,$759.00
48,J.F. Drake State,103837,RSC EQUIPMENT RENTAL,Sep,27,2011,Other Contractual Services,UNRESTRICTED,$870.37
48,J.F. Drake State,103838,SOUTHERNLINC WIRELESS,Sep,27,2011,Communications,UNRESTRICTED,$63.60
48,J.F. Drake State,103839,SPEAKIN OUT NEWS,Sep,27,2011,Advertising and Promotions,UNRESTRICTED,$575.00
48,J.F. Drake State,103840,STANLEY STEEMER,Sep,27,2011,Other Contractual Services,PLANT FUNDS,"$5,255.20"
48,J.F. Drake State,103841,SUCCESS MARKETING,Sep,27,2011,Advertising and Promotions,UNRESTRICTED,"$1,921.95"
48,J.F. Drake State,103842,SUCCESS MARKETING,Sep,27,2011,Advertising and Promotions,UNRESTRICTED,"$1,140.00"
48,J.F. Drake State,103843,SUCCESS MARKETING,Sep,27,2011,Advertising and Promotions,UNRESTRICTED,"$15,885.00"
48,J.F. Drake State,103844,SUCCESS MARKETING,Sep,27,2011,Advertising and Promotions,UNRESTRICTED,"$1,537.08"
48,J.F. Drake State,103845,"SUPERIOR ROOFING, LLC",Sep,27,2011,Materials and Supplies,ARMY GRANT,"$1,650.00"
48,J.F. Drake State,103846,THE ALABAMA LAWNMASTERS,Sep,27,2011,Other Contractual Services,ARMY GRANT,$650.00
48,J.F. Drake State,103847,THE ALABAMA LAWNMASTERS,Sep,27,2011,Other Contractual Services,UNRESTRICTED,"$3,045.00"
48,J.F. Drake State,103848,THE ALABAMA LAWNMASTERS,Sep,27,2011,Other Contractual Services,ARMY GRANT,$650.00
48,J.F. Drake State,103849,THE ALABAMA LAWNMASTERS,Sep,27,2011,Other Contractual Services,UNRESTRICTED,"$3,045.00"
48,J.F. Drake State,103850,"THOMAS ELECTRIC, INC",Sep,27,2011,Materials and Supplies,ARMY GRANT,$580.00
48,J.F. Drake State,103851,"THOMAS ELECTRIC, INC",Sep,27,2011,Maintenance and Repairs,UNRESTRICTED,"$2,353.00"
48,J.F. Drake State,103853,UPS,Sep,27,2011,Freight,UNRESTRICTED,$602.65
48,J.F. Drake State,103854,W W NORTON,Sep,27,2011,Purchases for Resale,UNRESTRICTED,$281.72
48,J.F. Drake State,103855,WASTE MANAGEMENT OF NORTH,Sep,27,2011,Other Contractual Services,UNRESTRICTED,$818.95
48,J.F. Drake State,103856,"JOHN WILEY & SONS, INC",Sep,27,2011,Purchases for Resale,UNRESTRICTED,$969.09
48,J.F. Drake State,103857,WITTICHEN SUPPLY COMPANY,Sep,27,2011,Maintenance and Repairs,UNRESTRICTED,$110.59
48,J.F. Drake State,205780,AARON TERRY,Sep,27,2011,Other Contractual Services,NSF CARRYOVER,$300.00
48,J.F. Drake State,205781,COLLIN LEE,Sep,27,2011,Other Contractual Services,NSF CARRYOVER,$300.00
48,J.F. Drake State,205782,DONNE HOUSTON,Sep,27,2011,Other Contractual Services,NSF CARRYOVER,$300.00
48,J.F. Drake State,205783,KEIANI TAYLOR,Sep,27,2011,Other Contractual Services,NSF CARRYOVER,$300.00
48,J.F. Drake State,205784,PHILLIP LESLIE,Sep,27,2011,Other Contractual Services,NSF CARRYOVER,$300.00
48,J.F. Drake State,205785,ROBERT ZELLERS,Sep,27,2011,Other Contractual Services,NSF CARRYOVER,$300.00
48,J.F. Drake State,205786,SAMUEL JONES,Sep,27,2011,Other Contractual Services,NSF CARRYOVER,$300.00
48,J.F. Drake State,205787,TAYLOR HAMMONS,Sep,27,2011,Other Contractual Services,NSF CARRYOVER,$300.00
48,J.F. Drake State,205788,TREVOR PRICE,Sep,27,2011,Other Contractual Services,NSF CARRYOVER,$300.00
48,J.F. Drake State,205789,ACCSPA,Sep,27,2011,In-State Travel,TITLE III,$300.00
48,J.F. Drake State,205790,CONNECTIONS/SACS,Sep,27,2011,Out-of-State Travel,TITLE III,"$3,283.87"
48,J.F. Drake State,205791,EBSCO PUBLISHING,Sep,27,2011,Books,TITLE III,"$6,181.21"
48,J.F. Drake State,205792,LEARNING LABS INC.,Sep,27,2011,Institutional Use,PERKINS FUNDS,"$1,440.00"
48,J.F. Drake State,205793,"NCS PEARSON, INC",Sep,27,2011,Materials and Supplies,TITLE III,$450.00
48,J.F. Drake State,205794,"OFFICE DEPOT, INC.",Sep,27,2011,Materials and Supplies,TITLE III,$491.31
48,J.F. Drake State,205795,SACSCOC,Sep,27,2011,Out-of-State Travel,TITLE III,"$4,255.00"
48,J.F. Drake State,205771,CDW-G,Sep,21,2011,Materials and Supplies,TITLE III,"$3,942.14"
48,J.F. Drake State,205771,CDW-G,Sep,21,2011,Institutional Use,PERKINS FUNDS,"$2,027.30"
48,J.F. Drake State,205771,CDW-G,Sep,21,2011,Materials and Supplies,NSF CARRYOVER,$251.56
48,J.F. Drake State,205772,CDW-G,Sep,21,2011,Materials and Supplies,PERKINS FUNDS,$184.80
48,J.F. Drake State,205773,CDW-G,Sep,21,2011,Materials and Supplies,TITLE III,$284.44
48,J.F. Drake State,205774,CDW-G,Sep,21,2011,Materials and Supplies,TITLE III,"$1,567.46"
48,J.F. Drake State,205775,CDW-G,Sep,21,2011,Materials and Supplies,TITLE III,"$1,557.79"
48,J.F. Drake State,205776,CDW-G,Sep,21,2011,Institutional Use,NSF CARRYOVER,"$1,371.84"
48,J.F. Drake State,205777,CDW-G,Sep,21,2011,Institutional Use,NSF CARRYOVER,$84.00
48,J.F. Drake State,205778,CDW-G,Sep,21,2011,Materials and Supplies,NSF CARRYOVER,"$2,270.42"
48,J.F. Drake State,205779,CDW-G,Sep,21,2011,Materials and Supplies,TITLE III,$689.44
48,J.F. Drake State,103727,EMBASSY SUITES,Sep,19,2011,Institutional Use,UNRESTRICTED,"$9,460.74"
48,J.F. Drake State,205578,"OFFICE DEPOT, INC.",Sep,16,2011,Materials and Supplies,ALLIED HEALTH,$768.32
48,J.F. Drake State,205578,"OFFICE DEPOT, INC.",Sep,16,2011,Materials and Supplies,TITLE III,"$1,006.07"
48,J.F. Drake State,205579,"OFFICE DEPOT, INC.",Sep,16,2011,Materials and Supplies,TITLE III,"$1,614.83"
48,J.F. Drake State,205580,"OFFICE DEPOT, INC.",Sep,16,2011,Materials and Supplies,TITLE III,$66.43
48,J.F. Drake State,205581,"OFFICE DEPOT, INC.",Sep,16,2011,Materials and Supplies,TITLE III,$360.62
48,J.F. Drake State,205582,"OFFICE DEPOT, INC.",Sep,16,2011,Materials and Supplies,TITLE III,$133.99
48,J.F. Drake State,205583,"OFFICE DEPOT, INC.",Sep,16,2011,Materials and Supplies,TITLE III,$122.40
48,J.F. Drake State,205584,"OFFICE DEPOT, INC.",Sep,16,2011,Materials and Supplies,STUDENT SUPPORT SERVICES,$290.07
48,J.F. Drake State,205585,"OFFICE DEPOT, INC.",Sep,16,2011,Materials and Supplies,STUDENT SUPPORT SERVICES,$4.67
48,J.F. Drake State,205586,"OFFICE DEPOT, INC.",Sep,16,2011,Materials and Supplies,STUDENT SUPPORT SERVICES,$329.94
48,J.F. Drake State,205587,AAC&U,Sep,16,2011,Memberships,TITLE III,$630.00
48,J.F. Drake State,205588,AL ACADEMIC ADVISORS CONF,Sep,16,2011,Institutional Use,STUDENT SUPPORT SERVICES,$50.00
48,J.F. Drake State,205589,AL ACADEMIC ADVISORS CONF,Sep,16,2011,Institutional Use,STUDENT SUPPORT SERVICES,$50.00
48,J.F. Drake State,205590,AL ACADEMIC ADVISORS CONF,Sep,16,2011,In-State Travel,TECH PREP FUNDS,$50.00
48,J.F. Drake State,205591,ALABAMA CARD SYSTEMS,Sep,16,2011,Other Contractual Services,TITLE III,"$1,734.00"
48,J.F. Drake State,205592,BERNEY OFFICE SOLUTIONS,Sep,16,2011,Materials and Supplies,TITLE III,$65.77
48,J.F. Drake State,205593,CAR QUEST AUTO PARTS,Sep,16,2011,Materials and Supplies,PERKINS FUNDS,"$1,686.71"
48,J.F. Drake State,205594,CDW-G,Sep,16,2011,Institutional Use,PERKINS FUNDS,"$2,443.08"
48,J.F. Drake State,205595,CLAITOR'S LAW BOOKS & PUB,Sep,16,2011,Materials and Supplies,TITLE III,$47.15
48,J.F. Drake State,205596,AAAMC/DISPLAYTIME,Sep,16,2011,Materials and Supplies,TITLE III,"$1,236.26"
48,J.F. Drake State,205597,DR. MOSTAFA DOKHANIAN,Sep,16,2011,Other Contractual Services,NSF CARRYOVER,"$1,170.00"
48,J.F. Drake State,205598,DR. MOSTAFA DOKHANIAN,Sep,16,2011,Other Contractual Services,NSF CARRYOVER,"$1,170.00"
48,J.F. Drake State,205599,DR. MOSTAFA DOKHANIAN,Sep,16,2011,Other Contractual Services,NSF CARRYOVER,"$1,170.00"
48,J.F. Drake State,205600,DR. MOSTAFA DOKHANIAN,Sep,16,2011,Other Contractual Services,NSF CARRYOVER,"$1,170.00"
48,J.F. Drake State,205601,DR. MOSTAFA DOKHANIAN,Sep,16,2011,Other Contractual Services,NSF CARRYOVER,"$1,170.00"
48,J.F. Drake State,205602,FOLLET SOFTWARE COMPANY,Sep,16,2011,Materials and Supplies,TITLE III,$959.00
48,J.F. Drake State,205603,HUBERT,Sep,16,2011,Materials and Supplies,PERKINS FUNDS,$128.37
48,J.F. Drake State,205604,MINUTEMAN PRESS,Sep,16,2011,Materials and Supplies,TITLE III,$90.00
48,J.F. Drake State,205605,NASPA,Sep,16,2011,Memberships,TITLE III,$500.00
48,J.F. Drake State,205606,"OFFICE DEPOT, INC.",Sep,16,2011,Materials and Supplies,NAT'L SCIENCE FOUNDATION,$651.02
48,J.F. Drake State,205606,"OFFICE DEPOT, INC.",Sep,16,2011,Materials and Supplies,NSF CARRYOVER,$493.95
48,J.F. Drake State,205606,"OFFICE DEPOT, INC.",Sep,16,2011,Materials and Supplies,TITLE III,$87.58
48,J.F. Drake State,205607,"OFFICE DEPOT, INC.",Sep,16,2011,Materials and Supplies,TITLE III,$109.97
48,J.F. Drake State,205608,"OFFICE DEPOT, INC.",Sep,16,2011,Materials and Supplies,TITLE III,$122.10
48,J.F. Drake State,205609,"OFFICE DEPOT, INC.",Sep,16,2011,Materials and Supplies,TITLE III,$446.24
48,J.F. Drake State,205610,"OFFICE DEPOT, INC.",Sep,16,2011,Materials and Supplies,TITLE III,$31.94
48,J.F. Drake State,205611,OFFICE FURNITURE OUTLET,Sep,16,2011,Materials and Supplies,TITLE III,$782.00
48,J.F. Drake State,205612,OFFICE FURNITURE OUTLET,Sep,16,2011,Institutional Use,STUDENT SUPPORT SERVICES,$139.00
48,J.F. Drake State,205613,SCRIP-SAFE SECURITY,Sep,16,2011,Materials and Supplies,TITLE III,$274.00
48,J.F. Drake State,205614,TPG SUBSCRIPTION,Sep,16,2011,Materials and Supplies,TITLE III,$438.50
48,J.F. Drake State,103670,AT&T LONG DISTANCE SERV.,Sep,13,2011,Communications,UNRESTRICTED,$193.53
48,J.F. Drake State,103671,BALDWIN COOKE COMPANY,Sep,13,2011,Materials and Supplies,UNRESTRICTED,$493.48
48,J.F. Drake State,103672,BANKS INDUSTRIES INC.,Sep,13,2011,Materials and Supplies,UNRESTRICTED,$646.00
48,J.F. Drake State,103673,BOWMAN BEAUTY,Sep,13,2011,Purchases for Resale,UNRESTRICTED,$102.40
48,J.F. Drake State,103674,CENGAGE LEARNING,Sep,13,2011,Purchases for Resale,UNRESTRICTED,"$52,002.85"
48,J.F. Drake State,103675,CHEVRON CARD SERVICES,Sep,13,2011,Gasoline and Oil - Motor Vehic,UNRESTRICTED,$997.32
48,J.F. Drake State,103676,CONDITIONED AIR SOLUTIONS,Sep,13,2011,Maintenance and Repairs,ARMY GRANT,$584.22
48,J.F. Drake State,103677,PETTY CASH,Sep,13,2011,Materials and Supplies,UNRESTRICTED,$148.52
48,J.F. Drake State,103677,PETTY CASH,Sep,13,2011,Institutional Use,UNRESTRICTED,$96.55
48,J.F. Drake State,103677,PETTY CASH,Sep,13,2011,Advertising and Promotions,UNRESTRICTED,$40.74
48,J.F. Drake State,103677,PETTY CASH,Sep,13,2011,Postage,UNRESTRICTED,$41.95
48,J.F. Drake State,103677,PETTY CASH,Sep,13,2011,Maintenance and Repairs,UNRESTRICTED,$34.20
48,J.F. Drake State,103678,"DYNAMIC SECURITY, INC.",Sep,13,2011,Other Contractual Services,UNRESTRICTED,"$5,940.48"
48,J.F. Drake State,103679,"DYNAMIC SECURITY, INC.",Sep,13,2011,Other Contractual Services,UNRESTRICTED,"$5,940.48"
48,J.F. Drake State,103680,"DYNAMIC SECURITY, INC.",Sep,13,2011,Other Contractual Services,UNRESTRICTED,"$5,940.48"
48,J.F. Drake State,103681,FEDEX,Sep,13,2011,Postage,UNRESTRICTED,$153.19
48,J.F. Drake State,103682,GRAYBAR,Sep,13,2011,Maintenance and Repairs,UNRESTRICTED,$355.67
48,J.F. Drake State,103683,HUNTSVILLE TIMES,Sep,13,2011,Advertising and Promotions,UNRESTRICTED,"$1,503.46"
48,J.F. Drake State,103683,HUNTSVILLE TIMES,Sep,13,2011,Advertising and Promotions,ADULT ED,$83.48
48,J.F. Drake State,103683,HUNTSVILLE TIMES,Sep,13,2011,Materials and Supplies,CAREER COACHES,$83.46
48,J.F. Drake State,103683,HUNTSVILLE TIMES,Sep,13,2011,Advertising and Promotions,READY TO WORK,"$1,965.78"
48,J.F. Drake State,103684,HUNTSVILLE TIMES,Sep,13,2011,Advertising and Promotions,UNRESTRICTED,"$2,241.90"
48,J.F. Drake State,103685,LABOR READY,Sep,13,2011,Maintenance and Repairs,PLANT FUNDS,"$3,544.12"
48,J.F. Drake State,103686,LOOK ADVERTISING INC,Sep,13,2011,Advertising and Promotions,ADULT ED,$350.00
48,J.F. Drake State,103688,MID CITY SUPPLY CO,Sep,13,2011,Materials and Supplies,UNRESTRICTED,$217.22
48,J.F. Drake State,103689,MINUTEMAN PRESS,Sep,13,2011,Advertising and Promotions,UNRESTRICTED,$223.50
48,J.F. Drake State,103690,"OFFICE DEPOT, INC.",Sep,13,2011,Purchases for Resale,UNRESTRICTED,$617.28
48,J.F. Drake State,103691,PEARSON,Sep,13,2011,Purchases for Resale,UNRESTRICTED,$301.21
48,J.F. Drake State,103692,SAFETY KLEEN CORPORATION,Sep,13,2011,Other Contractual Services,UNRESTRICTED,$414.86
48,J.F. Drake State,103694,SUCCESS MARKETING,Sep,13,2011,Advertising and Promotions,UNRESTRICTED,$300.00
48,J.F. Drake State,103695,SUCCESS MARKETING,Sep,13,2011,Advertising and Promotions,UNRESTRICTED,"$15,920.00"
48,J.F. Drake State,103696,SUCCESS MARKETING,Sep,13,2011,"Printing, Reproduction and Bin",ADULT ED,"$2,766.00"
48,J.F. Drake State,103697,SUCCESS MARKETING,Sep,13,2011,Advertising and Promotions,ADULT ED,"$1,028.00"
48,J.F. Drake State,103698,SUCCESS MARKETING,Sep,13,2011,Advertising and Promotions,UNRESTRICTED,"$4,545.00"
48,J.F. Drake State,103699,SUCCESS MARKETING,Sep,13,2011,Advertising and Promotions,UNRESTRICTED,"$15,230.00"
48,J.F. Drake State,103700,UPS,Sep,13,2011,Freight,UNRESTRICTED,$39.26
48,J.F. Drake State,103701,VERIZON WIRELESS,Sep,13,2011,Communications,UNRESTRICTED,"$1,057.41"
48,J.F. Drake State,103702,WASTE MANAGEMENT OF NORTH,Sep,13,2011,Other Contractual Services,UNRESTRICTED,$498.97
48,J.F. Drake State,103702,WASTE MANAGEMENT OF NORTH,Sep,13,2011,Other Contractual Services,ARMY GRANT,$206.28
48,J.F. Drake State,205560,AL DEPT OF POSTSECONDARY,Sep,13,2011,In-State Travel,TITLE III,$75.00
48,J.F. Drake State,205561,CDW-G,Sep,13,2011,Materials and Supplies,TITLE III,"$1,050.52"
48,J.F. Drake State,205562,HORACE FRANKLIN,Sep,13,2011,In-State Travel,TITLE III,$60.00
48,J.F. Drake State,205563,KATRINA HARRIS,Sep,13,2011,In-State Travel,TITLE III,$566.57
48,J.F. Drake State,205564,KRISHALON WILKERSON,Sep,13,2011,In-State Travel,NSF CARRYOVER,$126.04
48,J.F. Drake State,205565,"MCALPINE, HELEN",Sep,13,2011,Employee Taxable Per Diem,TITLE III,$22.50
48,J.F. Drake State,205566,TABITHA MCWILLIAMS,Sep,13,2011,In-State Travel,TITLE III,$325.38
48,J.F. Drake State,205567,MINUTEMAN PRESS,Sep,13,2011,Materials and Supplies,TITLE III,"$1,268.34"
48,J.F. Drake State,205568,"OFFICE DEPOT, INC.",Sep,13,2011,Materials and Supplies,ALLIED HEALTH,"$2,167.30"
48,J.F. Drake State,205569,"OFFICE DEPOT, INC.",Sep,13,2011,Materials and Supplies,PERKINS FUNDS,$62.98
48,J.F. Drake State,205570,"OFFICE DEPOT, INC.",Sep,13,2011,Materials and Supplies,TITLE III,$51.98
48,J.F. Drake State,205571,PATRICE BIVINS,Sep,13,2011,Out-of-State Travel,STUDENT SUPPORT SERVICES,$37.00
48,J.F. Drake State,205572,DR.JENNIFER PATTERSON,Sep,13,2011,In-State Travel,TITLE III,$67.25
48,J.F. Drake State,205573,RICHARD COLLIE,Sep,13,2011,Out-of-State Travel,STUDENT SUPPORT SERVICES,$42.00
48,J.F. Drake State,205574,"SMITH, RYAN",Sep,13,2011,Materials and Supplies,TITLE III,$75.00
48,J.F. Drake State,205533,"ALLIANT DATA SYSTEM,INC",Sep,6,2011,In-State Travel,TITLE III,"$2,250.00"
48,J.F. Drake State,205534,AMERICAN WELDING SOCIETY,Sep,6,2011,Institutional Use,TITLE III,$240.00
48,J.F. Drake State,205535,MONIQUE COSBY,Sep,6,2011,In-State Travel,TITLE III,$300.00
48,J.F. Drake State,205536,DR. MOSTAFA DOKHANIAN,Sep,6,2011,Other Contractual Services,NSF CARRYOVER,"$1,625.00"
48,J.F. Drake State,205537,DR. MOSTAFA DOKHANIAN,Sep,6,2011,Other Contractual Services,NSF CARRYOVER,"$1,365.00"
48,J.F. Drake State,205538,DR. MOSTAFA DOKHANIAN,Sep,6,2011,Other Contractual Services,NSF CARRYOVER,"$1,625.00"
48,J.F. Drake State,205539,EBSCO PUBLISHING,Sep,6,2011,Subscriptions,TITLE III,"$7,020.00"
48,J.F. Drake State,205540,FRED PRYOR SEMINARS,Sep,6,2011,In-State Travel,TITLE III,$298.00
48,J.F. Drake State,205541,"HUGHES, PATRICIA",Sep,6,2011,Employee Taxable Per Diem,TITLE III,$11.25
48,J.F. Drake State,205542,JANPAK,Sep,6,2011,Materials and Supplies,TITLE III,"$4,979.57"
48,J.F. Drake State,205543,"JBC TOOLS, INC",Sep,6,2011,Materials and Supplies,TITLE III,"$3,379.00"
48,J.F. Drake State,205544,JEFFREYS MANUFACT SOLUTIO,Sep,6,2011,Institutional Use,NAT'L SCIENCE FOUNDATION,"$3,503.48"
48,J.F. Drake State,205545,L. MILLER & SON,Sep,6,2011,Materials and Supplies,PERKINS FUNDS,"$2,799.60"
48,J.F. Drake State,205546,LIBRARICA LLC,Sep,6,2011,Materials and Supplies,TITLE III,"$1,494.50"
48,J.F. Drake State,205548,MIDWEST LIBRARY SERVICE,Sep,6,2011,Books,TITLE III,"$5,286.88"
48,J.F. Drake State,205549,MINUTEMAN PRESS,Sep,6,2011,"Printing, Reproduction and Bin",TITLE III,"$1,056.81"
48,J.F. Drake State,205550,NORTHEAST ALABAMA STATE C,Sep,6,2011,In-State Travel,TITLE III,"$1,000.00"
48,J.F. Drake State,205551,"OFFICE DEPOT, INC.",Sep,6,2011,Materials and Supplies,TITLE III,$531.57
48,J.F. Drake State,205551,"OFFICE DEPOT, INC.",Sep,6,2011,Materials and Supplies,STUDENT SUPPORT SERVICES,$355.27
48,J.F. Drake State,205552,JENNIFER OLINGER,Sep,6,2011,In-State Travel,TITLE III,$675.00
48,J.F. Drake State,205553,REGISTRATION SERVICES,Sep,6,2011,In-State Travel,TITLE III,$150.00
48,J.F. Drake State,205554,REGISTRATION SERVICES,Sep,6,2011,In-State Travel,TITLE III,$150.00
48,J.F. Drake State,205555,RYDIN SIGN AND DECAL,Sep,6,2011,Materials and Supplies,TITLE III,"$1,217.04"
48,J.F. Drake State,205556,SAM'S CLUB/WALMART,Sep,6,2011,Materials and Supplies,TITLE III,$800.00
48,J.F. Drake State,205557,SEXTON WELDING SUPPLY,Sep,6,2011,Materials and Supplies,PERKINS FUNDS,"$4,133.51"
48,J.F. Drake State,205558,SEXTON WELDING SUPPLY,Sep,6,2011,Materials and Supplies,PERKINS FUNDS,$400.00
48,J.F. Drake State,103625,ACT,Aug,31,2011,Materials and Supplies,UNRESTRICTED,"$2,689.00"
48,J.F. Drake State,103626,BANKS INDUSTRIES INC.,Aug,31,2011,Materials and Supplies,UNRESTRICTED,"$2,929.96"
48,J.F. Drake State,103627,"BURMAX, INC.",Aug,31,2011,Purchases for Resale,UNRESTRICTED,"$6,554.88"
48,J.F. Drake State,103628,CENGAGE LEARNING,Aug,31,2011,Purchases for Resale,UNRESTRICTED,"$22,512.21"
48,J.F. Drake State,103629,ELECTRONIX EXPRESS,Aug,31,2011,Purchases for Resale,UNRESTRICTED,$430.65
48,J.F. Drake State,103630,ELSEVIER/HESI,Aug,31,2011,Purchases for Resale,UNRESTRICTED,"$5,933.56"
48,J.F. Drake State,103631,GED TESTING PROGRAM,Aug,31,2011,Materials and Supplies,UNRESTRICTED,$104.00
48,J.F. Drake State,103632,GOODHEART-WILCOX COMPANY,Aug,31,2011,Purchases for Resale,UNRESTRICTED,"$1,629.68"
48,J.F. Drake State,103633,HIGHLANDS OCCUPATIONAL ME,Aug,31,2011,Purchases for Resale,AUXILIARY,"$1,000.00"
48,J.F. Drake State,103634,HOLBART INSTITUTE OF WELD,Aug,31,2011,Purchases for Resale,UNRESTRICTED,"$3,660.00"
48,J.F. Drake State,103635,CHAMBER OF COMMERCE,Aug,31,2011,Advertising and Promotions,UNRESTRICTED,$350.00
48,J.F. Drake State,103636,INDUSTRIAL PRESS,Aug,31,2011,Purchases for Resale,UNRESTRICTED,$652.59
48,J.F. Drake State,103637,IN10SITY INTERACTIVE,Aug,31,2011,Advertising and Promotions,UNRESTRICTED,$125.00
48,J.F. Drake State,103638,JONES AND BARTLETT LARNIN,Aug,31,2011,Purchases for Resale,UNRESTRICTED,"$3,119.00"
48,J.F. Drake State,103639,LABOR READY,Aug,31,2011,Maintenance and Repairs,PLANT FUNDS,"$3,023.79"
48,J.F. Drake State,103640,"LANIER,FORD,SHAVER &",Aug,31,2011,Legal Services,UNRESTRICTED,"$4,545.08"
48,J.F. Drake State,103641,MEADOWS MEDICAL SUPPLY IN,Aug,31,2011,Purchases for Resale,UNRESTRICTED,"$10,565.95"
48,J.F. Drake State,103642,MINUTEMAN PRESS,Aug,31,2011,Advertising and Promotions,UNRESTRICTED,$404.00
48,J.F. Drake State,103643,"SMC EVENTS, INC",Aug,31,2011,Advertising and Promotions,UNRESTRICTED,$500.00
48,J.F. Drake State,103644,TARCOG,Aug,31,2011,Other Contractual Services,UNRESTRICTED,$700.00
48,J.F. Drake State,103645,"THE SOLUTIONS TEAM, INC",Aug,31,2011,Other Contractual Services,UNRESTRICTED,$200.00
48,J.F. Drake State,103646,"THOMAS ELECTRIC, INC",Aug,31,2011,Materials and Supplies,ARMY GRANT,$256.70
48,J.F. Drake State,103647,UPS,Aug,31,2011,Freight,UNRESTRICTED,$328.75
48,J.F. Drake State,103649,W W NORTON,Aug,31,2011,Purchases for Resale,UNRESTRICTED,"$1,140.16"
48,J.F. Drake State,302259,ROBBIE LEE AKINS,Aug,31,2011,Support Personnel Salaries - S,UNRESTRICTED,"$2,113.00"
48,J.F. Drake State,302260,DEMICA SHERMIR ALLISON,Aug,31,2011,Hourly Wages,NAT'L SCIENCE FOUNDATION,$820.00
48,J.F. Drake State,302261,VALERIE ARLENE BARNES,Aug,31,2011,Support Personnel Salaries - S,STUDENT SUPPORT SERVICES,"$1,764.43"
48,J.F. Drake State,302262,DEAVIANCE FOWLKS BLEVINS,Aug,31,2011,Hourly Wages,NAT'L SCIENCE FOUNDATION,$450.00
48,J.F. Drake State,302263,STEPHANIE JONES BOUNDS,Aug,31,2011,Instructional Salaries - Regul,UNRESTRICTED,"$6,200.66"
48,J.F. Drake State,302264,CHRISTOPHER L BROWN,Aug,31,2011,Instructional Salaries - Tempo,NAT'L SCIENCE FOUNDATION,"$1,035.00"
48,J.F. Drake State,302265,ASHWITH KUMAR CHILVERY,Aug,31,2011,Instructional Salaries - Tempo,NAT'L SCIENCE FOUNDATION,"$1,365.00"
48,J.F. Drake State,302266,APRIL CLEMENT,Aug,31,2011,Other Professional Salaries -,TITLE III,"$4,000.00"
48,J.F. Drake State,302267,RICHARD COLLIE,Aug,31,2011,Other Professional Salaries -,STUDENT SUPPORT SERVICES,"$3,750.00"
48,J.F. Drake State,302268,AVA D FARR,Aug,31,2011,Instructional Salaries - Regul,ALLIED HEALTH,"$2,251.28"
48,J.F. Drake State,302269,ROBERT N GRISSIM,Aug,31,2011,Instructional Salaries - Regul,UNRESTRICTED,"$1,409.68"
48,J.F. Drake State,302269,ROBERT N GRISSIM,Aug,31,2011,Instructional Salaries - Tempo,UNRESTRICTED,$750.00
48,J.F. Drake State,302270,KHALID HOLMES,Aug,31,2011,Instructional Salaries - Regul,UNRESTRICTED,"$1,959.17"
48,J.F. Drake State,302271,JUSTIN M KELLY,Aug,31,2011,Instructional Salaries - Tempo,UNRESTRICTED,"$1,350.00"
48,J.F. Drake State,302272,DOROTHY J NOBLE,Aug,31,2011,Instructional Salaries - Tempo,UNRESTRICTED,"$1,500.00"
48,J.F. Drake State,302273,MICHELLE L WATKINS,Aug,31,2011,Instructional Salaries - Tempo,NAT'L SCIENCE FOUNDATION,$900.00
48,J.F. Drake State,302274,DEBORA P WINTERS,Aug,31,2011,Instructional Salaries - Tempo,NAT'L SCIENCE FOUNDATION,"$2,040.00"
48,J.F. Drake State,90001920,MALEK AMIR ABUNAEMEH,Aug,31,2011,Instructional Salaries - Tempo,NAT'L SCIENCE FOUNDATION,"$1,530.00"
48,J.F. Drake State,90001921,LYSA AUGUSTIN,Aug,31,2011,Instructional Salaries - Tempo,ADULT ED,$616.00
48,J.F. Drake State,90001922,CAROLYN AVRITTE,Aug,31,2011,Instructional Salaries - Tempo,UNRESTRICTED,$600.00
48,J.F. Drake State,90001923,NELSON E BARNES,Aug,31,2011,Instructional Salaries - Tempo,UNRESTRICTED,"$1,350.00"
48,J.F. Drake State,90001924,BEN BATTLE,Aug,31,2011,Instructional Salaries - Regul,UNRESTRICTED,"$4,922.34"
48,J.F. Drake State,90001926,HAROLD E BATTS,Aug,31,2011,Other Professional Salaries -,UNRESTRICTED,"$8,649.00"
48,J.F. Drake State,90001928,CHARLOTTE KATHRYN BAUCOM,Aug,31,2011,Instructional Salaries - Tempo,UNRESTRICTED,"$1,800.00"
48,J.F. Drake State,90001929,ANGELA NICOLE BELL,Aug,31,2011,Instructional Salaries - Regul,UNRESTRICTED,"$5,009.00"
48,J.F. Drake State,90001931,PATRICE BIVINS,Aug,31,2011,Support Personnel Salaries - S,STUDENT SUPPORT SERVICES,"$1,889.83"
48,J.F. Drake State,90001932,JACQUELINE T BOOKER,Aug,31,2011,Support Personnel Salaries - S,NAT'L SCIENCE FOUNDATION,"$2,005.60"
48,J.F. Drake State,90001933,CHERYL BRAWLEY-KELLY,Aug,31,2011,Instructional Salaries - Tempo,UNRESTRICTED,"$1,710.00"
48,J.F. Drake State,90001934,LASHONDA D BROWN,Aug,31,2011,Instructional Salaries - Tempo,UNRESTRICTED,$900.00
48,J.F. Drake State,90001935,BRUCE A BULLUCK,Aug,31,2011,Other Professional Salaries -,UNRESTRICTED,"$5,833.37"
48,J.F. Drake State,90001936,LINDA BURRUSS,Aug,31,2011,Instructional Salaries - Tempo,NAT'L SCIENCE FOUNDATION,"$1,800.00"
48,J.F. Drake State,90001937,KHALILAH BURTON,Aug,31,2011,Instructional Salaries - Regul,UNRESTRICTED,"$2,796.75"
48,J.F. Drake State,90001937,KHALILAH BURTON,Aug,31,2011,Instructional Salaries - Regul,NAT'L SCIENCE FOUNDATION,$932.25
48,J.F. Drake State,90001937,KHALILAH BURTON,Aug,31,2011,Instructional Salaries - Regul,ARRA STIMULUS FUNDS,"$4,609.00"
48,J.F. Drake State,90001938,DERICK R CARPENAY,Aug,31,2011,Instructional Salaries - Tempo,UNRESTRICTED,$900.00
48,J.F. Drake State,90001938,DERICK R CARPENAY,Aug,31,2011,Instructional Salaries - Tempo,NAT'L SCIENCE FOUNDATION,"$2,040.00"
48,J.F. Drake State,90001939,KEMBA CHAMBERS,Aug,31,2011,Other Professional Salaries -,UNRESTRICTED,"$7,360.38"
48,J.F. Drake State,90001940,KATIE E CHANCE,Aug,31,2011,Support Personnel Salaries - S,UNRESTRICTED,"$2,485.32"
48,J.F. Drake State,90001941,ROGER CHEN,Aug,31,2011,Instructional Salaries - Tempo,UNRESTRICTED,$900.00
48,J.F. Drake State,90001941,ROGER CHEN,Aug,31,2011,Instructional Salaries - Tempo,STUDENT SUPPORT SERVICES,$315.00
48,J.F. Drake State,90001942,ADAM CLARK,Aug,31,2011,Instructional Salaries - Regul,UNRESTRICTED,"$4,571.00"
48,J.F. Drake State,90001942,ADAM CLARK,Aug,31,2011,Instructional Salaries - Tempo,UNRESTRICTED,$600.00
48,J.F. Drake State,90001944,CARLA R CLIFT,Aug,31,2011,Other Professional Salaries -,UNRESTRICTED,"$3,740.00"
48,J.F. Drake State,90001945,MONIQUE C COSBY,Aug,31,2011,Support Personnel Salaries - S,ARRA STIMULUS FUNDS,"$3,228.75"
48,J.F. Drake State,90001946,REGINA LYNNE CRAWFORD,Aug,31,2011,Support Personnel Salaries - S,UNRESTRICTED,"$3,080.00"
48,J.F. Drake State,90001947,DEIONE L CRUTCHER,Aug,31,2011,Support Personnel Salaries - S,ADULT ED,"$1,111.50"
48,J.F. Drake State,90001948,MATTIE D DAVIS,Aug,31,2011,Instructional Salaries - Regul,UNRESTRICTED,"$6,019.00"
48,J.F. Drake State,90001949,MARLO DRAKE,Aug,31,2011,Support Personnel Salaries - S,ARRA STIMULUS FUNDS,"$2,365.66"
48,J.F. Drake State,90001949,MARLO DRAKE,Aug,31,2011,Support Personnel Salaries - S,TITLE III,$788.59
48,J.F. Drake State,90001950,MARTHA W DUBEY,Aug,31,2011,Support Personnel Salaries - S,UNRESTRICTED,"$3,817.59"
48,J.F. Drake State,90001951,GABRIELE DUNSEITH,Aug,31,2011,Instructional Salaries - Tempo,UNRESTRICTED,$330.00
48,J.F. Drake State,90001952,VERNESSA M EDWARDS,Aug,31,2011,Instructional Salaries - Tempo,UNRESTRICTED,$750.00
48,J.F. Drake State,90001953,CHRISTIANA A OPARA EGBUJO,Aug,31,2011,Instructional Salaries - Tempo,UNRESTRICTED,$930.00
48,J.F. Drake State,90001954,RONALD E EGSON,Aug,31,2011,Instructional Salaries - Tempo,UNRESTRICTED,"$1,350.00"
48,J.F. Drake State,90001955,ROSELINE C ELIKE,Aug,31,2011,Instructional Salaries - Tempo,UNRESTRICTED,$540.00
48,J.F. Drake State,90001956,GAIL E FISCH,Aug,31,2011,Instructional Salaries - Regul,ADULT ED,"$6,270.84"
48,J.F. Drake State,90001957,NIKAELA YARBROUGH FLOURNO,Aug,31,2011,Instructional Salaries - Tempo,UNRESTRICTED,$900.00
48,J.F. Drake State,90001958,EDWIN T FORBES,Aug,31,2011,Instructional Salaries - Regul,UNRESTRICTED,"$8,836.38"
48,J.F. Drake State,90001958,EDWIN T FORBES,Aug,31,2011,Instructional Salaries - Tempo,UNRESTRICTED,$450.00
48,J.F. Drake State,90001959,HORACE L FRANKLIN JR,Aug,31,2011,Instructional Salaries - Regul,UNRESTRICTED,"$4,609.00"
48,J.F. Drake State,90001960,MATTIE B FREEMAN,Aug,31,2011,Instructional Salaries - Tempo,UNRESTRICTED,"$1,710.00"
48,J.F. Drake State,90001961,WENDY F GANNON,Aug,31,2011,Instructional Salaries - Regul,ALLIED HEALTH,"$4,885.00"
48,J.F. Drake State,90001962,FESSEHA GEBREMIKAEL,Aug,31,2011,Instructional Salaries - Tempo,UNRESTRICTED,$450.00
48,J.F. Drake State,90001963,SYMMETRIS K GOHANNA,Aug,31,2011,Instructional Salaries - Regul,UNRESTRICTED,"$5,399.34"
48,J.F. Drake State,90001964,LARDELL GOODLOE JR,Aug,31,2011,Instructional Salaries - Regul,UNRESTRICTED,"$4,646.34"
48,J.F. Drake State,90001964,LARDELL GOODLOE JR,Aug,31,2011,Instructional Salaries - Tempo,UNRESTRICTED,$750.00
48,J.F. Drake State,90001965,TIMOTHY RYAN GREEN,Aug,31,2011,Instructional Salaries - Regul,UNRESTRICTED,"$3,542.00"
48,J.F. Drake State,90001965,TIMOTHY RYAN GREEN,Aug,31,2011,Instructional Salaries - Tempo,UNRESTRICTED,"$1,500.00"
48,J.F. Drake State,90001966,VICKIE E GREEN,Aug,31,2011,Instructional Salaries - Regul,ALLIED HEALTH,"$4,609.00"
48,J.F. Drake State,90001967,CHARLES GROSS,Aug,31,2011,Instructional Salaries - Tempo,UNRESTRICTED,$900.00
48,J.F. Drake State,90001967,CHARLES GROSS,Aug,31,2011,Instructional Salaries - Tempo,NAT'L SCIENCE FOUNDATION,$840.00
48,J.F. Drake State,90001968,SAMUEL V GUISHARD,Aug,31,2011,Instructional Salaries - Tempo,UNRESTRICTED,"$1,500.00"
48,J.F. Drake State,90001969,MANELZA CRAWFORD HAMBRICK,Aug,31,2011,Support Personnel Salaries - S,UNRESTRICTED,"$2,411.00"
48,J.F. Drake State,90001970,KATRINA J HARRIS,Aug,31,2011,Support Personnel Salaries - S,UNRESTRICTED,$955.75
48,J.F. Drake State,90001970,KATRINA J HARRIS,Aug,31,2011,Support Personnel Salaries - S,TITLE III,"$2,867.25"
48,J.F. Drake State,90001971,CAROLYN HENDERSON,Aug,31,2011,Instructional Salaries - Tempo,UNRESTRICTED,$450.00
48,J.F. Drake State,90001971,CAROLYN HENDERSON,Aug,31,2011,Instructional Salaries - Regul,UNRESTRICTED,"$2,963.59"
48,J.F. Drake State,90001971,CAROLYN HENDERSON,Aug,31,2011,Instructional Salaries - Regul,NAT'L SCIENCE FOUNDATION,"$2,209.15"
48,J.F. Drake State,90001971,CAROLYN HENDERSON,Aug,31,2011,Instructional Salaries - Regul,ARRA STIMULUS FUNDS,"$3,663.75"
48,J.F. Drake State,90001972,DEXTER R HENRY,Aug,31,2011,Instructional Salaries - Tempo,UNRESTRICTED,$750.00
48,J.F. Drake State,90001972,DEXTER R HENRY,Aug,31,2011,Instructional Salaries - Regul,UNRESTRICTED,"$5,951.34"
48,J.F. Drake State,90001973,KARL W HENRY SR,Aug,31,2011,Instructional Salaries - Regul,UNRESTRICTED,"$5,174.00"
48,J.F. Drake State,90001973,KARL W HENRY SR,Aug,31,2011,Instructional Salaries - Tempo,UNRESTRICTED,"$1,200.00"
48,J.F. Drake State,90001973,KARL W HENRY SR,Aug,31,2011,Instructional Salaries - Regul,NAT'L SCIENCE FOUNDATION,"$1,591.34"
48,J.F. Drake State,90001974,ISSAC D HINES,Aug,31,2011,Hourly Wages,UNRESTRICTED,$607.50
48,J.F. Drake State,90001974,ISSAC D HINES,Aug,31,2011,Hourly Wages,NAT'L SCIENCE FOUNDATION,$760.00
48,J.F. Drake State,90001975,DORIS HINTON,Aug,31,2011,Instructional Salaries - Regul,UNRESTRICTED,"$5,023.00"
48,J.F. Drake State,90001976,CANDICE HOWELL,Aug,31,2011,Instructional Salaries - Tempo,UNRESTRICTED,$600.00
48,J.F. Drake State,90001977,PATRICIA HUGHES,Aug,31,2011,Administrative Salaries- Sched,UNRESTRICTED,"$7,893.12"
48,J.F. Drake State,90001979,JAN J HYMAN,Aug,31,2011,Support Personnel Salaries - S,ALLIED HEALTH,"$3,154.50"
48,J.F. Drake State,90001981,NEOKA JANE IVEY,Aug,31,2011,Support Personnel Salaries - S,UNRESTRICTED,"$1,889.83"
48,J.F. Drake State,90001982,SARAH J JAMAR,Aug,31,2011,Instructional Salaries - Tempo,UNRESTRICTED,"$1,350.00"
48,J.F. Drake State,90001982,SARAH J JAMAR,Aug,31,2011,Instructional Salaries - Tempo,STUDENT SUPPORT SERVICES,$82.50
48,J.F. Drake State,90001983,DONYALE D JONES,Aug,31,2011,Support Personnel Salaries - S,TITLE III,"$3,303.49"
48,J.F. Drake State,90001984,PINEY L JORDAN,Aug,31,2011,Instructional Salaries - Tempo,UNRESTRICTED,"$1,230.00"
48,J.F. Drake State,90001985,NGOZI A KAMALU,Aug,31,2011,Instructional Salaries - Tempo,UNRESTRICTED,$450.00
48,J.F. Drake State,90001986,CHERYL P KEMP,Aug,31,2011,Instructional Salaries - Tempo,UNRESTRICTED,"$2,400.00"
48,J.F. Drake State,90001987,PRAVEENA KOMMIDI,Aug,31,2011,Instructional Salaries - Regul,UNRESTRICTED,"$5,881.00"
48,J.F. Drake State,90001987,PRAVEENA KOMMIDI,Aug,31,2011,Instructional Salaries - Tempo,UNRESTRICTED,$450.00
48,J.F. Drake State,90001988,SUSAN KREULEN,Aug,31,2011,Instructional Salaries - Tempo,ADULT ED,"$1,097.25"
48,J.F. Drake State,90001989,NICHOLAS PAUL KSEPKA,Aug,31,2011,Hourly Wages,UNRESTRICTED,"$1,680.00"
48,J.F. Drake State,90001990,HONG THUYDUC LAM,Aug,31,2011,Instructional Salaries - Regul,UNRESTRICTED,"$5,638.34"
48,J.F. Drake State,90001991,JOYCE P LAMAR,Aug,31,2011,Support Personnel Salaries - S,UNRESTRICTED,"$4,419.13"
48,J.F. Drake State,90001992,TELLUS LANGFORD,Aug,31,2011,Instructional Salaries - Tempo,UNRESTRICTED,$450.00
48,J.F. Drake State,90001993,MICHEAL V MAXTON,Aug,31,2011,Instructional Salaries - Tempo,UNRESTRICTED,$900.00
48,J.F. Drake State,90001994,MUKESHA MBUGUJE,Aug,31,2011,Instructional Salaries - Tempo,UNRESTRICTED,$270.00
48,J.F. Drake State,90001995,HELEN T MCALPINE,Aug,31,2011,Administrative Salaries- Sched,UNRESTRICTED,"$14,266.45"
48,J.F. Drake State,90001995,HELEN T MCALPINE,Aug,31,2011,President's Expense Allowance,UNRESTRICTED,$200.00
48,J.F. Drake State,90001995,HELEN T MCALPINE,Aug,31,2011,Housing Allowance,UNRESTRICTED,"$1,000.00"
48,J.F. Drake State,90001996,DEMETIUS L MCCARTY,Aug,31,2011,Support Personnel Salaries - S,UNRESTRICTED,"$2,113.00"
48,J.F. Drake State,90001997,PATRICK T MCDONALD,Aug,31,2011,Support Personnel Salaries - S,STUDENT SUPPORT SERVICES,$390.00
48,J.F. Drake State,90001999,SCOTTY MCLAUGHLIN,Aug,31,2011,Instructional Salaries - Tempo,UNRESTRICTED,$300.00
48,J.F. Drake State,90001999,SCOTTY MCLAUGHLIN,Aug,31,2011,Instructional Salaries - Regul,UNRESTRICTED,"$6,535.00"
48,J.F. Drake State,90002000,TABITHA D MCWILLIAMS,Aug,31,2011,Support Personnel Salaries - S,UNRESTRICTED,"$2,038.66"
48,J.F. Drake State,90002001,DEBORAH A MILLING,Aug,31,2011,Instructional Salaries - Regul,UNRESTRICTED,"$11,097.37"
48,J.F. Drake State,90002002,SAMMY J MILTON,Aug,31,2011,Support Personnel Salaries - S,UNRESTRICTED,"$3,452.87"
48,J.F. Drake State,90002003,PREMA A MONTEIRO,Aug,31,2011,Instructional Salaries - Regul,UNRESTRICTED,"$4,470.66"
48,J.F. Drake State,90002004,ACOLEA J MOORE,Aug,31,2011,Instructional Salaries - Tempo,UNRESTRICTED,$450.00
48,J.F. Drake State,90002005,BRUCE D MORRISON,Aug,31,2011,Support Personnel Salaries - S,UNRESTRICTED,"$4,196.13"
48,J.F. Drake State,90002006,KAREN NEIR,Aug,31,2011,Instructional Salaries - Tempo,UNRESTRICTED,"$2,415.00"
48,J.F. Drake State,90002007,JENNIFER O'LINGER,Aug,31,2011,Other Professional Salaries -,UNRESTRICTED,"$4,333.00"
48,J.F. Drake State,90002008,DONALD ORR,Aug,31,2011,Support Personnel Salaries - S,UNRESTRICTED,"$3,750.13"
48,J.F. Drake State,90002009,COURTNEY P PATTERSON,Aug,31,2011,Support Personnel Salaries - S,UNRESTRICTED,"$1,240.17"
48,J.F. Drake State,90002009,COURTNEY P PATTERSON,Aug,31,2011,Instructional Salaries - Tempo,ADULT ED,$54.00
48,J.F. Drake State,90002010,JENNIFER E PATTERSON,Aug,31,2011,Instructional Salaries - Regul,UNRESTRICTED,"$9,599.04"
48,J.F. Drake State,90002011,ALBERT B PETERSON II,Aug,31,2011,Instructional Salaries - Tempo,ADULT ED,$208.00
48,J.F. Drake State,90002012,JERROLD DION PHIPPS,Aug,31,2011,Instructional Salaries - Tempo,UNRESTRICTED,"$1,350.00"
48,J.F. Drake State,90002013,INODU TONY PIRI,Aug,31,2011,Instructional Salaries - Tempo,UNRESTRICTED,$450.00
48,J.F. Drake State,90002014,JAMES W PLEASURE,Aug,31,2011,Hourly Wages,NAT'L SCIENCE FOUNDATION,$900.00
48,J.F. Drake State,90002015,GWENDOLYN D POPE,Aug,31,2011,Instructional Salaries - Regul,UNRESTRICTED,"$12,642.75"
48,J.F. Drake State,90002016,BARBARA J PRIMEAUX,Aug,31,2011,Support Personnel Salaries - S,UNRESTRICTED,"$2,336.00"
48,J.F. Drake State,90002017,FREDRICK O PRUITT,Aug,31,2011,Instructional Salaries - Regul,UNRESTRICTED,"$2,048.40"
48,J.F. Drake State,90002017,FREDRICK O PRUITT,Aug,31,2011,Instructional Salaries - Tempo,UNRESTRICTED,"$1,950.00"
48,J.F. Drake State,90002018,MICHAEL RADDEN,Aug,31,2011,Instructional Salaries - Tempo,UNRESTRICTED,"$1,350.00"
48,J.F. Drake State,90002019,LORAINE RAGIN,Aug,31,2011,Instructional Salaries - Regul,UNRESTRICTED,"$3,542.00"
48,J.F. Drake State,90002020,ALICE G RAYMOND,Aug,31,2011,Instructional Salaries - Regul,UNRESTRICTED,"$7,523.34"
48,J.F. Drake State,90002021,JOYCE L RENTZ,Aug,31,2011,Instructional Salaries - Regul,UNRESTRICTED,"$6,251.00"
48,J.F. Drake State,90002021,JOYCE L RENTZ,Aug,31,2011,Instructional Salaries - Tempo,UNRESTRICTED,$900.00
48,J.F. Drake State,90002022,JOHN REUTTER III,Aug,31,2011,Other Professional Salaries -,NAT'L SCIENCE FOUNDATION,"$6,616.75"
48,J.F. Drake State,90002023,LYSCELLE M REYES,Aug,31,2011,Hourly Wages,NAT'L SCIENCE FOUNDATION,"$1,320.00"
48,J.F. Drake State,90002024,BARRY E SHELTON,Aug,31,2011,Instructional Salaries - Tempo,UNRESTRICTED,$375.00
48,J.F. Drake State,90002025,JACQUELINE M SHIVERS,Aug,31,2011,Instructional Salaries - Tempo,ADULT ED,"$1,975.00"
48,J.F. Drake State,90002026,LESLEY SHOTTS,Aug,31,2011,Instructional Salaries - Regul,UNRESTRICTED,"$4,336.13"
48,J.F. Drake State,90002027,AMANDA R SIMPSON,Aug,31,2011,Support Personnel Salaries - S,UNRESTRICTED,"$2,208.00"
48,J.F. Drake State,90002028,PATRICIA GORDON SIMS,Aug,31,2011,Administrative Salaries- Sched,UNRESTRICTED,"$9,245.01"
48,J.F. Drake State,90002029,RYAN E SMITH,Aug,31,2011,Administrative Salaries- Sched,TITLE III,"$5,577.00"
48,J.F. Drake State,90002030,DELORIS A SMOTHERS,Aug,31,2011,Instructional Salaries - Regul,UNRESTRICTED,"$6,765.34"
48,J.F. Drake State,90002031,JULIE P SPURGEON,Aug,31,2011,Support Personnel Salaries - S,UNRESTRICTED,"$1,964.25"
48,J.F. Drake State,90002032,VERLINDSEY B STEWART,Aug,31,2011,Instructional Salaries - Regul,UNRESTRICTED,"$3,067.34"
48,J.F. Drake State,90002033,MONICA SUDEALL-HAWKINS,Aug,31,2011,Instructional Salaries - Tempo,UNRESTRICTED,$450.00
48,J.F. Drake State,90002033,MONICA SUDEALL-HAWKINS,Aug,31,2011,Other Professional Salaries -,UNRESTRICTED,"$4,993.37"
48,J.F. Drake State,90002034,CHARLES A SULLINS JR,Aug,31,2011,Instructional Salaries - Tempo,UNRESTRICTED,$450.00
48,J.F. Drake State,90002035,SHANNON SUMMERS,Aug,31,2011,Instructional Salaries - Tempo,ADULT ED,$616.00
48,J.F. Drake State,90002036,DOCQUINN N TAYLOR,Aug,31,2011,Hourly Wages,STUDENT SUPPORT SERVICES,$255.00
48,J.F. Drake State,90002037,MALCOLM G TAYLOR,Aug,31,2011,Instructional Salaries - Tempo,UNRESTRICTED,$675.00
48,J.F. Drake State,90002038,RUSSELL B THOMAS,Aug,31,2011,Hourly Wages,NAT'L SCIENCE FOUNDATION,"$1,140.00"
48,J.F. Drake State,90002039,YOLANDA R TONEY,Aug,31,2011,Instructional Salaries - Tempo,UNRESTRICTED,$450.00
48,J.F. Drake State,90002040,JOY D TORNQUIST,Aug,31,2011,Instructional Salaries - Tempo,UNRESTRICTED,"$2,580.00"
48,J.F. Drake State,90002041,KRISTIN TREADWAY,Aug,31,2011,Support Personnel Salaries - S,ALLIED HEALTH,"$2,782.25"
48,J.F. Drake State,90002042,ELIZABETH A TUGGLE,Aug,31,2011,Instructional Salaries - Tempo,ADULT ED,"$1,274.00"
48,J.F. Drake State,90002043,RACHEL DAVIS TUNSTILL,Aug,31,2011,Instructional Salaries - Tempo,UNRESTRICTED,$270.00
48,J.F. Drake State,90002044,GILBERT T TURLEY,Aug,31,2011,Other Professional Salaries -,UNRESTRICTED,"$6,450.12"
48,J.F. Drake State,90002045,LETITIA E WALKER,Aug,31,2011,Support Personnel Salaries - S,UNRESTRICTED,"$3,229.38"
48,J.F. Drake State,90002046,TAMMY G WALKER,Aug,31,2011,Instructional Salaries - Tempo,ADULT ED,$189.00
48,J.F. Drake State,90002047,THEO NATHAN WALSTON,Aug,31,2011,Support Personnel Salaries - S,UNRESTRICTED,"$3,095.49"
48,J.F. Drake State,90002048,KATINA L WALTON,Aug,31,2011,Instructional Salaries - Tempo,ADULT ED,"$1,008.00"
48,J.F. Drake State,90002049,VINCENT E WHITE,Aug,31,2011,Instructional Salaries - Tempo,UNRESTRICTED,"$1,500.00"
48,J.F. Drake State,90002050,KRISHALON WILKERSON,Aug,31,2011,Support Personnel Salaries - S,TECH PREP FUNDS,"$1,688.83"
48,J.F. Drake State,90002050,KRISHALON WILKERSON,Aug,31,2011,Support Personnel Salaries - S,NAT'L SCIENCE FOUNDATION,"$1,688.83"
48,J.F. Drake State,90002051,CALANDRA S WILLIAMS,Aug,31,2011,Instructional Salaries - Tempo,ADULT ED,$575.00
48,J.F. Drake State,90002052,RICKY WILLINGHAM,Aug,31,2011,Other Professional Salaries -,TITLE III,"$6,886.00"
48,J.F. Drake State,90002053,TRACEY L WILSON,Aug,31,2011,Instructional Salaries - Tempo,UNRESTRICTED,"$1,500.00"
48,J.F. Drake State,90002054,BRANDI G WINCHESTER,Aug,31,2011,Instructional Salaries - Regul,UNRESTRICTED,"$2,164.61"
48,J.F. Drake State,90002054,BRANDI G WINCHESTER,Aug,31,2011,Instructional Salaries - Tempo,NAT'L SCIENCE FOUNDATION,$360.00
48,J.F. Drake State,90002055,GEORGE R WINN,Aug,31,2011,Instructional Salaries - Regul,UNRESTRICTED,"$5,123.00"
48,J.F. Drake State,90002055,GEORGE R WINN,Aug,31,2011,Instructional Salaries - Tempo,UNRESTRICTED,$450.00
48,J.F. Drake State,302278,CARLA R CLIFT,Aug,31,2011,Other Professional Salaries -,UNRESTRICTED,"$1,870.00"
48,J.F. Drake State,302279,KAROL C WADDELL,Aug,31,2011,Other Professional Salaries -,READY TO WORK,"$2,220.00"
48,J.F. Drake State,302280,INA M WILSON,Aug,31,2011,Support Personnel Salaries - S,ARRA STIMULUS FUNDS,"$4,027.83"
48,J.F. Drake State,302281,MARTHA J ROBERTS,Aug,31,2011,Support Personnel Salaries - S,UNRESTRICTED,"$4,940.37"
48,J.F. Drake State,302282,KONSTANCE L CHAMBLISS,Aug,31,2011,Instructional Salaries - Tempo,NAT'L SCIENCE FOUNDATION,$180.00
48,J.F. Drake State,302283,JAMEEN A MARKS,Aug,31,2011,Hourly Wages,UNRESTRICTED,$253.75
48,J.F. Drake State,302284,PATRICK T MCDONALD,Aug,31,2011,Support Personnel Salaries - S,STUDENT SUPPORT SERVICES,$570.00
48,J.F. Drake State,204760,BERNEY OFFICE SOLUTIONS,Aug,19,2011,Materials and Supplies,TITLE III,$10.44
48,J.F. Drake State,204761,VICKIE GREEN,Aug,19,2011,Out-of-State Travel,ALLIED HEALTH,$158.34
48,J.F. Drake State,204762,"HENRY, DEXTER",Aug,19,2011,In-State Travel,TITLE III,$436.70
48,J.F. Drake State,204763,DR. MOHAMMED R. KARIM,Aug,19,2011,Other Contractual Services,NSF CARRYOVER,"$1,625.00"
48,J.F. Drake State,204764,DR. MOHAMMED R. KARIM,Aug,19,2011,Other Contractual Services,NSF CARRYOVER,"$1,625.00"
48,J.F. Drake State,204765,DR. MOHAMMED R. KARIM,Aug,19,2011,Other Contractual Services,NSF CARRYOVER,"$1,625.00"
48,J.F. Drake State,204766,PREMA A MONTEIRO,Aug,19,2011,Out-of-State Travel,TITLE III,$547.67
48,J.F. Drake State,204767,"OFFICE DEPOT, INC.",Aug,19,2011,Materials and Supplies,TITLE III,$396.69
48,J.F. Drake State,204768,"RENTZ, JOYCE L.",Aug,19,2011,Out-of-State Travel,TITLE III,$405.04
48,J.F. Drake State,204769,SEXTON WELDING SUPPLY,Aug,19,2011,Materials and Supplies,PERKINS FUNDS,$519.00
48,J.F. Drake State,204770,"SHOTTS, LESLEY",Aug,19,2011,Out-of-State Travel,TITLE III,$309.52
48,J.F. Drake State,103599,BIRNBAUM INTERPRETING,Aug,17,2011,Other Contractual Services,UNRESTRICTED,"$5,146.05"
48,J.F. Drake State,103600,CORPORATE COMPUTER CENTER,Aug,17,2011,Computer Software,UNRESTRICTED,$495.00
48,J.F. Drake State,103601,HIGHLANDS OCCUPATIONAL ME,Aug,17,2011,Purchases for Resale,AUXILIARY,"$1,715.00"
48,J.F. Drake State,103602,J. A. MAJORS COMPANY,Aug,17,2011,Purchases for Resale,UNRESTRICTED,"$3,418.75"
48,J.F. Drake State,103603,"MOBILE MINI, INC",Aug,17,2011,Rent - Equipment,PLANT FUNDS,$215.00
48,J.F. Drake State,103604,MCGRAW HILL EDUCATION,Aug,17,2011,Purchases for Resale,UNRESTRICTED,"$27,579.23"
48,J.F. Drake State,103605,NACUBO,Aug,17,2011,Memberships,UNRESTRICTED,"$1,146.00"
48,J.F. Drake State,103606,PEARSON,Aug,17,2011,Purchases for Resale,UNRESTRICTED,"$50,091.70"
48,J.F. Drake State,103608,PROGRESSIVE INS,Aug,17,2011,Insurance and Bonding,UNRESTRICTED,$114.00
48,J.F. Drake State,103609,STATE DIV OF RISK MGT.,Aug,17,2011,Insurance and Bonding,UNRESTRICTED,$130.00
48,J.F. Drake State,103610,WASTE MANAGEMENT OF NORTH,Aug,17,2011,Other Contractual Services,ARMY GRANT,$207.62
48,J.F. Drake State,103610,WASTE MANAGEMENT OF NORTH,Aug,17,2011,Other Contractual Services,UNRESTRICTED,"$1,264.36"
48,J.F. Drake State,204724,ALLENS DISPLAY,Aug,12,2011,Materials and Supplies,TITLE III,"$1,682.40"
48,J.F. Drake State,204725,CAROLYN HENDERSON,Aug,12,2011,Out-of-State Travel,TITLE III,$321.50
48,J.F. Drake State,204726,KEMBA CHAMBERS,Aug,12,2011,Out-of-State Travel,TITLE III,$438.80
48,J.F. Drake State,204727,ENTERPRISE RENTAL CAR,Aug,12,2011,Out-of-State Travel,NAT'L SCIENCE FOUNDATION,$410.40
48,J.F. Drake State,204728,"HUGHES, PATRICIA",Aug,12,2011,Out-of-State Travel,TITLE III,$113.90
48,J.F. Drake State,204729,JELITA BRIDGEFORTH,Aug,12,2011,In-State Travel,TITLE III,$454.98
48,J.F. Drake State,204730,KATIE CHANCE,Aug,12,2011,In-State Travel,TITLE III,$215.34
48,J.F. Drake State,204731,"OFFICE DEPOT, INC.",Aug,12,2011,Materials and Supplies,NSF CARRYOVER,$569.29
48,J.F. Drake State,204732,"RAYMOND, ALICE",Aug,12,2011,Out-of-State Travel,TITLE III,"$1,446.70"
48,J.F. Drake State,204733,SHEA'S EXPRESS,Aug,12,2011,Materials and Supplies,NAT'L SCIENCE FOUNDATION,$261.56
48,J.F. Drake State,204734,SIGNS BY TOMORROW,Aug,12,2011,Materials and Supplies,STUDENT SUPPORT SERVICES,$225.00
48,J.F. Drake State,204735,"SIMS, PATRICIA G.",Aug,12,2011,Out-of-State Travel,TITLE III,$431.00
48,J.F. Drake State,204736,DELORIS SMOTHERS,Aug,12,2011,Out-of-State Travel,TITLE III,$231.07
48,J.F. Drake State,204737,THEO WALSTON,Aug,12,2011,In-State Travel,TITLE III,$20.00
48,J.F. Drake State,204738,WENDY GANNON,Aug,12,2011,Out-of-State Travel,ALLIED HEALTH,$160.17
48,J.F. Drake State,103567,CONDITIONED AIR SOLUTIONS,Aug,12,2011,Materials and Supplies,ARMY GRANT,$613.60
48,J.F. Drake State,103568,CROWN TROPHY,Aug,12,2011,Advertising and Promotions,UNRESTRICTED,$108.00
48,J.F. Drake State,103569,SCOTTSBORO DAILY SENTINEL,Aug,12,2011,Advertising and Promotions,UNRESTRICTED,$865.00
48,J.F. Drake State,103570,"DYNAMIC SECURITY, INC.",Aug,12,2011,Other Contractual Services,UNRESTRICTED,"$5,940.48"
48,J.F. Drake State,103571,"DYNAMIC SECURITY, INC.",Aug,12,2011,Other Contractual Services,UNRESTRICTED,"$5,940.48"
48,J.F. Drake State,103572,"DYNAMIC SECURITY, INC.",Aug,12,2011,Other Contractual Services,UNRESTRICTED,"$5,940.48"
48,J.F. Drake State,103573,ELECTROLUX,Aug,12,2011,Materials and Supplies,ARMY GRANT,$713.00
48,J.F. Drake State,103574,GLIDDEN PROFESSIONAL PAI,Aug,12,2011,Materials and Supplies,PLANT FUNDS,$984.82
48,J.F. Drake State,103574,GLIDDEN PROFESSIONAL PAI,Aug,12,2011,Materials and Supplies,UNRESTRICTED,$434.12
48,J.F. Drake State,103575,HIGH GROUND SOLUTIONS,Aug,12,2011,Other Contractual Services,UNRESTRICTED,"$4,500.00"
48,J.F. Drake State,103576,HOUGHTON MIFFLIN COMPANY,Aug,12,2011,Materials and Supplies,ADULT ED,"$1,120.00"
48,J.F. Drake State,103577,HUNTSVILLE TIMES,Aug,12,2011,Advertising and Promotions,UNRESTRICTED,"$2,287.68"
48,J.F. Drake State,103578,LABOR READY,Aug,12,2011,Other Contractual Services,PLANT FUNDS,"$3,141.60"
48,J.F. Drake State,103579,LOWE'S,Aug,12,2011,Materials and Supplies,UNRESTRICTED,$57.27
48,J.F. Drake State,103580,"MOBILE MINI, INC",Aug,12,2011,Rent - Equipment,PLANT FUNDS,$215.00
48,J.F. Drake State,103581,MID CITY SUPPLY CO,Aug,12,2011,Materials and Supplies,UNRESTRICTED,$110.11
48,J.F. Drake State,103582,MINUTEMAN PRESS,Aug,12,2011,"Printing, Reproduction and Bin",ADULT ED,"$1,906.22"
48,J.F. Drake State,103582,MINUTEMAN PRESS,Aug,12,2011,Materials and Supplies,UNRESTRICTED,$70.59
48,J.F. Drake State,103583,MINUTEMAN PRESS,Aug,12,2011,Advertising and Promotions,UNRESTRICTED,$293.84
48,J.F. Drake State,103584,"OFFICE DEPOT, INC.",Aug,12,2011,Materials and Supplies,ADULT ED,"$1,968.37"
48,J.F. Drake State,103585,PEARSON,Aug,12,2011,Purchases for Resale,UNRESTRICTED,$697.73
48,J.F. Drake State,103586,RANDALL A SCHRIMSHER,Aug,12,2011,Rent - Facilities,UNRESTRICTED,"$6,250.00"
48,J.F. Drake State,103587,SOUTHERNLINC WIRELESS,Aug,12,2011,Communications,UNRESTRICTED,$63.60
48,J.F. Drake State,103588,STANLEY STEEMER,Aug,12,2011,Materials and Supplies,ARMY GRANT,$332.35
48,J.F. Drake State,103589,SUCCESS MARKETING,Aug,12,2011,Advertising and Promotions,ADULT ED,"$2,140.85"
48,J.F. Drake State,103590,THE ALABAMA LAWNMASTERS,Aug,12,2011,Other Contractual Services,ARMY GRANT,$650.00
48,J.F. Drake State,103591,THE ALABAMA LAWNMASTERS,Aug,12,2011,Other Contractual Services,UNRESTRICTED,"$3,540.84"
48,J.F. Drake State,103592,"THOMAS ELECTRIC, INC",Aug,12,2011,Materials and Supplies,ARMY GRANT,$930.00
48,J.F. Drake State,103593,UPS,Aug,12,2011,Freight,UNRESTRICTED,$79.53
48,J.F. Drake State,103594,VERIZON WIRELESS,Aug,12,2011,Communications,UNRESTRICTED,"$1,789.37"
48,J.F. Drake State,103595,WASTE MANAGEMENT OF NORTH,Aug,12,2011,Other Contractual Services,ARMY GRANT,$207.62
48,J.F. Drake State,103595,WASTE MANAGEMENT OF NORTH,Aug,12,2011,Other Contractual Services,UNRESTRICTED,"$1,617.36"
48,J.F. Drake State,103552,AT&T LONG DISTANCE SERV.,Aug,8,2011,Communications,UNRESTRICTED,$156.06
48,J.F. Drake State,103554,"DYNAMIC SECURITY, INC.",Aug,8,2011,Other Contractual Services,UNRESTRICTED,"$5,940.48"
48,J.F. Drake State,103556,"MCALPINE, HELEN",Aug,8,2011,Advertising and Promotions,UNRESTRICTED,$183.01
48,J.F. Drake State,103557,MINUTEMAN PRESS,Aug,8,2011,Advertising and Promotions,UNRESTRICTED,$515.13
48,J.F. Drake State,103559,PRO-AIR SERVICES,Aug,8,2011,Maintenance and Repairs,PLANT FUNDS,$205.00
48,J.F. Drake State,103560,"QUALITY COUNTS, INC",Aug,8,2011,Purchases for Resale,AUXILIARY,$33.00
48,J.F. Drake State,103561,SAM'S CLUB/WALMART,Aug,8,2011,Materials and Supplies,UNRESTRICTED,$132.14
48,J.F. Drake State,103562,SCHINDLER ELEVATOR CORP,Aug,8,2011,Other Contractual Services,UNRESTRICTED,"$1,019.46"
48,J.F. Drake State,103563,SCHINDLER ELEVATOR CORP,Aug,8,2011,Other Contractual Services,UNRESTRICTED,"$1,019.46"
48,J.F. Drake State,103564,UPS,Aug,8,2011,Freight,UNRESTRICTED,$407.90
48,J.F. Drake State,103565,UPS,Aug,8,2011,Freight,UNRESTRICTED,$466.01
48,J.F. Drake State,103566,WITTICHEN SUPPLY COMPANY,Aug,8,2011,Materials and Supplies,UNRESTRICTED,$221.18
48,J.F. Drake State,204693,HAMPTON CONTRACTING,Aug,4,2011,Materials and Supplies,TITLE III,"$2,163.10"
48,J.F. Drake State,204689,HOLIDAY INN NAT'L AIRPORT,Aug,2,2011,Out-of-State Travel,STUDENT SUPPORT SERVICES,$164.27
48,J.F. Drake State,204690,JAIRUS MORROW,Aug,2,2011,Out-of-State Travel,STUDENT SUPPORT SERVICES,$275.00
48,J.F. Drake State,204691,JAIRUS MORROW,Aug,2,2011,Out-of-State Travel,STUDENT SUPPORT SERVICES,$60.00
48,J.F. Drake State,204692,"OFFICE DEPOT, INC.",Aug,2,2011,Materials and Supplies,TITLE III,$95.85
48,J.F. Drake State,302257,CARLA R CLIFT,Aug,2,2011,Other Professional Salaries -,UNRESTRICTED,"$1,870.00"
48,J.F. Drake State,71130,AT&T,Aug,1,2011,Communications,UNRESTRICTED,"$6,230.85"
48,J.F. Drake State,71132,COMCAST,Aug,1,2011,Communications,UNRESTRICTED,$94.76
48,J.F. Drake State,71133,COOK'S PEST CONTROL,Aug,1,2011,Other Contractual Services,UNRESTRICTED,$386.00
48,J.F. Drake State,71134,HUNTSVILLE UTILITIES,Aug,1,2011,Water and Sewer,UNRESTRICTED,"$1,672.93"
48,J.F. Drake State,71134,HUNTSVILLE UTILITIES,Aug,1,2011,Electricity,UNRESTRICTED,"$21,754.28"
48,J.F. Drake State,71134,HUNTSVILLE UTILITIES,Aug,1,2011,Electricity,ARMY GRANT,"$3,740.09"
48,J.F. Drake State,71134,HUNTSVILLE UTILITIES,Aug,1,2011,Gas and Heating Fuel,ARMY GRANT,$7.00
48,J.F. Drake State,71134,HUNTSVILLE UTILITIES,Aug,1,2011,Gas and Heating Fuel,UNRESTRICTED,$977.93
48,J.F. Drake State,71135,WOW! BUSINESS,Aug,1,2011,Communications,UNRESTRICTED,"$1,097.62"
48,J.F. Drake State,71136,PITNEY BOWES,Aug,1,2011,Postage,UNRESTRICTED,"$1,200.00"
48,J.F. Drake State,51150,HUNTSVILLE UTILITIES,Aug,1,2011,Electricity,UNRESTRICTED,$773.90
48,J.F. Drake State,61150,COMCAST,Aug,1,2011,Communications,UNRESTRICTED,$84.05
48,J.F. Drake State,302238,ROBBIE LEE AKINS,Jul,29,2011,Support Personnel Salaries - S,UNRESTRICTED,"$2,113.00"
48,J.F. Drake State,302239,DEMICA SHERMIR ALLISON,Jul,29,2011,Hourly Wages,NAT'L SCIENCE FOUNDATION,$970.00
48,J.F. Drake State,302240,DEAVIANCE FOWLKS BLEVINS,Jul,29,2011,Hourly Wages,NAT'L SCIENCE FOUNDATION,$455.00
48,J.F. Drake State,302241,STEPHANIE JONES BOUNDS,Jul,29,2011,Instructional Salaries - Regul,UNRESTRICTED,"$6,200.67"
48,J.F. Drake State,302242,KONSTANCE L CHAMBLISS,Jul,29,2011,Instructional Salaries - Tempo,NAT'L SCIENCE FOUNDATION,$143.25
48,J.F. Drake State,302242,KONSTANCE L CHAMBLISS,Jul,29,2011,Hourly Wages,NAT'L SCIENCE FOUNDATION,$195.00
48,J.F. Drake State,302243,APRIL CLEMENT,Jul,29,2011,Other Professional Salaries -,TITLE III,"$4,000.00"
48,J.F. Drake State,302244,RICHARD COLLIE,Jul,29,2011,Other Professional Salaries -,STUDENT SUPPORT SERVICES,"$3,750.00"
48,J.F. Drake State,302245,ROBERT N GRISSIM,Jul,29,2011,Instructional Salaries - Tempo,UNRESTRICTED,$750.00
48,J.F. Drake State,302246,CHARMAINE A HOVIS,Jul,29,2011,Instructional Salaries - Tempo,UNRESTRICTED,$720.00
48,J.F. Drake State,302247,JUSTIN M KELLY,Jul,29,2011,Instructional Salaries - Tempo,UNRESTRICTED,"$1,350.00"
48,J.F. Drake State,302248,TELLUS LANGFORD,Jul,29,2011,Instructional Salaries - Tempo,UNRESTRICTED,$450.00
48,J.F. Drake State,302249,JAIRUS JOVUN MORROW,Jul,29,2011,Hourly Wages,UNRESTRICTED,$315.63
48,J.F. Drake State,302250,RICHARD H NEWTON,Jul,29,2011,Instructional Salaries - Tempo,STUDENT SUPPORT SERVICES,$830.00
48,J.F. Drake State,302251,DOROTHY J NOBLE,Jul,29,2011,Instructional Salaries - Tempo,UNRESTRICTED,"$1,500.00"
48,J.F. Drake State,302252,JASMINE C REDUS,Jul,29,2011,Hourly Wages,NAT'L SCIENCE FOUNDATION,"$1,110.00"
48,J.F. Drake State,302253,SUNIL TYATA,Jul,29,2011,Instructional Salaries - Tempo,NAT'L SCIENCE FOUNDATION,"$1,550.00"
48,J.F. Drake State,90001778,LYSA AUGUSTIN,Jul,29,2011,Instructional Salaries - Tempo,ADULT ED,$649.00
48,J.F. Drake State,90001779,CAROLYN AVRITTE,Jul,29,2011,Instructional Salaries - Tempo,UNRESTRICTED,"$2,276.25"
48,J.F. Drake State,90001780,NELSON E BARNES,Jul,29,2011,Instructional Salaries - Tempo,UNRESTRICTED,"$1,350.00"
48,J.F. Drake State,90001781,BEN BATTLE,Jul,29,2011,Instructional Salaries - Regul,UNRESTRICTED,"$4,922.33"
48,J.F. Drake State,90001783,HAROLD E BATTS,Jul,29,2011,Other Professional Salaries -,UNRESTRICTED,"$8,649.00"
48,J.F. Drake State,90001785,CHARLOTTE KATHRYN BAUCOM,Jul,29,2011,Instructional Salaries - Tempo,UNRESTRICTED,"$1,800.00"
48,J.F. Drake State,90001786,ANGELA NICOLE BELL,Jul,29,2011,Instructional Salaries - Regul,UNRESTRICTED,"$5,009.00"
48,J.F. Drake State,90001788,PATRICE BIVINS,Jul,29,2011,Support Personnel Salaries - S,STUDENT SUPPORT SERVICES,"$1,889.83"
48,J.F. Drake State,90001789,JACQUELINE T BOOKER,Jul,29,2011,Support Personnel Salaries - S,NAT'L SCIENCE FOUNDATION,"$2,005.60"
48,J.F. Drake State,90001790,CHERYL BRAWLEY-KELLY,Jul,29,2011,Instructional Salaries - Tempo,UNRESTRICTED,"$2,700.00"
48,J.F. Drake State,90001791,APRIL T BROADEN,Jul,29,2011,Hourly Wages,NAT'L SCIENCE FOUNDATION,$720.00
48,J.F. Drake State,90001792,LASHONDA D BROWN,Jul,29,2011,Instructional Salaries - Tempo,UNRESTRICTED,$900.00
48,J.F. Drake State,90001793,BRUCE A BULLUCK,Jul,29,2011,Other Professional Salaries -,UNRESTRICTED,"$5,833.33"
48,J.F. Drake State,90001794,KHALILAH BURTON,Jul,29,2011,Instructional Salaries - Regul,UNRESTRICTED,"$2,796.75"
48,J.F. Drake State,90001794,KHALILAH BURTON,Jul,29,2011,Instructional Salaries - Regul,NAT'L SCIENCE FOUNDATION,$932.25
48,J.F. Drake State,90001794,KHALILAH BURTON,Jul,29,2011,Instructional Salaries - Regul,ARRA STIMULUS FUNDS,"$4,609.00"
48,J.F. Drake State,90001795,DERICK R CARPENAY,Jul,29,2011,Instructional Salaries - Tempo,UNRESTRICTED,$900.00
48,J.F. Drake State,90001796,KEMBA CHAMBERS,Jul,29,2011,Other Professional Salaries -,UNRESTRICTED,"$7,360.42"
48,J.F. Drake State,90001797,KATIE E CHANCE,Jul,29,2011,Support Personnel Salaries - S,UNRESTRICTED,"$2,485.42"
48,J.F. Drake State,90001798,ROGER CHEN,Jul,29,2011,Instructional Salaries - Tempo,UNRESTRICTED,$900.00
48,J.F. Drake State,90001798,ROGER CHEN,Jul,29,2011,Instructional Salaries - Tempo,STUDENT SUPPORT SERVICES,$690.00
48,J.F. Drake State,90001799,ADAM CLARK,Jul,29,2011,Instructional Salaries - Regul,UNRESTRICTED,"$4,571.00"
48,J.F. Drake State,90001799,ADAM CLARK,Jul,29,2011,Instructional Salaries - Tempo,UNRESTRICTED,$600.00
48,J.F. Drake State,90001801,CARLA R CLIFT,Jul,29,2011,Other Professional Salaries -,UNRESTRICTED,"$3,740.00"
48,J.F. Drake State,90001802,MONIQUE C COSBY,Jul,29,2011,Support Personnel Salaries - S,ARRA STIMULUS FUNDS,"$3,228.75"
48,J.F. Drake State,90001803,REGINA LYNNE CRAWFORD,Jul,29,2011,Support Personnel Salaries - S,UNRESTRICTED,"$3,080.00"
48,J.F. Drake State,90001804,DEIONE L CRUTCHER,Jul,29,2011,Support Personnel Salaries - S,ADULT ED,"$1,111.50"
48,J.F. Drake State,90001805,MATTIE D DAVIS,Jul,29,2011,Instructional Salaries - Regul,UNRESTRICTED,"$6,019.00"
48,J.F. Drake State,90001806,MARLO DRAKE,Jul,29,2011,Support Personnel Salaries - S,ARRA STIMULUS FUNDS,"$2,365.69"
48,J.F. Drake State,90001806,MARLO DRAKE,Jul,29,2011,Support Personnel Salaries - S,TITLE III,$788.56
48,J.F. Drake State,90001807,MARTHA W DUBEY,Jul,29,2011,Support Personnel Salaries - S,UNRESTRICTED,"$4,500.00"
48,J.F. Drake State,90001808,GABRIELE DUNSEITH,Jul,29,2011,Instructional Salaries - Tempo,UNRESTRICTED,"$1,080.00"
48,J.F. Drake State,90001809,VERNESSA M EDWARDS,Jul,29,2011,Instructional Salaries - Tempo,UNRESTRICTED,$750.00
48,J.F. Drake State,90001810,CHRISTIANA A OPARA EGBUJO,Jul,29,2011,Instructional Salaries - Tempo,UNRESTRICTED,"$2,310.00"
48,J.F. Drake State,90001811,RONALD E EGSON,Jul,29,2011,Instructional Salaries - Tempo,UNRESTRICTED,"$1,350.00"
48,J.F. Drake State,90001812,ROSELINE C ELIKE,Jul,29,2011,Instructional Salaries - Tempo,UNRESTRICTED,"$1,170.00"
48,J.F. Drake State,90001813,GAIL E FISCH,Jul,29,2011,Instructional Salaries - Regul,ADULT ED,"$6,270.83"
48,J.F. Drake State,90001814,NIKAELA YARBROUGH FLOURNO,Jul,29,2011,Instructional Salaries - Tempo,UNRESTRICTED,$900.00
48,J.F. Drake State,90001815,EDWIN T FORBES,Jul,29,2011,Instructional Salaries - Regul,UNRESTRICTED,"$8,836.42"
48,J.F. Drake State,90001815,EDWIN T FORBES,Jul,29,2011,Instructional Salaries - Tempo,UNRESTRICTED,$900.00
48,J.F. Drake State,90001816,HORACE L FRANKLIN JR,Jul,29,2011,Instructional Salaries - Regul,UNRESTRICTED,"$4,609.00"
48,J.F. Drake State,90001817,MATTIE B FREEMAN,Jul,29,2011,Instructional Salaries - Tempo,UNRESTRICTED,"$2,280.00"
48,J.F. Drake State,90001818,WENDY F GANNON,Jul,29,2011,Instructional Salaries - Regul,ALLIED HEALTH,"$4,885.00"
48,J.F. Drake State,90001819,FESSEHA GEBREMIKAEL,Jul,29,2011,Instructional Salaries - Tempo,UNRESTRICTED,$450.00
48,J.F. Drake State,90001820,SYMMETRIS K GOHANNA,Jul,29,2011,Instructional Salaries - Regul,UNRESTRICTED,"$5,399.33"
48,J.F. Drake State,90001821,LARDELL GOODLOE JR,Jul,29,2011,Instructional Salaries - Regul,UNRESTRICTED,"$4,737.33"
48,J.F. Drake State,90001821,LARDELL GOODLOE JR,Jul,29,2011,Instructional Salaries - Tempo,UNRESTRICTED,$750.00
48,J.F. Drake State,90001822,TIMOTHY RYAN GREEN,Jul,29,2011,Instructional Salaries - Regul,UNRESTRICTED,"$3,542.00"
48,J.F. Drake State,90001822,TIMOTHY RYAN GREEN,Jul,29,2011,Instructional Salaries - Tempo,UNRESTRICTED,"$1,500.00"
48,J.F. Drake State,90001823,VICKIE E GREEN,Jul,29,2011,Instructional Salaries - Regul,ALLIED HEALTH,"$4,609.00"
48,J.F. Drake State,90001824,CHARLES GROSS,Jul,29,2011,Instructional Salaries - Tempo,UNRESTRICTED,$900.00
48,J.F. Drake State,90001825,SAMUEL V GUISHARD,Jul,29,2011,Instructional Salaries - Tempo,UNRESTRICTED,"$1,500.00"
48,J.F. Drake State,90001826,MANELZA CRAWFORD HAMBRICK,Jul,29,2011,Support Personnel Salaries - S,UNRESTRICTED,"$2,411.00"
48,J.F. Drake State,90001827,KATRINA J HARRIS,Jul,29,2011,Support Personnel Salaries - S,UNRESTRICTED,$955.75
48,J.F. Drake State,90001827,KATRINA J HARRIS,Jul,29,2011,Support Personnel Salaries - S,TITLE III,"$2,867.25"
48,J.F. Drake State,90001828,CAROLYN HENDERSON,Jul,29,2011,Instructional Salaries - Tempo,UNRESTRICTED,$450.00
48,J.F. Drake State,90001828,CAROLYN HENDERSON,Jul,29,2011,Instructional Salaries - Regul,UNRESTRICTED,"$2,963.56"
48,J.F. Drake State,90001828,CAROLYN HENDERSON,Jul,29,2011,Instructional Salaries - Regul,NAT'L SCIENCE FOUNDATION,"$2,209.10"
48,J.F. Drake State,90001828,CAROLYN HENDERSON,Jul,29,2011,Instructional Salaries - Regul,ARRA STIMULUS FUNDS,"$3,663.75"
48,J.F. Drake State,90001829,DEXTER R HENRY,Jul,29,2011,Instructional Salaries - Tempo,UNRESTRICTED,$750.00
48,J.F. Drake State,90001829,DEXTER R HENRY,Jul,29,2011,Instructional Salaries - Regul,UNRESTRICTED,"$5,951.33"
48,J.F. Drake State,90001830,KARL W HENRY SR,Jul,29,2011,Instructional Salaries - Regul,UNRESTRICTED,"$5,174.00"
48,J.F. Drake State,90001830,KARL W HENRY SR,Jul,29,2011,Instructional Salaries - Tempo,UNRESTRICTED,"$1,200.00"
48,J.F. Drake State,90001830,KARL W HENRY SR,Jul,29,2011,Instructional Salaries - Regul,NAT'L SCIENCE FOUNDATION,"$1,591.33"
48,J.F. Drake State,90001831,ISSAC D HINES,Jul,29,2011,Hourly Wages,NAT'L SCIENCE FOUNDATION,"$1,900.00"
48,J.F. Drake State,90001832,DORIS HINTON,Jul,29,2011,Instructional Salaries - Regul,UNRESTRICTED,"$5,023.00"
48,J.F. Drake State,90001833,TERESA HOOPER,Jul,29,2011,Instructional Salaries - Tempo,UNRESTRICTED,"$1,140.00"
48,J.F. Drake State,90001834,CANDICE HOWELL,Jul,29,2011,Instructional Salaries - Tempo,UNRESTRICTED,$600.00
48,J.F. Drake State,90001835,PATRICIA HUGHES,Jul,29,2011,Administrative Salaries- Sched,UNRESTRICTED,"$7,893.08"
48,J.F. Drake State,90001837,JAN J HYMAN,Jul,29,2011,Support Personnel Salaries - S,ALLIED HEALTH,"$3,154.50"
48,J.F. Drake State,90001839,NEOKA JANE IVEY,Jul,29,2011,Support Personnel Salaries - S,UNRESTRICTED,"$1,889.83"
48,J.F. Drake State,90001840,SARAH J JAMAR,Jul,29,2011,Instructional Salaries - Tempo,UNRESTRICTED,"$1,350.00"
48,J.F. Drake State,90001840,SARAH J JAMAR,Jul,29,2011,Instructional Salaries - Tempo,STUDENT SUPPORT SERVICES,$412.50
48,J.F. Drake State,90001841,DONYALE D JONES,Jul,29,2011,Support Personnel Salaries - S,TITLE III,"$3,303.41"
48,J.F. Drake State,90001842,PINEY L JORDAN,Jul,29,2011,Instructional Salaries - Tempo,UNRESTRICTED,"$2,235.00"
48,J.F. Drake State,90001843,NGOZI A KAMALU,Jul,29,2011,Instructional Salaries - Tempo,UNRESTRICTED,$450.00
48,J.F. Drake State,90001844,CHERYL P KEMP,Jul,29,2011,Instructional Salaries - Tempo,UNRESTRICTED,"$2,400.00"
48,J.F. Drake State,90001845,PRAVEENA KOMMIDI,Jul,29,2011,Instructional Salaries - Regul,UNRESTRICTED,"$5,881.00"
48,J.F. Drake State,90001845,PRAVEENA KOMMIDI,Jul,29,2011,Instructional Salaries - Tempo,UNRESTRICTED,$450.00
48,J.F. Drake State,90001846,SUSAN KREULEN,Jul,29,2011,Instructional Salaries - Tempo,ADULT ED,"$1,176.00"
48,J.F. Drake State,90001847,NICHOLAS PAUL KSEPKA,Jul,29,2011,Hourly Wages,UNRESTRICTED,"$1,695.00"
48,J.F. Drake State,90001848,HONG THUYDUC LAM,Jul,29,2011,Instructional Salaries - Regul,UNRESTRICTED,"$5,638.33"
48,J.F. Drake State,90001849,JOYCE P LAMAR,Jul,29,2011,Support Personnel Salaries - S,UNRESTRICTED,"$4,419.17"
48,J.F. Drake State,90001850,DEBORAH WORLEY LEMIRE,Jul,29,2011,Instructional Salaries - Tempo,UNRESTRICTED,$750.00
48,J.F. Drake State,90001851,JAMEEN A MARKS,Jul,29,2011,Hourly Wages,UNRESTRICTED,$265.63
48,J.F. Drake State,90001852,MICHEAL V MAXTON,Jul,29,2011,Instructional Salaries - Tempo,UNRESTRICTED,$900.00
48,J.F. Drake State,90001853,MUKESHA MBUGUJE,Jul,29,2011,Instructional Salaries - Tempo,UNRESTRICTED,$810.00
48,J.F. Drake State,90001854,HELEN T MCALPINE,Jul,29,2011,Administrative Salaries- Sched,UNRESTRICTED,"$14,266.45"
48,J.F. Drake State,90001854,HELEN T MCALPINE,Jul,29,2011,President's Expense Allowance,UNRESTRICTED,$200.00
48,J.F. Drake State,90001854,HELEN T MCALPINE,Jul,29,2011,Housing Allowance,UNRESTRICTED,"$1,000.00"
48,J.F. Drake State,90001855,DEMETIUS L MCCARTY,Jul,29,2011,Support Personnel Salaries - S,UNRESTRICTED,"$2,113.00"
48,J.F. Drake State,90001856,PATRICK T MCDONALD,Jul,29,2011,Support Personnel Salaries - S,STUDENT SUPPORT SERVICES,"$1,140.00"
48,J.F. Drake State,90001856,PATRICK T MCDONALD,Jul,29,2011,Hourly Wages,NAT'L SCIENCE FOUNDATION,$360.00
48,J.F. Drake State,90001858,SCOTTY MCLAUGHLIN,Jul,29,2011,Instructional Salaries - Tempo,UNRESTRICTED,$300.00
48,J.F. Drake State,90001858,SCOTTY MCLAUGHLIN,Jul,29,2011,Instructional Salaries - Regul,UNRESTRICTED,"$6,535.00"
48,J.F. Drake State,90001859,TABITHA D MCWILLIAMS,Jul,29,2011,Support Personnel Salaries - S,UNRESTRICTED,"$2,038.66"
48,J.F. Drake State,90001860,DEBORAH A MILLING,Jul,29,2011,Instructional Salaries - Regul,UNRESTRICTED,"$11,097.33"
48,J.F. Drake State,90001861,SAMMY J MILTON,Jul,29,2011,Support Personnel Salaries - S,UNRESTRICTED,"$3,452.83"
48,J.F. Drake State,90001862,PREMA A MONTEIRO,Jul,29,2011,Instructional Salaries - Regul,UNRESTRICTED,"$4,470.67"
48,J.F. Drake State,90001863,ACOLEA J MOORE,Jul,29,2011,Instructional Salaries - Tempo,UNRESTRICTED,$450.00
48,J.F. Drake State,90001864,BRUCE D MORRISON,Jul,29,2011,Support Personnel Salaries - S,UNRESTRICTED,"$4,196.17"
48,J.F. Drake State,90001865,KAREN NEIR,Jul,29,2011,Instructional Salaries - Tempo,UNRESTRICTED,"$2,850.00"
48,J.F. Drake State,90001866,JENNIFER O'LINGER,Jul,29,2011,Other Professional Salaries -,UNRESTRICTED,"$4,333.00"
48,J.F. Drake State,90001867,DONALD ORR,Jul,29,2011,Support Personnel Salaries - S,UNRESTRICTED,"$3,750.17"
48,J.F. Drake State,90001868,COURTNEY P PATTERSON,Jul,29,2011,Instructional Salaries - Tempo,ADULT ED,$261.00
48,J.F. Drake State,90001869,JENNIFER E PATTERSON,Jul,29,2011,Instructional Salaries - Regul,UNRESTRICTED,"$9,599.09"
48,J.F. Drake State,90001870,ALBERT B PETERSON II,Jul,29,2011,Instructional Salaries - Tempo,ADULT ED,$299.00
48,J.F. Drake State,90001871,JERROLD DION PHIPPS,Jul,29,2011,Instructional Salaries - Tempo,UNRESTRICTED,"$1,350.00"
48,J.F. Drake State,90001872,INODU TONY PIRI,Jul,29,2011,Instructional Salaries - Tempo,UNRESTRICTED,$450.00
48,J.F. Drake State,90001873,JAMES W PLEASURE,Jul,29,2011,Hourly Wages,NAT'L SCIENCE FOUNDATION,"$1,700.00"
48,J.F. Drake State,90001874,GWENDOLYN D POPE,Jul,29,2011,Instructional Salaries - Regul,UNRESTRICTED,"$12,642.75"
48,J.F. Drake State,90001875,BARBARA J PRIMEAUX,Jul,29,2011,Support Personnel Salaries - S,UNRESTRICTED,"$2,336.00"
48,J.F. Drake State,90001876,FREDRICK O PRUITT,Jul,29,2011,Instructional Salaries - Regul,UNRESTRICTED,"$4,609.00"
48,J.F. Drake State,90001876,FREDRICK O PRUITT,Jul,29,2011,Instructional Salaries - Tempo,UNRESTRICTED,"$1,950.00"
48,J.F. Drake State,90001877,MICHAEL RADDEN,Jul,29,2011,Instructional Salaries - Tempo,UNRESTRICTED,"$1,350.00"
48,J.F. Drake State,90001878,LORAINE RAGIN,Jul,29,2011,Instructional Salaries - Regul,UNRESTRICTED,"$3,542.00"
48,J.F. Drake State,90001879,ALICE G RAYMOND,Jul,29,2011,Instructional Salaries - Regul,UNRESTRICTED,"$7,523.33"
48,J.F. Drake State,90001880,JOYCE L RENTZ,Jul,29,2011,Instructional Salaries - Regul,UNRESTRICTED,"$6,251.00"
48,J.F. Drake State,90001880,JOYCE L RENTZ,Jul,29,2011,Instructional Salaries - Tempo,UNRESTRICTED,$900.00
48,J.F. Drake State,90001881,JOHN REUTTER III,Jul,29,2011,Other Professional Salaries -,NAT'L SCIENCE FOUNDATION,"$6,616.75"
48,J.F. Drake State,90001882,LYSCELLE M REYES,Jul,29,2011,Hourly Wages,NAT'L SCIENCE FOUNDATION,"$1,540.00"
48,J.F. Drake State,90001883,MARTHA J ROBERTS,Jul,29,2011,Support Personnel Salaries - S,UNRESTRICTED,"$4,940.33"
48,J.F. Drake State,90001884,BARRY E SHELTON,Jul,29,2011,Instructional Salaries - Tempo,UNRESTRICTED,"$2,700.00"
48,J.F. Drake State,90001885,JACQUELINE M SHIVERS,Jul,29,2011,Instructional Salaries - Tempo,ADULT ED,"$2,137.50"
48,J.F. Drake State,90001886,LESLEY SHOTTS,Jul,29,2011,Instructional Salaries - Regul,UNRESTRICTED,"$4,336.17"
48,J.F. Drake State,90001887,AMANDA R SIMPSON,Jul,29,2011,Support Personnel Salaries - S,UNRESTRICTED,"$2,112.00"
48,J.F. Drake State,90001888,PATRICIA GORDON SIMS,Jul,29,2011,Administrative Salaries- Sched,UNRESTRICTED,"$9,245.09"
48,J.F. Drake State,90001889,RYAN E SMITH,Jul,29,2011,Other Professional Salaries -,ADULT ED,"$4,000.00"
48,J.F. Drake State,90001890,WANDA L SMITH,Jul,29,2011,Instructional Salaries - Tempo,UNRESTRICTED,"$1,440.00"
48,J.F. Drake State,90001891,DELORIS A SMOTHERS,Jul,29,2011,Instructional Salaries - Regul,UNRESTRICTED,"$6,765.33"
48,J.F. Drake State,90001892,JULIE P SPURGEON,Jul,29,2011,Support Personnel Salaries - S,UNRESTRICTED,"$1,964.25"
48,J.F. Drake State,90001893,VERLINDSEY B STEWART,Jul,29,2011,Instructional Salaries - Regul,UNRESTRICTED,"$3,067.33"
48,J.F. Drake State,90001894,MONICA SUDEALL-HAWKINS,Jul,29,2011,Instructional Salaries - Tempo,UNRESTRICTED,$450.00
48,J.F. Drake State,90001894,MONICA SUDEALL-HAWKINS,Jul,29,2011,Other Professional Salaries -,UNRESTRICTED,"$4,993.33"
48,J.F. Drake State,90001895,CHARLES A SULLINS JR,Jul,29,2011,Instructional Salaries - Tempo,UNRESTRICTED,$450.00
48,J.F. Drake State,90001896,SHANNON SUMMERS,Jul,29,2011,Instructional Salaries - Tempo,ADULT ED,$836.00
48,J.F. Drake State,90001897,DOCQUINN N TAYLOR,Jul,29,2011,Hourly Wages,STUDENT SUPPORT SERVICES,$390.00
48,J.F. Drake State,90001898,MALCOLM G TAYLOR,Jul,29,2011,Instructional Salaries - Tempo,UNRESTRICTED,$270.00
48,J.F. Drake State,90001899,RUSSELL B THOMAS,Jul,29,2011,Hourly Wages,NAT'L SCIENCE FOUNDATION,"$1,140.00"
48,J.F. Drake State,90001900,YOLANDA R TONEY,Jul,29,2011,Instructional Salaries - Tempo,UNRESTRICTED,$450.00
48,J.F. Drake State,90001901,JOY D TORNQUIST,Jul,29,2011,Instructional Salaries - Tempo,UNRESTRICTED,"$2,850.00"
48,J.F. Drake State,90001902,KRISTIN TREADWAY,Jul,29,2011,Support Personnel Salaries - S,ALLIED HEALTH,"$2,782.25"
48,J.F. Drake State,90001903,ELIZABETH A TUGGLE,Jul,29,2011,Instructional Salaries - Tempo,ADULT ED,"$1,612.00"
48,J.F. Drake State,90001904,RACHEL DAVIS TUNSTILL,Jul,29,2011,Instructional Salaries - Tempo,UNRESTRICTED,"$1,080.00"
48,J.F. Drake State,90001905,GILBERT T TURLEY,Jul,29,2011,Other Professional Salaries -,UNRESTRICTED,"$6,450.08"
48,J.F. Drake State,90001906,KAROL C WADDELL,Jul,29,2011,Other Professional Salaries -,READY TO WORK,"$1,770.00"
48,J.F. Drake State,90001907,LETITIA E WALKER,Jul,29,2011,Support Personnel Salaries - S,UNRESTRICTED,"$3,229.42"
48,J.F. Drake State,90001908,TAMMY G WALKER,Jul,29,2011,Instructional Salaries - Tempo,ADULT ED,$522.00
48,J.F. Drake State,90001909,THEO NATHAN WALSTON,Jul,29,2011,Support Personnel Salaries - S,UNRESTRICTED,"$3,095.41"
48,J.F. Drake State,90001910,KATINA L WALTON,Jul,29,2011,Instructional Salaries - Tempo,ADULT ED,"$1,134.00"
48,J.F. Drake State,90001911,VINCENT E WHITE,Jul,29,2011,Instructional Salaries - Tempo,UNRESTRICTED,"$1,500.00"
48,J.F. Drake State,90001912,DWAYNIA WILKERSON,Jul,29,2011,Hourly Wages,STUDENT SUPPORT SERVICES,$315.00
48,J.F. Drake State,90001913,KRISHALON WILKERSON,Jul,29,2011,Support Personnel Salaries - S,TECH PREP FUNDS,"$1,688.83"
48,J.F. Drake State,90001913,KRISHALON WILKERSON,Jul,29,2011,Support Personnel Salaries - S,NAT'L SCIENCE FOUNDATION,"$1,688.83"
48,J.F. Drake State,90001914,CALANDRA S WILLIAMS,Jul,29,2011,Instructional Salaries - Tempo,ADULT ED,$494.50
48,J.F. Drake State,90001915,RICKY WILLINGHAM,Jul,29,2011,Other Professional Salaries -,TITLE III,"$6,886.00"
48,J.F. Drake State,90001916,INA M WILSON,Jul,29,2011,Other Professional Salaries -,TITLE III,"$4,333.33"
48,J.F. Drake State,90001917,TRACEY L WILSON,Jul,29,2011,Instructional Salaries - Tempo,UNRESTRICTED,"$1,500.00"
48,J.F. Drake State,90001918,GEORGE R WINN,Jul,29,2011,Instructional Salaries - Regul,UNRESTRICTED,"$5,123.00"
48,J.F. Drake State,90001918,GEORGE R WINN,Jul,29,2011,Instructional Salaries - Tempo,UNRESTRICTED,$450.00
48,J.F. Drake State,90001919,DANIEL W YOCOM,Jul,29,2011,Support Personnel Salaries - S,CAREER COACHES,$576.03
48,J.F. Drake State,204603,CFGEAR,Jul,28,2011,Materials and Supplies,NAT'L SCIENCE FOUNDATION,"$1,737.50"
48,J.F. Drake State,204604,DALLAS MIDWEST,Jul,28,2011,Institutional Use,STUDENT SUPPORT SERVICES,$752.00
48,J.F. Drake State,204605,"HUGHES, PATRICIA",Jul,28,2011,Out-of-State Travel,TITLE III,"$1,033.39"
48,J.F. Drake State,204606,LABOR READY,Jul,28,2011,Other Contractual Services,TITLE III,$962.13
48,J.F. Drake State,204607,MAGNA PUBLICATIONS,Jul,28,2011,In-State Travel,TITLE III,$289.00
48,J.F. Drake State,204608,PREMA A MONTEIRO,Jul,28,2011,Out-of-State Travel,TITLE III,$191.64
48,J.F. Drake State,204609,PEARSON EDUCATION CTR,Jul,28,2011,Materials and Supplies,ALLIED HEALTH,"$3,318.99"
48,J.F. Drake State,204610,SCRIP-SAFE SECURITY,Jul,28,2011,Materials and Supplies,TITLE III,$163.00
48,J.F. Drake State,103529,BANKS INDUSTRIES INC.,Jul,28,2011,Materials and Supplies,UNRESTRICTED,$34.93
48,J.F. Drake State,103530,CONDITIONED AIR SOLUTIONS,Jul,28,2011,Materials and Supplies,ARMY GRANT,$79.00
48,J.F. Drake State,103531,"DYNAMIC SECURITY, INC.",Jul,28,2011,Other Contractual Services,UNRESTRICTED,"$6,348.38"
48,J.F. Drake State,103532,ELSEVIER,Jul,28,2011,Purchases for Resale,AUXILIARY,"$4,950.00"
48,J.F. Drake State,103533,GED TESTING PROGRAM,Jul,28,2011,Materials and Supplies,UNRESTRICTED,$134.00
48,J.F. Drake State,103534,KOORSEN PROTECTION SERVIC,Jul,28,2011,Other Contractual Services,UNRESTRICTED,$260.00
48,J.F. Drake State,103535,KOORSEN PROTECTION SERVIC,Jul,28,2011,Materials and Supplies,ARMY GRANT,$133.55
48,J.F. Drake State,103536,LANDERS MCLARTY,Jul,28,2011,Maintenance and Repairs,UNRESTRICTED,$250.00
48,J.F. Drake State,103537,"LANIER,FORD,SHAVER &",Jul,28,2011,Legal Services,UNRESTRICTED,"$2,101.24"
48,J.F. Drake State,103538,"LANIER,FORD,SHAVER &",Jul,28,2011,Legal Services,UNRESTRICTED,"$4,658.18"
48,J.F. Drake State,103539,LOWE'S,Jul,28,2011,Materials and Supplies,UNRESTRICTED,$113.94
48,J.F. Drake State,103541,THE ALABAMA LAWNMASTERS,Jul,28,2011,Other Contractual Services,UNRESTRICTED,"$1,215.00"
48,J.F. Drake State,103542,"TRUESCREEN, INC",Jul,28,2011,Other Contractual Services,UNRESTRICTED,$13.00
48,J.F. Drake State,103543,WOLAVER,Jul,28,2011,Other Contractual Services,PLANT FUNDS,"$13,672.00"
48,J.F. Drake State,103496,BARNES & NOBLE BOOKSTORES,Jul,27,2011,Purchases for Resale,UNRESTRICTED,$24.00
48,J.F. Drake State,103497,CHEVRON CARD SERVICES,Jul,27,2011,Gasoline and Oil - Motor Vehic,UNRESTRICTED,$689.69
48,J.F. Drake State,103498,"DYNAMIC SECURITY, INC.",Jul,27,2011,Other Contractual Services,UNRESTRICTED,"$5,940.48"
48,J.F. Drake State,103499,THE LAMAR COMPANIES,Jul,27,2011,Advertising and Promotions,UNRESTRICTED,"$1,500.00"
48,J.F. Drake State,103500,MCGRAW HILL EDUCATION,Jul,27,2011,Materials and Supplies,ADULT ED,$593.54
48,J.F. Drake State,103501,MCGRAW-HILL BOOK COMPANY,Jul,27,2011,Materials and Supplies,ADULT ED,$240.24
48,J.F. Drake State,103502,MCGRAW-HILL BOOK COMPANY,Jul,27,2011,Purchases for Resale,UNRESTRICTED,$680.98
48,J.F. Drake State,103503,PEARSON,Jul,27,2011,Purchases for Resale,UNRESTRICTED,"$13,872.97"
48,J.F. Drake State,103504,RANDALL A SCHRIMSHER,Jul,27,2011,Rent - Facilities,UNRESTRICTED,"$6,250.00"
48,J.F. Drake State,103505,SOUTHERN ASSOCIATION OF C,Jul,27,2011,Institutional Use,UNRESTRICTED,$500.00
48,J.F. Drake State,103506,THE ALABAMA LAWNMASTERS,Jul,27,2011,Other Contractual Services,UNRESTRICTED,"$3,045.00"
48,J.F. Drake State,103507,THE ALABAMA LAWNMASTERS,Jul,27,2011,Other Contractual Services,UNRESTRICTED,$650.00
48,J.F. Drake State,103508,THE ALABAMA LAWNMASTERS,Jul,27,2011,Other Contractual Services,UNRESTRICTED,"$2,845.00"
48,J.F. Drake State,204598,BERNEY OFFICE SOLUTIONS,Jul,25,2011,Materials and Supplies,TITLE III,"$1,088.20"
48,J.F. Drake State,204599,LOWE'S,Jul,25,2011,Materials and Supplies,TITLE III,$901.01
48,J.F. Drake State,204600,"MCALPINE, HELEN",Jul,25,2011,In-State Travel,TITLE III,$693.72
48,J.F. Drake State,204601,"POPE, GWENDOLYN M.",Jul,25,2011,Out-of-State Travel,TITLE III,$155.19
48,J.F. Drake State,204602,SOUTHEASTERN BUSINESS MAC,Jul,25,2011,Service Contracts on Equipment,TITLE III,$357.09
48,J.F. Drake State,103483,ACT,Jul,21,2011,Materials and Supplies,UNRESTRICTED,$357.50
48,J.F. Drake State,103484,CONDITIONED AIR SOLUTIONS,Jul,21,2011,Materials and Supplies,ARMY GRANT,$685.45
48,J.F. Drake State,103485,"DYNAMIC SECURITY, INC.",Jul,21,2011,Other Contractual Services,UNRESTRICTED,"$6,377.28"
48,J.F. Drake State,103486,GRAINGER,Jul,21,2011,Maintenance and Repairs,UNRESTRICTED,-$507.44
48,J.F. Drake State,103487,"LANIER,FORD,SHAVER &",Jul,21,2011,Legal Services,UNRESTRICTED,"$3,275.85"
48,J.F. Drake State,103488,"LANIER,FORD,SHAVER &",Jul,21,2011,Legal Services,UNRESTRICTED,"$1,881.00"
48,J.F. Drake State,103489,"LANIER,FORD,SHAVER &",Jul,21,2011,Legal Services,UNRESTRICTED,"$6,518.00"
48,J.F. Drake State,103490,"LANIER,FORD,SHAVER &",Jul,21,2011,Legal Services,UNRESTRICTED,"$4,504.52"
48,J.F. Drake State,103491,OAKHALL INDUSTRIES,Jul,21,2011,Institutional Use,UNRESTRICTED,$86.39
48,J.F. Drake State,103492,"OFFICE DEPOT, INC.",Jul,21,2011,Materials and Supplies,ADULT ED,$442.89
48,J.F. Drake State,103493,SAFETY KLEEN CORPORATION,Jul,21,2011,Other Contractual Services,UNRESTRICTED,$183.23
48,J.F. Drake State,103494,UPS,Jul,21,2011,Freight,UNRESTRICTED,$2.65
48,J.F. Drake State,103495,VON BRAUN CENTER,Jul,21,2011,Institutional Use,UNRESTRICTED,"$9,444.00"
48,J.F. Drake State,204591,BUBBA'S,Jul,20,2011,Materials and Supplies,NSF CARRYOVER,$650.00
48,J.F. Drake State,204592,"DAVIS, MATTIE",Jul,20,2011,Out-of-State Travel,ALLIED HEALTH,$302.84
48,J.F. Drake State,204593,DORIS HINTON,Jul,20,2011,In-State Travel,ALLIED HEALTH,$328.01
48,J.F. Drake State,204594,JENNIFER OLINGER,Jul,20,2011,Out-of-State Travel,TITLE III,$237.60
48,J.F. Drake State,204595,RADISSON HOTEL,Jul,20,2011,Out-of-State Travel,TITLE III,$186.14
48,J.F. Drake State,204596,SAM'S CLUB/WALMART,Jul,20,2011,Materials and Supplies,NSF CARRYOVER,$166.21
48,J.F. Drake State,204597,"SIMS, PATRICIA G.",Jul,20,2011,Out-of-State Travel,TITLE III,$60.00
48,J.F. Drake State,103444,"ALLIANT DATA SYSTEM,INC",Jul,19,2011,Other Contractual Services,UNRESTRICTED,"$14,586.08"
48,J.F. Drake State,103445,AVIZENT,Jul,19,2011,Insurance and Bonding,UNRESTRICTED,$58.33
48,J.F. Drake State,103446,BANKS INDUSTRIES INC.,Jul,19,2011,Materials and Supplies,UNRESTRICTED,"$1,290.05"
48,J.F. Drake State,103448,BIRNBAUM INTERPRETING,Jul,19,2011,Other Contractual Services,UNRESTRICTED,$948.00
48,J.F. Drake State,103449,CDW-G,Jul,19,2011,Technology - Capitalized,UNRESTRICTED,"$3,923.60"
48,J.F. Drake State,103450,CDW-G,Jul,19,2011,Materials and Supplies,UNRESTRICTED,$744.79
48,J.F. Drake State,103451,CDW-G,Jul,19,2011,Technology - Capitalized,UNRESTRICTED,$884.59
48,J.F. Drake State,103452,DEPT OF INDUSTRIAL RELATI,Jul,19,2011,Investment Transaction Expense,UNRESTRICTED,"$7,209.25"
48,J.F. Drake State,103453,"DYNAMIC SECURITY, INC.",Jul,19,2011,Other Contractual Services,UNRESTRICTED,"$5,929.56"
48,J.F. Drake State,103454,ELSEVIER/HESI,Jul,19,2011,Purchases for Resale,AUXILIARY,"$2,080.00"
48,J.F. Drake State,103455,HUNTSVILLE TIMES,Jul,19,2011,Advertising and Promotions,UNRESTRICTED,$336.20
48,J.F. Drake State,103457,KOORSEN PROTECTION SERVIC,Jul,19,2011,Other Contractual Services,UNRESTRICTED,$875.00
48,J.F. Drake State,103459,LOOK ADVERTISING INC,Jul,19,2011,Advertising and Promotions,ADULT ED,$350.00
48,J.F. Drake State,103461,"MCGRAW-HILL, INC",Jul,19,2011,Materials and Supplies,ADULT ED,"$6,997.50"
48,J.F. Drake State,103462,MERCER N. AMERICAN,Jul,19,2011,Purchases for Resale,UNRESTRICTED,"$4,295.39"
48,J.F. Drake State,103463,MID CITY SUPPLY CO,Jul,19,2011,Materials and Supplies,UNRESTRICTED,"$4,881.88"
48,J.F. Drake State,103464,MID CITY SUPPLY CO,Jul,19,2011,Materials and Supplies,UNRESTRICTED,"$1,074.10"
48,J.F. Drake State,103465,PARKWAY SCRUBS,Jul,19,2011,Purchases for Resale,UNRESTRICTED,$115.80
48,J.F. Drake State,103466,PARKWAY SCRUBS,Jul,19,2011,Purchases for Resale,UNRESTRICTED,$109.50
48,J.F. Drake State,103467,PARKWAY SCRUBS,Jul,19,2011,Purchases for Resale,UNRESTRICTED,$121.50
48,J.F. Drake State,103471,SAM'S CLUB/WALMART,Jul,19,2011,Materials and Supplies,UNRESTRICTED,$118.62
48,J.F. Drake State,103472,SIGNS BY TOMORROW,Jul,19,2011,Materials and Supplies,UNRESTRICTED,$160.00
48,J.F. Drake State,103473,SOUTHERNLINC WIRELESS,Jul,19,2011,Communications,UNRESTRICTED,$127.20
48,J.F. Drake State,103474,THE ALABAMA LAWNMASTERS,Jul,19,2011,Other Contractual Services,UNRESTRICTED,"$6,540.00"
48,J.F. Drake State,103475,"THE SOLUTIONS TEAM, INC",Jul,19,2011,Other Contractual Services,UNRESTRICTED,$200.00
48,J.F. Drake State,204577,FINANCIAL MANAGEMENT ASSO,Jul,18,2011,In-State Travel,TITLE III,$30.00
48,J.F. Drake State,204577,FINANCIAL MANAGEMENT ASSO,Jul,18,2011,In-State Travel,NAT'L SCIENCE FOUNDATION,$10.00
48,J.F. Drake State,204554,BARBARA PRIMEAUX,Jul,15,2011,In-State Travel,TITLE III,$225.00
48,J.F. Drake State,204555,BERNEY OFFICE SOLUTIONS,Jul,15,2011,Materials and Supplies,TITLE III,$158.59
48,J.F. Drake State,204556,CDW-G,Jul,15,2011,Materials and Supplies,NSF CARRYOVER,$617.94
48,J.F. Drake State,204557,CDW-G,Jul,15,2011,Materials and Supplies,TITLE III,"$1,031.06"
48,J.F. Drake State,204558,COPELAND CLEANERS,Jul,15,2011,Materials and Supplies,NSF CARRYOVER,$224.96
48,J.F. Drake State,204559,"DAVIS, MATTIE",Jul,15,2011,Out-of-State Travel,ALLIED HEALTH,$269.98
48,J.F. Drake State,204560,DORIS HINTON,Jul,15,2011,In-State Travel,ALLIED HEALTH,$328.01
48,J.F. Drake State,204561,ENTERPRISE RENTAL CAR,Jul,15,2011,Out-of-State Travel,PERKINS FUNDS,$455.87
48,J.F. Drake State,204562,HAMPTON CONTRACTING,Jul,15,2011,Materials and Supplies,TITLE III,"$2,163.10"
48,J.F. Drake State,204563,HIGH GROUND SOLUTIONS,Jul,15,2011,Materials and Supplies,PERKINS FUNDS,"$4,500.00"
48,J.F. Drake State,204564,"HUGHES, PATRICIA",Jul,15,2011,In-State Travel,TITLE III,$275.71
48,J.F. Drake State,204565,INA WILSON,Jul,15,2011,Out-of-State Travel,TITLE III,"$1,074.52"
48,J.F. Drake State,204566,INSTRUCT TECH COUNCIL,Jul,15,2011,Memberships,TITLE III,$450.00
48,J.F. Drake State,204567,KRISHALON WILKERSON,Jul,15,2011,Out-of-State Travel,STUDENT SUPPORT SERVICES,$360.00
48,J.F. Drake State,204568,KRISHALON WILKERSON,Jul,15,2011,Institutional Use,STUDENT SUPPORT SERVICES,$500.00
48,J.F. Drake State,204569,"LAMAR, JOYCE",Jul,15,2011,In-State Travel,TITLE III,$393.72
48,J.F. Drake State,204570,NICK KSEPKA,Jul,15,2011,In-State Travel,TITLE III,$682.50
48,J.F. Drake State,204571,SAM'S CLUB/WALMART,Jul,15,2011,Materials and Supplies,NSF CARRYOVER,$250.00
48,J.F. Drake State,204572,SKT ARCHITECTS,Jul,15,2011,Maintenance and Repairs,TITLE III,"$61,074.00"
48,J.F. Drake State,204573,"SUDEALL, MONICA",Jul,15,2011,In-State Travel,TITLE III,$225.00
48,J.F. Drake State,204574,SUSAN F SCHULZ & ASSOC,Jul,15,2011,Materials and Supplies,TITLE III,$199.00
48,J.F. Drake State,204575,KRISTIN TREADWAY,Jul,15,2011,In-State Travel,TITLE III,$225.00
48,J.F. Drake State,204576,UNIVERSITY OF ALABAMA,Jul,15,2011,In-State Travel,TITLE III,$150.00
48,J.F. Drake State,90001774,JELITA JACKSON BRIDGEFORT,Jul,15,2011,Annual Leave - Retirement/Term,UNRESTRICTED,$207.76
48,J.F. Drake State,90001775,KATHRYN B NEAL,Jul,15,2011,Annual Leave - Retirement/Term,UNRESTRICTED,"$21,892.80"
48,J.F. Drake State,90001776,JAMES W PLEASURE,Jul,15,2011,Hourly Wages,NAT'L SCIENCE FOUNDATION,$900.00
48,J.F. Drake State,90001777,JAMES A REID,Jul,15,2011,Health Insurance - Institution,STUDENT SUPPORT SERVICES,$385.44
48,J.F. Drake State,204526,CDW-G,Jul,7,2011,Materials and Supplies,TITLE III,"$1,530.57"
48,J.F. Drake State,204527,"DAVIS, MATTIE",Jul,7,2011,Out-of-State Travel,ALLIED HEALTH,$84.42
48,J.F. Drake State,204528,DAVIS SHERRI,Jul,7,2011,Institutional Use,TITLE III,$863.27
48,J.F. Drake State,204529,ENTERPRISE RENT-A-CAR,Jul,7,2011,Out-of-State Travel,TITLE III,$596.16
48,J.F. Drake State,204530,HILTON ATLANTA,Jul,7,2011,Out-of-State Travel,STUDENT SUPPORT SERVICES,$589.40
48,J.F. Drake State,204531,"OFFICE DEPOT, INC.",Jul,7,2011,Materials and Supplies,TITLE III,$944.28
48,J.F. Drake State,204532,OFFICE FURNITURE OUTLET,Jul,7,2011,Institutional Use,STUDENT SUPPORT SERVICES,"$4,204.00"
48,J.F. Drake State,204533,PROGRESSIVE BUSINESS AUDI,Jul,7,2011,Institutional Use,TITLE III,$199.00
48,J.F. Drake State,204534,"RAYMOND, ALICE",Jul,7,2011,Out-of-State Travel,ALLIED HEALTH,$160.29
48,J.F. Drake State,204535,SAEOPP,Jul,7,2011,Out-of-State Travel,STUDENT SUPPORT SERVICES,$590.00
48,J.F. Drake State,204536,SEXTON WELDING SUPPLY,Jul,7,2011,Materials and Supplies,PERKINS FUNDS,"$1,429.00"
48,J.F. Drake State,204537,"902 MEDICAL, INC",Jul,7,2011,Materials and Supplies,ALLIED HEALTH,"$2,978.00"
48,J.F. Drake State,103427,AT&T LONG DISTANCE SERV.,Jul,6,2011,Communications,UNRESTRICTED,$211.33
48,J.F. Drake State,103428,CDW-G,Jul,6,2011,Technology - Noncapitalized,UNRESTRICTED,"$2,741.13"
48,J.F. Drake State,103429,CHEVRON CARD SERVICES,Jul,6,2011,Gasoline and Oil - Motor Vehic,UNRESTRICTED,$808.17
48,J.F. Drake State,103430,"DYNAMIC SECURITY, INC.",Jul,6,2011,Other Contractual Services,UNRESTRICTED,"$5,940.48"
48,J.F. Drake State,103431,ELSEVIER/HESI,Jul,6,2011,Purchases for Resale,AUXILIARY,"$4,876.90"
48,J.F. Drake State,103432,EVOLVE REACH,Jul,6,2011,Purchases for Resale,AUXILIARY,"$4,854.90"
48,J.F. Drake State,103433,EVOLVE REACH,Jul,6,2011,Purchases for Resale,AUXILIARY,"$4,876.90"
48,J.F. Drake State,103434,EVOLVE REACH,Jul,6,2011,Purchases for Resale,AUXILIARY,"$4,876.20"
48,J.F. Drake State,103435,FEDEX,Jul,6,2011,Postage,UNRESTRICTED,$147.55
48,J.F. Drake State,103436,HUNTSVILLE TIMES,Jul,6,2011,Advertising and Promotions,UNRESTRICTED,$710.00
48,J.F. Drake State,103437,THE LAMAR COMPANIES,Jul,6,2011,Advertising and Promotions,UNRESTRICTED,"$1,500.00"
48,J.F. Drake State,103438,LOOK ADVERTISING INC,Jul,6,2011,Advertising and Promotions,ADULT ED,$350.00
48,J.F. Drake State,103439,SAM'S CLUB/WALMART,Jul,6,2011,Materials and Supplies,UNRESTRICTED,$210.82
48,J.F. Drake State,103440,SEXTON WELDING SUPPLY,Jul,6,2011,Purchases for Resale,UNRESTRICTED,"$6,060.00"
48,J.F. Drake State,103441,UPS,Jul,6,2011,Freight,UNRESTRICTED,$238.47
48,J.F. Drake State,103442,VERIZON WIRELESS,Jul,6,2011,Communications,UNRESTRICTED,$907.85
48,J.F. Drake State,103443,WASTE MANAGEMENT OF NORTH,Jul,6,2011,Other Contractual Services,UNRESTRICTED,$502.26
48,J.F. Drake State,103443,WASTE MANAGEMENT OF NORTH,Jul,6,2011,Other Contractual Services,ARMY GRANT,$207.62
48,J.F. Drake State,51121,AT&T,Jun,30,2011,Communications,UNRESTRICTED,"$5,098.89"
48,J.F. Drake State,51123,COMCAST,Jun,30,2011,Communications,UNRESTRICTED,$197.54
48,J.F. Drake State,51124,COOK'S PEST CONTROL,Jun,30,2011,Other Contractual Services,UNRESTRICTED,$386.00
48,J.F. Drake State,51125,HUNTSVILLE UTILITIES,Jun,30,2011,Water and Sewer,UNRESTRICTED,$625.86
48,J.F. Drake State,51126,WOW! BUSINESS,Jun,30,2011,Communications,UNRESTRICTED,"$1,097.72"
48,J.F. Drake State,51127,PITNEY BOWES,Jun,30,2011,Postage,UNRESTRICTED,"$1,200.00"
48,J.F. Drake State,61131,AT&T,Jun,30,2011,Communications,UNRESTRICTED,"$4,964.97"
48,J.F. Drake State,61133,COMCAST,Jun,30,2011,Communications,UNRESTRICTED,$94.76
48,J.F. Drake State,61134,COOK'S PEST CONTROL,Jun,30,2011,Other Contractual Services,UNRESTRICTED,$386.00
48,J.F. Drake State,61135,HUNTSVILLE UTILITIES,Jun,30,2011,Water and Sewer,UNRESTRICTED,"$3,328.67"
48,J.F. Drake State,61135,HUNTSVILLE UTILITIES,Jun,30,2011,Electricity,ARMY GRANT,"$2,990.48"
48,J.F. Drake State,61135,HUNTSVILLE UTILITIES,Jun,30,2011,Gas and Heating Fuel,ARMY GRANT,$9.01
48,J.F. Drake State,61135,HUNTSVILLE UTILITIES,Jun,30,2011,Electricity,UNRESTRICTED,"$22,380.82"
48,J.F. Drake State,61135,HUNTSVILLE UTILITIES,Jun,30,2011,Gas and Heating Fuel,UNRESTRICTED,$519.13
48,J.F. Drake State,61136,WOW! BUSINESS,Jun,30,2011,Communications,UNRESTRICTED,"$1,097.72"
48,J.F. Drake State,61137,PITNEY BOWES,Jun,30,2011,Postage,UNRESTRICTED,"$1,200.00"
48,J.F. Drake State,302201,ROBBIE LEE AKINS,Jun,30,2011,Support Personnel Salaries - S,UNRESTRICTED,"$2,113.00"
48,J.F. Drake State,302202,BEN BATTLE,Jun,30,2011,Instructional Salaries - Regul,UNRESTRICTED,"$4,922.33"
48,J.F. Drake State,302203,DEAVIANCE FOWLKS BLEVINS,Jun,30,2011,Hourly Wages,NAT'L SCIENCE FOUNDATION,$100.00
48,J.F. Drake State,302204,STEPHANIE JONES BOUNDS,Jun,30,2011,Instructional Salaries - Regul,UNRESTRICTED,"$6,200.67"
48,J.F. Drake State,302205,KONSTANCE L CHAMBLISS,Jun,30,2011,Instructional Salaries - Tempo,NAT'L SCIENCE FOUNDATION,$259.80
48,J.F. Drake State,302206,APRIL CLEMENT,Jun,30,2011,Other Professional Salaries -,TITLE III,"$4,000.00"
48,J.F. Drake State,302207,CARLA R CLIFT,Jun,30,2011,Other Professional Salaries -,UNRESTRICTED,"$1,164.96"
48,J.F. Drake State,302208,RICHARD COLLIE,Jun,30,2011,Other Professional Salaries -,STUDENT SUPPORT SERVICES,"$3,750.00"
48,J.F. Drake State,302209,REGINA LYNNE CRAWFORD,Jun,30,2011,Support Personnel Salaries - S,UNRESTRICTED,"$3,080.00"
48,J.F. Drake State,302210,ROBERT N GRISSIM,Jun,30,2011,Instructional Salaries - Tempo,UNRESTRICTED,$750.00
48,J.F. Drake State,302211,CHARMAINE A HOVIS,Jun,30,2011,Instructional Salaries - Tempo,UNRESTRICTED,$600.00
48,J.F. Drake State,302212,SUSAN KREULEN,Jun,30,2011,Instructional Salaries - Tempo,ADULT ED,"$1,029.00"
48,J.F. Drake State,302213,JAIRUS JOVUN MORROW,Jun,30,2011,Hourly Wages,UNRESTRICTED,$196.88
48,J.F. Drake State,302214,RICHARD H NEWTON,Jun,30,2011,Instructional Salaries - Tempo,STUDENT SUPPORT SERVICES,$420.00
48,J.F. Drake State,302215,DOROTHY J NOBLE,Jun,30,2011,Instructional Salaries - Tempo,UNRESTRICTED,"$1,500.00"
48,J.F. Drake State,302216,JENNIFER O'LINGER,Jun,30,2011,Other Professional Salaries -,UNRESTRICTED,"$4,333.00"
48,J.F. Drake State,302217,GWENDOLYN D POPE,Jun,30,2011,Instructional Salaries - Regul,UNRESTRICTED,"$12,642.75"
48,J.F. Drake State,302218,AMANDA R SIMPSON,Jun,30,2011,Support Personnel Salaries - S,UNRESTRICTED,"$2,016.00"
48,J.F. Drake State,302219,CALANDRA S WILLIAMS,Jun,30,2011,Instructional Salaries - Tempo,ADULT ED,$563.50
48,J.F. Drake State,90001659,LYSA AUGUSTIN,Jun,30,2011,Instructional Salaries - Tempo,ADULT ED,$616.00
48,J.F. Drake State,90001660,CAROLYN AVRITTE,Jun,30,2011,Instructional Salaries - Tempo,UNRESTRICTED,"$1,096.75"
48,J.F. Drake State,90001661,NELSON E BARNES,Jun,30,2011,Instructional Salaries - Tempo,UNRESTRICTED,"$1,350.00"
48,J.F. Drake State,90001663,HAROLD E BATTS,Jun,30,2011,Other Professional Salaries -,UNRESTRICTED,"$8,649.00"
48,J.F. Drake State,90001665,CHARLOTTE KATHRYN BAUCOM,Jun,30,2011,Instructional Salaries - Tempo,UNRESTRICTED,"$1,800.00"
48,J.F. Drake State,90001666,ANGELA NICOLE BELL,Jun,30,2011,Instructional Salaries - Regul,UNRESTRICTED,"$5,009.00"
48,J.F. Drake State,90001668,PATRICE BIVINS,Jun,30,2011,Support Personnel Salaries - S,STUDENT SUPPORT SERVICES,"$1,889.83"
48,J.F. Drake State,90001669,JACQUELINE T BOOKER,Jun,30,2011,Support Personnel Salaries - S,NAT'L SCIENCE FOUNDATION,"$2,005.60"
48,J.F. Drake State,90001670,CHERYL BRAWLEY-KELLY,Jun,30,2011,Instructional Salaries - Tempo,UNRESTRICTED,"$1,290.00"
48,J.F. Drake State,90001671,JELITA JACKSON BRIDGEFORT,Jun,30,2011,Other Professional Salaries -,UNRESTRICTED,"$4,049.76"
48,J.F. Drake State,90001672,LASHONDA D BROWN,Jun,30,2011,Instructional Salaries - Tempo,UNRESTRICTED,$900.00
48,J.F. Drake State,90001673,BRUCE A BULLUCK,Jun,30,2011,Other Professional Salaries -,UNRESTRICTED,"$5,833.33"
48,J.F. Drake State,90001674,KHALILAH BURTON,Jun,30,2011,Instructional Salaries - Regul,UNRESTRICTED,"$2,796.75"
48,J.F. Drake State,90001674,KHALILAH BURTON,Jun,30,2011,Instructional Salaries - Regul,NAT'L SCIENCE FOUNDATION,$932.25
48,J.F. Drake State,90001674,KHALILAH BURTON,Jun,30,2011,Instructional Salaries - Regul,ARRA STIMULUS FUNDS,"$4,609.00"
48,J.F. Drake State,90001675,DERICK R CARPENAY,Jun,30,2011,Instructional Salaries - Tempo,UNRESTRICTED,$900.00
48,J.F. Drake State,90001676,KEMBA CHAMBERS,Jun,30,2011,Other Professional Salaries -,UNRESTRICTED,"$7,360.42"
48,J.F. Drake State,90001677,KATIE E CHANCE,Jun,30,2011,Support Personnel Salaries - S,UNRESTRICTED,"$2,485.42"
48,J.F. Drake State,90001678,ROGER CHEN,Jun,30,2011,Instructional Salaries - Tempo,UNRESTRICTED,$900.00
48,J.F. Drake State,90001678,ROGER CHEN,Jun,30,2011,Instructional Salaries - Tempo,STUDENT SUPPORT SERVICES,"$1,050.00"
48,J.F. Drake State,90001679,ADAM CLARK,Jun,30,2011,Instructional Salaries - Regul,UNRESTRICTED,"$4,571.00"
48,J.F. Drake State,90001679,ADAM CLARK,Jun,30,2011,Instructional Salaries - Tempo,UNRESTRICTED,$600.00
48,J.F. Drake State,90001680,MONIQUE C COSBY,Jun,30,2011,Support Personnel Salaries - S,ARRA STIMULUS FUNDS,"$3,228.75"
48,J.F. Drake State,90001681,DEIONE L CRUTCHER,Jun,30,2011,Support Personnel Salaries - S,ADULT ED,$838.50
48,J.F. Drake State,90001682,MATTIE D DAVIS,Jun,30,2011,Instructional Salaries - Regul,UNRESTRICTED,"$6,019.00"
48,J.F. Drake State,90001683,MARLO DRAKE,Jun,30,2011,Support Personnel Salaries - S,ARRA STIMULUS FUNDS,"$2,365.69"
48,J.F. Drake State,90001683,MARLO DRAKE,Jun,30,2011,Support Personnel Salaries - S,TITLE III,$788.56
48,J.F. Drake State,90001684,MARTHA W DUBEY,Jun,30,2011,Support Personnel Salaries - S,UNRESTRICTED,"$4,500.00"
48,J.F. Drake State,90001685,GABRIELE DUNSEITH,Jun,30,2011,Instructional Salaries - Tempo,UNRESTRICTED,$660.00
48,J.F. Drake State,90001686,CHRISTIANA A OPARA EGBUJO,Jun,30,2011,Instructional Salaries - Tempo,UNRESTRICTED,$930.00
48,J.F. Drake State,90001687,RONALD E EGSON,Jun,30,2011,Instructional Salaries - Tempo,UNRESTRICTED,"$1,350.00"
48,J.F. Drake State,90001688,ROSELINE C ELIKE,Jun,30,2011,Instructional Salaries - Tempo,UNRESTRICTED,$300.00
48,J.F. Drake State,90001689,GAIL E FISCH,Jun,30,2011,Instructional Salaries - Regul,ADULT ED,"$6,270.83"
48,J.F. Drake State,90001690,EDWIN T FORBES,Jun,30,2011,Instructional Salaries - Regul,UNRESTRICTED,"$8,836.42"
48,J.F. Drake State,90001691,HORACE L FRANKLIN JR,Jun,30,2011,Instructional Salaries - Regul,UNRESTRICTED,"$4,609.00"
48,J.F. Drake State,90001692,MATTIE B FREEMAN,Jun,30,2011,Instructional Salaries - Tempo,UNRESTRICTED,"$2,040.00"
48,J.F. Drake State,90001693,WENDY F GANNON,Jun,30,2011,Instructional Salaries - Regul,ALLIED HEALTH,"$4,885.00"
48,J.F. Drake State,90001694,SYMMETRIS K GOHANNA,Jun,30,2011,Instructional Salaries - Regul,UNRESTRICTED,"$5,399.33"
48,J.F. Drake State,90001695,LARDELL GOODLOE JR,Jun,30,2011,Instructional Salaries - Regul,UNRESTRICTED,"$4,646.33"
48,J.F. Drake State,90001696,TIMOTHY RYAN GREEN,Jun,30,2011,Instructional Salaries - Regul,UNRESTRICTED,"$3,542.00"
48,J.F. Drake State,90001696,TIMOTHY RYAN GREEN,Jun,30,2011,Instructional Salaries - Tempo,UNRESTRICTED,"$1,500.00"
48,J.F. Drake State,90001697,VICKIE E GREEN,Jun,30,2011,Instructional Salaries - Regul,ALLIED HEALTH,"$4,609.00"
48,J.F. Drake State,90001698,CHARLES GROSS,Jun,30,2011,Instructional Salaries - Tempo,UNRESTRICTED,$900.00
48,J.F. Drake State,90001699,MANELZA CRAWFORD HAMBRICK,Jun,30,2011,Support Personnel Salaries - S,UNRESTRICTED,"$2,411.00"
48,J.F. Drake State,90001700,KATRINA J HARRIS,Jun,30,2011,Support Personnel Salaries - S,UNRESTRICTED,$955.75
48,J.F. Drake State,90001700,KATRINA J HARRIS,Jun,30,2011,Support Personnel Salaries - S,TITLE III,"$2,867.25"
48,J.F. Drake State,90001701,CAROLYN HENDERSON,Jun,30,2011,Instructional Salaries - Tempo,UNRESTRICTED,$450.00
48,J.F. Drake State,90001701,CAROLYN HENDERSON,Jun,30,2011,Instructional Salaries - Regul,UNRESTRICTED,"$2,963.56"
48,J.F. Drake State,90001701,CAROLYN HENDERSON,Jun,30,2011,Instructional Salaries - Regul,NAT'L SCIENCE FOUNDATION,"$2,209.10"
48,J.F. Drake State,90001701,CAROLYN HENDERSON,Jun,30,2011,Instructional Salaries - Regul,ARRA STIMULUS FUNDS,"$3,663.75"
48,J.F. Drake State,90001702,DEXTER R HENRY,Jun,30,2011,Instructional Salaries - Tempo,UNRESTRICTED,$750.00
48,J.F. Drake State,90001702,DEXTER R HENRY,Jun,30,2011,Instructional Salaries - Regul,UNRESTRICTED,"$5,951.33"
48,J.F. Drake State,90001703,KARL W HENRY SR,Jun,30,2011,Instructional Salaries - Regul,UNRESTRICTED,"$5,174.00"
48,J.F. Drake State,90001703,KARL W HENRY SR,Jun,30,2011,Instructional Salaries - Tempo,UNRESTRICTED,"$1,200.00"
48,J.F. Drake State,90001703,KARL W HENRY SR,Jun,30,2011,Instructional Salaries - Regul,NAT'L SCIENCE FOUNDATION,"$1,591.33"
48,J.F. Drake State,90001704,DORIS HINTON,Jun,30,2011,Instructional Salaries - Regul,UNRESTRICTED,"$5,023.00"
48,J.F. Drake State,90001705,TERESA HOOPER,Jun,30,2011,Instructional Salaries - Tempo,UNRESTRICTED,$555.00
48,J.F. Drake State,90001706,PATRICIA HUGHES,Jun,30,2011,Administrative Salaries- Sched,UNRESTRICTED,"$7,893.08"
48,J.F. Drake State,90001708,JAN J HYMAN,Jun,30,2011,Support Personnel Salaries - S,ALLIED HEALTH,"$3,154.50"
48,J.F. Drake State,90001710,NEOKA JANE IVEY,Jun,30,2011,Support Personnel Salaries - S,UNRESTRICTED,"$1,889.83"
48,J.F. Drake State,90001711,SARAH J JAMAR,Jun,30,2011,Instructional Salaries - Tempo,UNRESTRICTED,"$1,350.00"
48,J.F. Drake State,90001711,SARAH J JAMAR,Jun,30,2011,Instructional Salaries - Tempo,STUDENT SUPPORT SERVICES,"$1,312.50"
48,J.F. Drake State,90001712,DONYALE D JONES,Jun,30,2011,Support Personnel Salaries - S,TITLE III,"$3,303.41"
48,J.F. Drake State,90001713,PINEY L JORDAN,Jun,30,2011,Instructional Salaries - Tempo,UNRESTRICTED,"$1,380.00"
48,J.F. Drake State,90001714,CHERYL P KEMP,Jun,30,2011,Instructional Salaries - Tempo,UNRESTRICTED,"$2,400.00"
48,J.F. Drake State,90001715,PRAVEENA KOMMIDI,Jun,30,2011,Instructional Salaries - Regul,UNRESTRICTED,"$5,881.00"
48,J.F. Drake State,90001715,PRAVEENA KOMMIDI,Jun,30,2011,Instructional Salaries - Tempo,UNRESTRICTED,$450.00
48,J.F. Drake State,90001716,NICHOLAS PAUL KSEPKA,Jun,30,2011,Hourly Wages,UNRESTRICTED,"$1,552.50"
48,J.F. Drake State,90001717,HONG THUYDUC LAM,Jun,30,2011,Instructional Salaries - Regul,UNRESTRICTED,"$5,638.33"
48,J.F. Drake State,90001718,JOYCE P LAMAR,Jun,30,2011,Support Personnel Salaries - S,UNRESTRICTED,"$4,419.17"
48,J.F. Drake State,90001719,MICHEAL V MAXTON,Jun,30,2011,Instructional Salaries - Tempo,UNRESTRICTED,$900.00
48,J.F. Drake State,90001720,MUKESHA MBUGUJE,Jun,30,2011,Instructional Salaries - Tempo,UNRESTRICTED,$270.00
48,J.F. Drake State,90001721,HELEN T MCALPINE,Jun,30,2011,Administrative Salaries- Sched,UNRESTRICTED,"$14,266.45"
48,J.F. Drake State,90001721,HELEN T MCALPINE,Jun,30,2011,President's Expense Allowance,UNRESTRICTED,$200.00
48,J.F. Drake State,90001721,HELEN T MCALPINE,Jun,30,2011,Housing Allowance,UNRESTRICTED,"$1,000.00"
48,J.F. Drake State,90001722,DEMETIUS L MCCARTY,Jun,30,2011,Support Personnel Salaries - S,UNRESTRICTED,"$2,113.00"
48,J.F. Drake State,90001723,PATRICK T MCDONALD,Jun,30,2011,Support Personnel Salaries - S,STUDENT SUPPORT SERVICES,$570.00
48,J.F. Drake State,90001725,SCOTTY MCLAUGHLIN,Jun,30,2011,Instructional Salaries - Tempo,UNRESTRICTED,$300.00
48,J.F. Drake State,90001725,SCOTTY MCLAUGHLIN,Jun,30,2011,Instructional Salaries - Regul,UNRESTRICTED,"$6,535.00"
48,J.F. Drake State,90001726,TABITHA D MCWILLIAMS,Jun,30,2011,Support Personnel Salaries - S,UNRESTRICTED,"$2,038.66"
48,J.F. Drake State,90001727,DEBORAH A MILLING,Jun,30,2011,Instructional Salaries - Regul,UNRESTRICTED,"$11,097.33"
48,J.F. Drake State,90001728,SAMMY J MILTON,Jun,30,2011,Support Personnel Salaries - S,UNRESTRICTED,"$3,452.83"
48,J.F. Drake State,90001729,PREMA A MONTEIRO,Jun,30,2011,Instructional Salaries - Regul,UNRESTRICTED,"$4,470.67"
48,J.F. Drake State,90001730,ACOLEA J MOORE,Jun,30,2011,Instructional Salaries - Tempo,UNRESTRICTED,$450.00
48,J.F. Drake State,90001731,BRUCE D MORRISON,Jun,30,2011,Support Personnel Salaries - S,UNRESTRICTED,"$4,196.17"
48,J.F. Drake State,90001732,KAREN NEIR,Jun,30,2011,Instructional Salaries - Tempo,UNRESTRICTED,"$1,665.00"
48,J.F. Drake State,90001733,DONALD ORR,Jun,30,2011,Support Personnel Salaries - S,UNRESTRICTED,"$3,750.17"
48,J.F. Drake State,90001734,JENNIFER E PATTERSON,Jun,30,2011,Instructional Salaries - Regul,UNRESTRICTED,"$9,599.09"
48,J.F. Drake State,90001735,ALBERT B PETERSON II,Jun,30,2011,Instructional Salaries - Tempo,ADULT ED,$253.50
48,J.F. Drake State,90001736,JERROLD DION PHIPPS,Jun,30,2011,Instructional Salaries - Tempo,UNRESTRICTED,"$1,350.00"
48,J.F. Drake State,90001737,BARBARA J PRIMEAUX,Jun,30,2011,Support Personnel Salaries - S,UNRESTRICTED,"$2,336.00"
48,J.F. Drake State,90001738,FREDRICK O PRUITT,Jun,30,2011,Instructional Salaries - Regul,UNRESTRICTED,"$6,071.50"
48,J.F. Drake State,90001739,MICHAEL RADDEN,Jun,30,2011,Instructional Salaries - Tempo,UNRESTRICTED,"$1,350.00"
48,J.F. Drake State,90001740,LORAINE RAGIN,Jun,30,2011,Instructional Salaries - Regul,UNRESTRICTED,"$3,542.00"
48,J.F. Drake State,90001741,ALICE G RAYMOND,Jun,30,2011,Instructional Salaries - Regul,UNRESTRICTED,"$7,523.33"
48,J.F. Drake State,90001742,JOYCE L RENTZ,Jun,30,2011,Instructional Salaries - Regul,UNRESTRICTED,"$6,251.00"
48,J.F. Drake State,90001742,JOYCE L RENTZ,Jun,30,2011,Instructional Salaries - Tempo,UNRESTRICTED,$900.00
48,J.F. Drake State,90001743,JOHN REUTTER III,Jun,30,2011,Other Professional Salaries -,NAT'L SCIENCE FOUNDATION,"$6,616.75"
48,J.F. Drake State,90001744,MARTHA J ROBERTS,Jun,30,2011,Support Personnel Salaries - S,UNRESTRICTED,"$4,940.33"
48,J.F. Drake State,90001745,BARRY E SHELTON,Jun,30,2011,Instructional Salaries - Tempo,UNRESTRICTED,"$1,125.00"
48,J.F. Drake State,90001746,JACQUELINE M SHIVERS,Jun,30,2011,Instructional Salaries - Tempo,ADULT ED,"$1,750.00"
48,J.F. Drake State,90001747,LESLEY SHOTTS,Jun,30,2011,Instructional Salaries - Regul,UNRESTRICTED,"$4,336.17"
48,J.F. Drake State,90001748,PATRICIA GORDON SIMS,Jun,30,2011,Administrative Salaries- Sched,UNRESTRICTED,"$9,245.09"
48,J.F. Drake State,90001749,RYAN E SMITH,Jun,30,2011,Other Professional Salaries -,ADULT ED,"$4,000.00"
48,J.F. Drake State,90001750,WANDA L SMITH,Jun,30,2011,Instructional Salaries - Tempo,UNRESTRICTED,$600.00
48,J.F. Drake State,90001751,DELORIS A SMOTHERS,Jun,30,2011,Instructional Salaries - Regul,UNRESTRICTED,"$6,765.33"
48,J.F. Drake State,90001752,JULIE P SPURGEON,Jun,30,2011,Support Personnel Salaries - S,UNRESTRICTED,"$1,964.25"
48,J.F. Drake State,90001753,VERLINDSEY B STEWART,Jun,30,2011,Instructional Salaries - Regul,UNRESTRICTED,"$3,067.33"
48,J.F. Drake State,90001754,MONICA SUDEALL-HAWKINS,Jun,30,2011,Instructional Salaries - Tempo,UNRESTRICTED,$450.00
48,J.F. Drake State,90001754,MONICA SUDEALL-HAWKINS,Jun,30,2011,Other Professional Salaries -,UNRESTRICTED,"$4,993.33"
48,J.F. Drake State,90001755,CHARLES A SULLINS JR,Jun,30,2011,Instructional Salaries - Tempo,UNRESTRICTED,$450.00
48,J.F. Drake State,90001756,SHANNON SUMMERS,Jun,30,2011,Instructional Salaries - Tempo,ADULT ED,$704.00
48,J.F. Drake State,90001757,RUSSELL B THOMAS,Jun,30,2011,Hourly Wages,NAT'L SCIENCE FOUNDATION,$570.00
48,J.F. Drake State,90001758,JOY D TORNQUIST,Jun,30,2011,Instructional Salaries - Tempo,UNRESTRICTED,"$2,280.00"
48,J.F. Drake State,90001759,KRISTIN TREADWAY,Jun,30,2011,Support Personnel Salaries - S,ALLIED HEALTH,"$2,782.25"
48,J.F. Drake State,90001760,ELIZABETH A TUGGLE,Jun,30,2011,Instructional Salaries - Tempo,ADULT ED,$936.00
48,J.F. Drake State,90001761,RACHEL DAVIS TUNSTILL,Jun,30,2011,Instructional Salaries - Tempo,UNRESTRICTED,$270.00
48,J.F. Drake State,90001762,GILBERT T TURLEY,Jun,30,2011,Other Professional Salaries -,UNRESTRICTED,"$6,450.08"
48,J.F. Drake State,90001763,KAROL C WADDELL,Jun,30,2011,Other Professional Salaries -,READY TO WORK,"$2,280.00"
48,J.F. Drake State,90001764,LETITIA E WALKER,Jun,30,2011,Support Personnel Salaries - S,UNRESTRICTED,"$3,229.42"
48,J.F. Drake State,90001765,TAMMY G WALKER,Jun,30,2011,Instructional Salaries - Tempo,ADULT ED,$216.00
48,J.F. Drake State,90001766,THEO NATHAN WALSTON,Jun,30,2011,Support Personnel Salaries - S,UNRESTRICTED,"$3,095.41"
48,J.F. Drake State,90001767,KATINA L WALTON,Jun,30,2011,Instructional Salaries - Tempo,ADULT ED,"$1,165.50"
48,J.F. Drake State,90001768,VINCENT E WHITE,Jun,30,2011,Instructional Salaries - Tempo,UNRESTRICTED,"$1,500.00"
48,J.F. Drake State,90001769,KRISHALON WILKERSON,Jun,30,2011,Support Personnel Salaries - S,TECH PREP FUNDS,"$1,688.83"
48,J.F. Drake State,90001769,KRISHALON WILKERSON,Jun,30,2011,Support Personnel Salaries - S,NAT'L SCIENCE FOUNDATION,"$1,688.83"
48,J.F. Drake State,90001770,RICKY WILLINGHAM,Jun,30,2011,Other Professional Salaries -,TITLE III,"$6,886.00"
48,J.F. Drake State,90001771,INA M WILSON,Jun,30,2011,Other Professional Salaries -,TITLE III,"$4,333.33"
48,J.F. Drake State,90001772,GEORGE R WINN,Jun,30,2011,Instructional Salaries - Regul,UNRESTRICTED,"$5,123.00"
48,J.F. Drake State,90001772,GEORGE R WINN,Jun,30,2011,Instructional Salaries - Tempo,UNRESTRICTED,$450.00
48,J.F. Drake State,90001773,DANIEL W YOCOM,Jun,30,2011,Support Personnel Salaries - S,CAREER COACHES,"$2,559.33"
48,J.F. Drake State,302223,VERNESSA M EDWARDS,Jun,30,2011,Instructional Salaries - Tempo,UNRESTRICTED,$750.00
48,J.F. Drake State,302224,NIKAELA YARBROUGH FLOURNO,Jun,30,2011,Instructional Salaries - Tempo,UNRESTRICTED,$900.00
48,J.F. Drake State,302225,FESSEHA GEBREMIKAEL,Jun,30,2011,Instructional Salaries - Tempo,UNRESTRICTED,$450.00
48,J.F. Drake State,302226,LARDELL GOODLOE JR,Jun,30,2011,Instructional Salaries - Tempo,UNRESTRICTED,$750.00
48,J.F. Drake State,302227,SAMUEL V GUISHARD,Jun,30,2011,Instructional Salaries - Tempo,UNRESTRICTED,"$1,500.00"
48,J.F. Drake State,302228,CANDICE HOWELL,Jun,30,2011,Instructional Salaries - Tempo,UNRESTRICTED,$600.00
48,J.F. Drake State,302229,NGOZI A KAMALU,Jun,30,2011,Instructional Salaries - Tempo,UNRESTRICTED,$450.00
48,J.F. Drake State,302230,JUSTIN M KELLY,Jun,30,2011,Instructional Salaries - Tempo,UNRESTRICTED,"$1,350.00"
48,J.F. Drake State,302231,TELLUS LANGFORD,Jun,30,2011,Instructional Salaries - Tempo,UNRESTRICTED,$450.00
48,J.F. Drake State,302232,DEBORAH WORLEY LEMIRE,Jun,30,2011,Instructional Salaries - Tempo,UNRESTRICTED,$750.00
48,J.F. Drake State,302233,JENNIFER T PARKER AYERS,Jun,30,2011,Instructional Salaries - Tempo,UNRESTRICTED,$900.00
48,J.F. Drake State,302234,INODU TONY PIRI,Jun,30,2011,Instructional Salaries - Tempo,UNRESTRICTED,$450.00
48,J.F. Drake State,302235,DOCQUINN N TAYLOR,Jun,30,2011,Hourly Wages,STUDENT SUPPORT SERVICES,$285.00
48,J.F. Drake State,302236,YOLANDA R TONEY,Jun,30,2011,Instructional Salaries - Tempo,UNRESTRICTED,$450.00
48,J.F. Drake State,302237,TRACEY L WILSON,Jun,30,2011,Instructional Salaries - Tempo,UNRESTRICTED,"$1,500.00"
48,J.F. Drake State,204496,NICOLE BELL,Jun,29,2011,Materials and Supplies,PERKINS FUNDS,$57.31
48,J.F. Drake State,204497,BULLDOG TRANSIT SYSTEM,Jun,29,2011,In-State Travel,NSF CARRYOVER,$200.00
48,J.F. Drake State,204498,MAGNA PUBLICATIONS,Jun,29,2011,Institutional Use,TITLE III,$279.00
48,J.F. Drake State,204499,"MILLING, DEBORAH",Jun,29,2011,Out-of-State Travel,ALLIED HEALTH,$69.13
48,J.F. Drake State,204500,MOORE MEDICAL CORP,Jun,29,2011,Materials and Supplies,ALLIED HEALTH,$200.36
48,J.F. Drake State,204501,"OFFICE DEPOT, INC.",Jun,29,2011,Materials and Supplies,TITLE III,"$1,569.19"
48,J.F. Drake State,204502,"OFFICE DEPOT, INC.",Jun,29,2011,Materials and Supplies,TITLE III,$267.98
48,J.F. Drake State,204503,SACJTC,Jun,29,2011,Memberships,TITLE III,$100.00
48,J.F. Drake State,204504,4IMPRINT,Jun,29,2011,Materials and Supplies,NAT'L SCIENCE FOUNDATION,"$4,066.23"
48,J.F. Drake State,103398,ACT,Jun,29,2011,Materials and Supplies,UNRESTRICTED,$308.00
48,J.F. Drake State,103399,CDW-G,Jun,29,2011,Other Contractual Services,UNRESTRICTED,$48.81
48,J.F. Drake State,103400,CONDITIONED AIR SOLUTIONS,Jun,29,2011,Maintenance and Repairs,ARMY GRANT,"$3,495.25"
48,J.F. Drake State,103401,"DYNAMIC SECURITY, INC.",Jun,29,2011,Other Contractual Services,UNRESTRICTED,"$5,940.48"
48,J.F. Drake State,103402,KUDZU PRODUCTION,Jun,29,2011,Advertising and Promotions,UNRESTRICTED,"$13,675.00"
48,J.F. Drake State,103403,"MOBILE MINI, INC",Jun,29,2011,Rent - Equipment,PLANT FUNDS,$200.00
48,J.F. Drake State,103404,"OFFICE DEPOT, INC.",Jun,29,2011,Materials and Supplies,ADULT ED,$352.18
48,J.F. Drake State,103405,PITNEY BOWES,Jun,29,2011,Other Contractual Services,UNRESTRICTED,$657.00
48,J.F. Drake State,103406,RANDALL A SCHRIMSHER,Jun,29,2011,Rent - Facilities,UNRESTRICTED,"$6,250.00"
48,J.F. Drake State,103407,MR. ROOTER,Jun,29,2011,Maintenance and Repairs,UNRESTRICTED,"$1,475.00"
48,J.F. Drake State,103408,UPS,Jun,29,2011,Freight,UNRESTRICTED,$44.20
48,J.F. Drake State,204490,DOMINO'S PIZZA,Jun,28,2011,Materials and Supplies,NSF CARRYOVER,$96.00
48,J.F. Drake State,204491,KEITO CHARTER BUS SERV,Jun,28,2011,Out-of-State Travel,NSF CARRYOVER,"$2,400.00"
48,J.F. Drake State,204492,KRISHALON WILKERSON,Jun,28,2011,Out-of-State Travel,NSF CARRYOVER,"$1,200.00"
48,J.F. Drake State,204493,KRISHALON WILKERSON,Jun,28,2011,Out-of-State Travel,NSF CARRYOVER,$565.50
48,J.F. Drake State,204494,KRISHALON WILKERSON,Jun,28,2011,Out-of-State Travel,NSF CARRYOVER,"$4,500.00"
48,J.F. Drake State,204495,PREMIER EXHIBITION,Jun,28,2011,Out-of-State Travel,NSF CARRYOVER,"$1,800.00"
48,J.F. Drake State,103379,C. C. DICKSON COMPANY,Jun,22,2011,Materials and Supplies,UNRESTRICTED,$611.04
48,J.F. Drake State,103379,C. C. DICKSON COMPANY,Jun,22,2011,Maintenance and Repairs,UNRESTRICTED,$37.33
48,J.F. Drake State,103380,CDW-G,Jun,22,2011,Other Contractual Services,UNRESTRICTED,$48.81
48,J.F. Drake State,103380,CDW-G,Jun,22,2011,Technology - Capitalized,UNRESTRICTED,"$12,800.00"
48,J.F. Drake State,103381,CENGAGE LEARNING,Jun,22,2011,Purchases for Resale,UNRESTRICTED,$706.50
48,J.F. Drake State,103382,CONDITIONED AIR SOLUTIONS,Jun,22,2011,Maintenance and Repairs,ARMY GRANT,$704.32
48,J.F. Drake State,103383,PETTY CASH,Jun,22,2011,Materials and Supplies,UNRESTRICTED,$138.53
48,J.F. Drake State,103383,PETTY CASH,Jun,22,2011,Institutional Use,UNRESTRICTED,$41.02
48,J.F. Drake State,103383,PETTY CASH,Jun,22,2011,Advertising and Promotions,UNRESTRICTED,$28.07
48,J.F. Drake State,103383,PETTY CASH,Jun,22,2011,Postage,UNRESTRICTED,$39.46
48,J.F. Drake State,103383,PETTY CASH,Jun,22,2011,Maintenance and Repairs,UNRESTRICTED,$43.19
48,J.F. Drake State,103384,"DYNAMIC SECURITY, INC.",Jun,22,2011,Other Contractual Services,UNRESTRICTED,"$6,377.28"
48,J.F. Drake State,103385,HUNTSVILLE TIMES,Jun,22,2011,Advertising and Promotions,UNRESTRICTED,$363.60
48,J.F. Drake State,103386,KERMIT ELLIOTT,Jun,22,2011,In-State Travel,ADULT ED,$96.69
48,J.F. Drake State,103387,LOOK ADVERTISING INC,Jun,22,2011,Advertising and Promotions,ADULT ED,$350.00
48,J.F. Drake State,103388,SAM'S CLUB/WALMART,Jun,22,2011,Materials and Supplies,UNRESTRICTED,$302.46
48,J.F. Drake State,103389,WALKER 360,Jun,22,2011,Institutional Use,UNRESTRICTED,"$1,205.85"
48,J.F. Drake State,103390,YELLOW PAGE DIRECTORY,Jun,22,2011,Advertising and Promotions,UNRESTRICTED,$611.10
48,J.F. Drake State,103352,BIRNBAUM INTERPRETING,Jun,15,2011,Other Contractual Services,UNRESTRICTED,"$3,510.00"
48,J.F. Drake State,103353,BIRNBAUM INTERPRETING,Jun,15,2011,Other Contractual Services,UNRESTRICTED,"$3,510.00"
48,J.F. Drake State,103354,C. C. DICKSON COMPANY,Jun,15,2011,Maintenance and Repairs,UNRESTRICTED,"$3,101.53"
48,J.F. Drake State,103354,C. C. DICKSON COMPANY,Jun,15,2011,Materials and Supplies,UNRESTRICTED,$208.95
48,J.F. Drake State,103355,CENGAGE LEARNING,Jun,15,2011,Purchases for Resale,UNRESTRICTED,"$2,779.57"
48,J.F. Drake State,103357,"DYNAMIC SECURITY, INC.",Jun,15,2011,Other Contractual Services,UNRESTRICTED,"$5,940.48"
48,J.F. Drake State,103358,ELSEVIER/HESI,Jun,15,2011,Purchases for Resale,UNRESTRICTED,"$3,357.04"
48,J.F. Drake State,103359,ELSEVIER/HESI,Jun,15,2011,Purchases for Resale,UNRESTRICTED,"$3,009.38"
48,J.F. Drake State,103360,HUNTSVILLE TIMES,Jun,15,2011,Advertising and Promotions,UNRESTRICTED,$220.76
48,J.F. Drake State,103361,KUDZU PRODUCTION,Jun,15,2011,Advertising and Promotions,UNRESTRICTED,"$1,850.00"
48,J.F. Drake State,103362,LOWE'S,Jun,15,2011,Materials and Supplies,UNRESTRICTED,$380.63
48,J.F. Drake State,103363,MADISON COUNTY HEALTH DEP,Jun,15,2011,Materials and Supplies,UNRESTRICTED,$85.00
48,J.F. Drake State,103364,MINUTEMAN PRESS,Jun,15,2011,Institutional Use,UNRESTRICTED,"$2,839.43"
48,J.F. Drake State,103366,SAFETY KLEEN CORPORATION,Jun,15,2011,Other Contractual Services,UNRESTRICTED,$370.01
48,J.F. Drake State,103367,SUCCESS MARKETING,Jun,15,2011,Advertising and Promotions,UNRESTRICTED,"$19,975.00"
48,J.F. Drake State,103368,"THE SOLUTIONS TEAM, INC",Jun,15,2011,Other Contractual Services,UNRESTRICTED,$200.00
48,J.F. Drake State,103369,"TRUESCREEN, INC",Jun,15,2011,Other Contractual Services,UNRESTRICTED,$26.00
48,J.F. Drake State,103370,VERIZON WIRELESS,Jun,15,2011,Communications,UNRESTRICTED,$921.31
48,J.F. Drake State,103371,WASTE MANAGEMENT OF NORTH,Jun,15,2011,Other Contractual Services,UNRESTRICTED,"$2,142.42"
48,J.F. Drake State,103371,WASTE MANAGEMENT OF NORTH,Jun,15,2011,Other Contractual Services,ARMY GRANT,$208.11
48,J.F. Drake State,103372,"JOHN WILEY & SONS, INC.",Jun,15,2011,Purchases for Resale,UNRESTRICTED,"$2,764.94"
48,J.F. Drake State,204326,ACCSPRA,Jun,15,2011,In-State Travel,TITLE III,$50.00
48,J.F. Drake State,204327,ALACRAO,Jun,15,2011,In-State Travel,TITLE III,$580.00
48,J.F. Drake State,204328,BERNEY OFFICE SOLUTIONS,Jun,15,2011,Materials and Supplies,TITLE III,$375.56
48,J.F. Drake State,204329,STEPHANIE JONES BOUNDS,Jun,15,2011,In-State Travel,TITLE III,$225.00
48,J.F. Drake State,204330,CDW-G,Jun,15,2011,Materials and Supplies,ALLIED HEALTH,$255.36
48,J.F. Drake State,204330,CDW-G,Jun,15,2011,Materials and Supplies,TITLE III,$420.00
48,J.F. Drake State,204330,CDW-G,Jun,15,2011,Materials and Supplies,STUDENT SUPPORT SERVICES,$807.59
48,J.F. Drake State,204331,CDW-G,Jun,15,2011,Materials and Supplies,TITLE III,"$2,764.95"
48,J.F. Drake State,204332,CDW-G,Jun,15,2011,Materials and Supplies,TITLE III,$422.81
48,J.F. Drake State,204333,CDW-G,Jun,15,2011,Materials and Supplies,STUDENT SUPPORT SERVICES,$133.52
48,J.F. Drake State,204334,DI ASSOCIATES,Jun,15,2011,Out-of-State Travel,ALLIED HEALTH,"$1,598.00"
48,J.F. Drake State,204335,EBSCO PUBLISHING,Jun,15,2011,Books,TITLE III,$369.16
48,J.F. Drake State,204336,EBSCO PUBLISHING,Jun,15,2011,Materials and Supplies,ALLIED HEALTH,"$6,860.98"
48,J.F. Drake State,204337,EMBASSY SUITES,Jun,15,2011,Out-of-State Travel,ALLIED HEALTH,"$1,525.50"
48,J.F. Drake State,204338,HAMPTON CONTRACTING,Jun,15,2011,Alterations,ALLIED HEALTH,"$14,766.45"
48,J.F. Drake State,204339,HILTON ORLANDO,Jun,15,2011,Out-of-State Travel,TITLE III,"$2,560.00"
48,J.F. Drake State,204340,"HUGHES, PATRICIA",Jun,15,2011,In-State Travel,TITLE III,$77.75
48,J.F. Drake State,204340,"HUGHES, PATRICIA",Jun,15,2011,Out-of-State Travel,TITLE III,$281.41
48,J.F. Drake State,204341,"LAMAR, JOYCE",Jun,15,2011,In-State Travel,TITLE III,$614.64
48,J.F. Drake State,204342,LYRASIS,Jun,15,2011,Memberships,TITLE III,$660.00
48,J.F. Drake State,204343,ML MARKET LAB,Jun,15,2011,Materials and Supplies,ALLIED HEALTH,$484.29
48,J.F. Drake State,204344,MOORE MEDICAL CORP,Jun,15,2011,Materials and Supplies,ALLIED HEALTH,$101.67
48,J.F. Drake State,204345,MSC INDUSTRIAL SUPPLY,Jun,15,2011,Furniture and Equipment,PERKINS FUNDS,"$13,900.33"
48,J.F. Drake State,204346,"OFFICE DEPOT, INC.",Jun,15,2011,Materials and Supplies,ALLIED HEALTH,"$1,176.64"
48,J.F. Drake State,204346,"OFFICE DEPOT, INC.",Jun,15,2011,Materials and Supplies,TITLE III,"$2,211.93"
48,J.F. Drake State,204346,"OFFICE DEPOT, INC.",Jun,15,2011,Materials and Supplies,STUDENT SUPPORT SERVICES,$300.73
48,J.F. Drake State,204347,"OFFICE DEPOT, INC.",Jun,15,2011,Materials and Supplies,ALLIED HEALTH,$237.15
48,J.F. Drake State,204348,"OFFICE DEPOT, INC.",Jun,15,2011,Materials and Supplies,ALLIED HEALTH,$279.92
48,J.F. Drake State,204349,"OFFICE DEPOT, INC.",Jun,15,2011,Materials and Supplies,NSF CARRYOVER,"$1,196.13"
48,J.F. Drake State,204350,"POPE, GWENDOLYN M.",Jun,15,2011,Out-of-State Travel,PERKINS FUNDS,$440.00
48,J.F. Drake State,204351,PRAVEENA KOMMIDI,Jun,15,2011,In-State Travel,TITLE III,$225.00
48,J.F. Drake State,204352,SAM'S CLUB/WALMART,Jun,15,2011,Materials and Supplies,TITLE III,$62.72
48,J.F. Drake State,204353,SCIENCE KIT BOREAL LAB,Jun,15,2011,Materials and Supplies,NSF CARRYOVER,$971.03
48,J.F. Drake State,204354,SEXTON WELDING SUPPLY,Jun,15,2011,Materials and Supplies,PERKINS FUNDS,"$1,058.55"
48,J.F. Drake State,204355,TEQUIPMENT.NET,Jun,15,2011,Materials and Supplies,PERKINS FUNDS,"$5,244.54"
48,J.F. Drake State,204356,THE NATIONAL ASSOC OF,Jun,15,2011,Out-of-State Travel,TITLE III,$400.00
48,J.F. Drake State,103335,ACT,Jun,14,2011,Materials and Supplies,UNRESTRICTED,"$1,270.00"
48,J.F. Drake State,103336,ALBERT'S FLOWERS,Jun,14,2011,Materials and Supplies,UNRESTRICTED,$81.00
48,J.F. Drake State,103337,CDW-G,Jun,14,2011,Materials and Supplies,UNRESTRICTED,$379.02
48,J.F. Drake State,103338,CENGAGE LEARNING,Jun,14,2011,Purchases for Resale,UNRESTRICTED,"$46,362.81"
48,J.F. Drake State,103340,COUNCIL ON OCCUP. EDUC.,Jun,14,2011,Memberships,UNRESTRICTED,"$4,080.00"
48,J.F. Drake State,103341,CURBSTONE CORP.,Jun,14,2011,Service Contracts on Equipment,UNRESTRICTED,"$1,875.00"
48,J.F. Drake State,103342,"DYNAMIC SECURITY, INC.",Jun,14,2011,Other Contractual Services,UNRESTRICTED,"$5,940.48"
48,J.F. Drake State,103343,EVOLVE REACH,Jun,14,2011,Purchases for Resale,AUXILIARY,$490.00
48,J.F. Drake State,103344,GADSDEN ST COMM COLLEGE,Jun,14,2011,Reserve Fee Expense,UNRESTRICTED,"$11,022.50"
48,J.F. Drake State,103345,GRAINGER,Jun,14,2011,Maintenance and Repairs,UNRESTRICTED,$240.54
48,J.F. Drake State,103346,L. MILLER & SON,Jun,14,2011,Materials and Supplies,UNRESTRICTED,"$1,434.78"
48,J.F. Drake State,103347,"MOBILE MINI, INC",Jun,14,2011,Rent - Equipment,PLANT FUNDS,$458.05
48,J.F. Drake State,103348,MCGRAW HILL EDUCATION,Jun,14,2011,Purchases for Resale,UNRESTRICTED,"$1,446.39"
48,J.F. Drake State,103349,MID CITY SUPPLY CO,Jun,14,2011,Materials and Supplies,UNRESTRICTED,"$1,772.16"
48,J.F. Drake State,103349,MID CITY SUPPLY CO,Jun,14,2011,Materials and Supplies,ARMY GRANT,$98.16
48,J.F. Drake State,103350,MID CITY SUPPLY CO,Jun,14,2011,Materials and Supplies,UNRESTRICTED,"$1,617.84"
48,J.F. Drake State,103351,PEARSON EDUCATION CTR,Jun,14,2011,Purchases for Resale,UNRESTRICTED,"$44,798.78"
48,J.F. Drake State,203657,AAAS,Jun,8,2011,Out-of-State Travel,NAT'L SCIENCE FOUNDATION,"$4,900.00"
48,J.F. Drake State,203658,AL SKILLS USA,Jun,8,2011,Out-of-State Travel,PERKINS FUNDS,$825.00
48,J.F. Drake State,203659,AL SKILLS USA,Jun,8,2011,Out-of-State Travel,PERKINS FUNDS,$495.00
48,J.F. Drake State,203660,CHASE A HEINTZELMAN,Jun,8,2011,Out-of-State Travel,NAT'L SCIENCE FOUNDATION,$33.97
48,J.F. Drake State,203661,COUNTRY INN & SUITES,Jun,8,2011,Out-of-State Travel,TITLE III,$261.99
48,J.F. Drake State,203662,COUNTRY INN & SUITES,Jun,8,2011,Out-of-State Travel,PERKINS FUNDS,$261.99
48,J.F. Drake State,203663,FBLA-PBL,Jun,8,2011,Out-of-State Travel,PERKINS FUNDS,$468.00
48,J.F. Drake State,203664,HOTEL AT TURF VALLEY,Jun,8,2011,Out-of-State Travel,TITLE III,"$1,032.30"
48,J.F. Drake State,203665,INTERNATIONAL CHRIE,Jun,8,2011,Out-of-State Travel,TITLE III,$295.00
48,J.F. Drake State,203666,LAWSON STATE COMM COLLEGE,Jun,8,2011,Out-of-State Travel,PERKINS FUNDS,$500.00
48,J.F. Drake State,203667,"MCALPINE, HELEN",Jun,8,2011,Out-of-State Travel,TITLE III,$462.38
48,J.F. Drake State,203668,JENNIFER OLINGER,Jun,8,2011,Out-of-State Travel,PERKINS FUNDS,$500.00
48,J.F. Drake State,203669,JENNIFER OLINGER,Jun,8,2011,Out-of-State Travel,PERKINS FUNDS,$300.00
48,J.F. Drake State,203670,JENNIFER OLINGER,Jun,8,2011,Out-of-State Travel,PERKINS FUNDS,$700.00
48,J.F. Drake State,203671,"SIMS, PATRICIA G.",Jun,8,2011,Out-of-State Travel,TITLE III,$165.00
48,J.F. Drake State,203672,SKILLS ALABAMA,Jun,8,2011,Out-of-State Travel,PERKINS FUNDS,"$1,950.00"
48,J.F. Drake State,203673,SKILLS ALABAMA,Jun,8,2011,Out-of-State Travel,PERKINS FUNDS,"$2,090.00"
48,J.F. Drake State,203674,U SAVE AUTO RENTAL,Jun,8,2011,In-State Travel,TITLE III,"$1,390.56"
48,J.F. Drake State,103301,ALA. SUPERCOMPUTER FUND,Jun,7,2011,Other Contractual Services,UNRESTRICTED,"$4,383.00"
48,J.F. Drake State,103302,ALBERT'S FLOWERS,Jun,7,2011,Institutional Use,UNRESTRICTED,$510.00
48,J.F. Drake State,103303,AT&T LONG DISTANCE SERV.,Jun,7,2011,Communications,UNRESTRICTED,$137.36
48,J.F. Drake State,103304,BARNES & NOBLE BOOKSTORES,Jun,7,2011,Materials and Supplies,UNRESTRICTED,-$24.00
48,J.F. Drake State,103304,BARNES & NOBLE BOOKSTORES,Jun,7,2011,Purchases for Resale,UNRESTRICTED,$719.75
48,J.F. Drake State,103305,BEAUTIFICATION PAINTING,Jun,7,2011,Materials and Supplies,ARMY GRANT,$730.00
48,J.F. Drake State,103306,BIRNBAUM INTERPRETING,Jun,7,2011,Other Contractual Services,UNRESTRICTED,"$7,020.00"
48,J.F. Drake State,103307,"BURMAX, INC.",Jun,7,2011,Purchases for Resale,UNRESTRICTED,"$7,106.54"
48,J.F. Drake State,103308,CAMINSTRUCTOR,Jun,7,2011,Purchases for Resale,UNRESTRICTED,"$1,300.00"
48,J.F. Drake State,103309,CAROLYN HENDERSON,Jun,7,2011,Out-of-State Travel,,$173.44
48,J.F. Drake State,103310,CHEVRON CARD SERVICES,Jun,7,2011,Gasoline and Oil - Motor Vehic,UNRESTRICTED,"$1,043.03"
48,J.F. Drake State,103311,"DIGILENT, INC",Jun,7,2011,Purchases for Resale,UNRESTRICTED,"$1,509.29"
48,J.F. Drake State,103312,"DYNAMIC SECURITY, INC.",Jun,7,2011,Other Contractual Services,UNRESTRICTED,"$5,940.48"
48,J.F. Drake State,103313,EDUCAUSE,Jun,7,2011,Other Contractual Services,UNRESTRICTED,$40.00
48,J.F. Drake State,103314,ELSEVIER/HESI,Jun,7,2011,Purchases for Resale,UNRESTRICTED,"$6,366.42"
48,J.F. Drake State,103315,FEDEX,Jun,7,2011,Postage,UNRESTRICTED,$187.38
48,J.F. Drake State,103316,GAIL FISCH,Jun,7,2011,In-State Travel,ADULT ED,$198.85
48,J.F. Drake State,103317,GOODHEART-WILCOX COMPANY,Jun,7,2011,Purchases for Resale,UNRESTRICTED,"$3,903.89"
48,J.F. Drake State,103318,HUNTSVILLE TIMES,Jun,7,2011,Advertising and Promotions,UNRESTRICTED,"$2,174.00"
48,J.F. Drake State,103319,INTERNATIONAL CHRIE,Jun,7,2011,Memberships,UNRESTRICTED,$200.00
48,J.F. Drake State,103320,KEYPLUS SCHOOL PRODUCTS,Jun,7,2011,Institutional Use,UNRESTRICTED,$477.35
48,J.F. Drake State,103321,THE LAMAR COMPANIES,Jun,7,2011,Advertising and Promotions,UNRESTRICTED,"$1,500.00"
48,J.F. Drake State,103323,MCGRAW HILL EDUCATION,Jun,7,2011,Purchases for Resale,UNRESTRICTED,"$4,723.57"
48,J.F. Drake State,103324,"MCGRAW-HILL, INC",Jun,7,2011,Purchases for Resale,UNRESTRICTED,"$36,618.24"
48,J.F. Drake State,103325,MCNEESE GLASS COMPANY,Jun,7,2011,Maintenance and Repairs,UNRESTRICTED,$184.00
48,J.F. Drake State,103326,MEADOWS MEDICAL SUPPLY IN,Jun,7,2011,Purchases for Resale,UNRESTRICTED,"$1,550.40"
48,J.F. Drake State,103328,NIGHTINGALE UNIFORM COMPA,Jun,7,2011,Purchases for Resale,UNRESTRICTED,"$1,364.95"
48,J.F. Drake State,103329,RICAHRD PEGNETTER,Jun,7,2011,Legal Services,UNRESTRICTED,"$4,916.84"
48,J.F. Drake State,103330,SACSCOC,Jun,7,2011,Memberships,UNRESTRICTED,"$6,322.00"
48,J.F. Drake State,103331,"SMITH, RYAN",Jun,7,2011,In-State Travel,ADULT ED,$596.38
48,J.F. Drake State,103332,THE ALABAMA LAWNMASTERS,Jun,7,2011,Other Contractual Services,UNRESTRICTED,"$3,045.00"
48,J.F. Drake State,103332,THE ALABAMA LAWNMASTERS,Jun,7,2011,Other Contractual Services,ARMY GRANT,$650.00
48,J.F. Drake State,103333,TRAV-AD SIGN COMPANY,Jun,7,2011,Materials and Supplies,ARMY GRANT,$138.00
48,J.F. Drake State,103334,"WOODY ANDERSON FORD, INC.",Jun,7,2011,Maintenance and Repairs,UNRESTRICTED,$75.30
48,J.F. Drake State,203647,AAC&U,Jun,3,2011,Out-of-State Travel,TITLE III,"$6,700.00"
48,J.F. Drake State,203648,ACCSISA,Jun,3,2011,In-State Travel,TITLE III,$300.00
48,J.F. Drake State,203649,ALABAMA COLLEGE SYSTEM PR,Jun,3,2011,In-State Travel,TITLE III,$300.00
48,J.F. Drake State,203650,ALACRAO,Jun,3,2011,In-State Travel,TITLE III,$360.00
48,J.F. Drake State,203651,HILTON WALT DISNEY WORLD,Jun,3,2011,Out-of-State Travel,ALLIED HEALTH,"$1,359.04"
48,J.F. Drake State,203652,"HUGHES, PATRICIA",Jun,3,2011,In-State Travel,TITLE III,$220.00
48,J.F. Drake State,203653,KRISHALON WILKERSON,Jun,3,2011,Employee Taxable Per Diem,NAT'L SCIENCE FOUNDATION,$11.25
48,J.F. Drake State,203654,MILLENNIUM SERVICES 2000,Jun,3,2011,Out-of-State Travel,NAT'L SCIENCE FOUNDATION,$375.00
48,J.F. Drake State,203655,THE UNIVERSITY OF ALABAMA,Jun,3,2011,In-State Travel,TITLE III,"$2,700.00"
48,J.F. Drake State,203656,WASHINGTON HILTON,Jun,3,2011,Out-of-State Travel,NAT'L SCIENCE FOUNDATION,$483.19
48,J.F. Drake State,203623,ACCSFMA,Jun,2,2011,In-State Travel,TITLE III,$125.00
48,J.F. Drake State,203624,ASSOC. OF GOVERNMENT ACCT,Jun,2,2011,In-State Travel,TITLE III,$249.00
48,J.F. Drake State,203625,CONNECTIONS/SACS,Jun,2,2011,Out-of-State Travel,TITLE III,"$2,056.20"
48,J.F. Drake State,203626,NATEF,Jun,2,2011,Memberships,TITLE III,$510.00
48,J.F. Drake State,203627,OFFICE DEPOT,Jun,2,2011,Materials and Supplies,TITLE III,$372.74
48,J.F. Drake State,203628,SEXTON WELDING SUPPLY,Jun,2,2011,Materials and Supplies,TITLE III,$585.00
48,J.F. Drake State,203629,NICOLE BELL,Jun,2,2011,In-State Travel,TITLE III,$225.00
48,J.F. Drake State,203630,BELTHER M MONONO,Jun,2,2011,Out-of-State Travel,NAT'L SCIENCE FOUNDATION,$78.90
48,J.F. Drake State,203631,BRUCE BULLUCK,Jun,2,2011,Out-of-State Travel,TITLE III,$501.99
48,J.F. Drake State,203632,DORIS HINTON,Jun,2,2011,Out-of-State Travel,ALLIED HEALTH,$455.42
48,J.F. Drake State,203634,VICKIE GREEN,Jun,2,2011,In-State Travel,ALLIED HEALTH,$30.00
48,J.F. Drake State,203635,"HENRY, DEXTER",Jun,2,2011,In-State Travel,PERKINS FUNDS,$116.77
48,J.F. Drake State,203635,"HENRY, DEXTER",Jun,2,2011,In-State Travel,TITLE III,$656.90
48,J.F. Drake State,203636,KRISHALON WILKERSON,Jun,2,2011,Materials and Supplies,NAT'L SCIENCE FOUNDATION,$331.08
48,J.F. Drake State,203637,LORAINE RAGIN,Jun,2,2011,In-State Travel,TITLE III,$351.50
48,J.F. Drake State,203638,"MCALPINE, HELEN",Jun,2,2011,Employee Taxable Per Diem,TITLE III,$30.00
48,J.F. Drake State,203639,PREMA A MONTEIRO,Jun,2,2011,In-State Travel,TITLE III,$331.00
48,J.F. Drake State,203640,JENNIFER OLINGER,Jun,2,2011,In-State Travel,TITLE III,$225.00
48,J.F. Drake State,203641,"PRUITT, FREDERICK",Jun,2,2011,In-State Travel,TITLE III,$225.00
48,J.F. Drake State,203642,"RAYMOND, ALICE",Jun,2,2011,Out-of-State Travel,ALLIED HEALTH,$198.37
48,J.F. Drake State,203643,GIL TURLEY,Jun,2,2011,Out-of-State Travel,TITLE III,"$1,434.52"
48,J.F. Drake State,203644,UTHSCSA SCHOOL OF NURSING,Jun,2,2011,Out-of-State Travel,ALLIED HEALTH,$625.00
48,J.F. Drake State,203645,UTHSCSA SCHOOL OF NURSING,Jun,2,2011,Out-of-State Travel,ALLIED HEALTH,$625.00
48,J.F. Drake State,203646,WASHINGTON MARRIOTT WARDM,Jun,2,2011,Out-of-State Travel,NAT'L SCIENCE FOUNDATION,$535.86
48,J.F. Drake State,301239,ROBBIE LEE AKINS,May,31,2011,Support Personnel Salaries - S,UNRESTRICTED,"$2,113.00"
48,J.F. Drake State,301240,BEN BATTLE,May,31,2011,Instructional Salaries - Regul,UNRESTRICTED,"$5,306.36"
48,J.F. Drake State,301241,DEAVIANCE FOWLKS BLEVINS,May,31,2011,Instructional Salaries - Tempo,ALLIED HEALTH,$725.00
48,J.F. Drake State,301242,STEPHANIE JONES BOUNDS,May,31,2011,Instructional Salaries - Regul,UNRESTRICTED,"$3,535.00"
48,J.F. Drake State,301243,APRIL CLEMENT,May,31,2011,Other Professional Salaries -,TITLE III,"$4,000.00"
48,J.F. Drake State,301244,RICHARD COLLIE,May,31,2011,Other Professional Salaries -,STUDENT SUPPORT SERVICES,"$2,076.96"
48,J.F. Drake State,301246,REGINA LYNNE CRAWFORD,May,31,2011,Support Personnel Salaries - S,UNRESTRICTED,"$3,080.00"
48,J.F. Drake State,301247,CHRISTINE H DAVIS,May,31,2011,Instructional Salaries - Regul,UNRESTRICTED,"$2,031.59"
48,J.F. Drake State,301248,VERNESSA M EDWARDS,May,31,2011,Instructional Salaries - Tempo,UNRESTRICTED,$562.50
48,J.F. Drake State,301249,ROBERT N GRISSIM,May,31,2011,Instructional Salaries - Tempo,UNRESTRICTED,"$1,125.00"
48,J.F. Drake State,301250,JORDAN DAVID GUERIN,May,31,2011,Hourly Wages,TITLE III,$381.25
48,J.F. Drake State,301251,SAMUEL V GUISHARD,May,31,2011,Instructional Salaries - Tempo,UNRESTRICTED,"$1,687.50"
48,J.F. Drake State,301252,TROY LEE HARAWAY,May,31,2011,Hourly Wages,TITLE III,$462.50
48,J.F. Drake State,301253,CHARMAINE A HOVIS,May,31,2011,Instructional Salaries - Tempo,UNRESTRICTED,$352.50
48,J.F. Drake State,301254,JUSTIN M KELLY,May,31,2011,Instructional Salaries - Tempo,UNRESTRICTED,$675.00
48,J.F. Drake State,301255,SUSAN KREULEN,May,31,2011,Instructional Salaries - Tempo,ADULT ED,$682.50
48,J.F. Drake State,301256,TELLUS LANGFORD,May,31,2011,Instructional Salaries - Tempo,UNRESTRICTED,$675.00
48,J.F. Drake State,301257,CHRISTEN LANE LEONARD,May,31,2011,Hourly Wages,TITLE III,$771.88
48,J.F. Drake State,301258,EDWIN EARL MARKS,May,31,2011,Hourly Wages,TITLE III,$625.00
48,J.F. Drake State,301259,RICHARD H NEWTON,May,31,2011,Hourly Wages,NAT'L SCIENCE FOUNDATION,$462.50
48,J.F. Drake State,301260,DOROTHY J NOBLE,May,31,2011,Instructional Salaries - Tempo,UNRESTRICTED,"$1,800.00"
48,J.F. Drake State,301261,GWENDOLYN D POPE,May,31,2011,Instructional Salaries - Tempo,UNRESTRICTED,$337.50
48,J.F. Drake State,301261,GWENDOLYN D POPE,May,31,2011,Instructional Salaries - Regul,UNRESTRICTED,"$5,651.75"
48,J.F. Drake State,301262,AMANDA R SIMPSON,May,31,2011,Support Personnel Salaries - S,UNRESTRICTED,"$2,112.00"
48,J.F. Drake State,301263,RUSSELL B THOMAS,May,31,2011,Hourly Wages,TITLE III,"$1,187.50"
48,J.F. Drake State,301264,MELINDA WEST,May,31,2011,Instructional Salaries - Tempo,UNRESTRICTED,$30.00
48,J.F. Drake State,301265,CALANDRA S WILLIAMS,May,31,2011,Instructional Salaries - Tempo,ADULT ED,$402.50
48,J.F. Drake State,301266,BRYAN T WRIGHTS,May,31,2011,Instructional Salaries - Tempo,UNRESTRICTED,"$1,012.50"
48,J.F. Drake State,90001524,LYSA AUGUSTIN,May,31,2011,Instructional Salaries - Tempo,ADULT ED,$264.00
48,J.F. Drake State,90001525,CAROLYN AVRITTE,May,31,2011,Instructional Salaries - Tempo,UNRESTRICTED,$735.63
48,J.F. Drake State,90001526,KANDICE D BARNES,May,31,2011,Hourly Wages,NAT'L SCIENCE FOUNDATION,$975.00
48,J.F. Drake State,90001527,NELSON E BARNES,May,31,2011,Instructional Salaries - Tempo,UNRESTRICTED,"$1,012.50"
48,J.F. Drake State,90001529,HAROLD E BATTS,May,31,2011,Other Professional Salaries -,UNRESTRICTED,"$8,649.00"
48,J.F. Drake State,90001531,ANGELA NICOLE BELL,May,31,2011,Instructional Salaries - Regul,UNRESTRICTED,"$5,372.00"
48,J.F. Drake State,90001533,PATRICE BIVINS,May,31,2011,Support Personnel Salaries - S,STUDENT SUPPORT SERVICES,"$1,889.83"
48,J.F. Drake State,90001534,JACQUELINE T BOOKER,May,31,2011,Support Personnel Salaries - S,NAT'L SCIENCE FOUNDATION,"$1,940.20"
48,J.F. Drake State,90001535,CHERYL BRAWLEY-KELLY,May,31,2011,Instructional Salaries - Tempo,UNRESTRICTED,"$1,215.00"
48,J.F. Drake State,90001536,LASHONDA D BROWN,May,31,2011,Instructional Salaries - Tempo,UNRESTRICTED,$337.50
48,J.F. Drake State,90001537,BRUCE A BULLUCK,May,31,2011,Other Professional Salaries -,UNRESTRICTED,"$5,833.33"
48,J.F. Drake State,90001538,LINDA BURRUSS,May,31,2011,Instructional Salaries - Tempo,UNRESTRICTED,$112.50
48,J.F. Drake State,90001539,KHALILAH BURTON,May,31,2011,Instructional Salaries - Regul,UNRESTRICTED,"$2,796.75"
48,J.F. Drake State,90001539,KHALILAH BURTON,May,31,2011,Instructional Salaries - Regul,NAT'L SCIENCE FOUNDATION,$932.25
48,J.F. Drake State,90001540,KEMBA CHAMBERS,May,31,2011,Other Professional Salaries -,UNRESTRICTED,"$7,360.42"
48,J.F. Drake State,90001541,KATIE E CHANCE,May,31,2011,Support Personnel Salaries - S,UNRESTRICTED,"$2,485.42"
48,J.F. Drake State,90001542,ROGER CHEN,May,31,2011,Instructional Salaries - Tempo,UNRESTRICTED,$112.50
48,J.F. Drake State,90001542,ROGER CHEN,May,31,2011,Hourly Wages,NAT'L SCIENCE FOUNDATION,$160.00
48,J.F. Drake State,90001543,ADAM CLARK,May,31,2011,Instructional Salaries - Regul,UNRESTRICTED,"$4,934.36"
48,J.F. Drake State,90001543,ADAM CLARK,May,31,2011,Instructional Salaries - Tempo,UNRESTRICTED,"$1,237.50"
48,J.F. Drake State,90001544,MONIQUE C COSBY,May,31,2011,Support Personnel Salaries - S,ARRA STIMULUS FUNDS,"$3,228.75"
48,J.F. Drake State,90001545,DEIONE L CRUTCHER,May,31,2011,Support Personnel Salaries - S,ADULT ED,$880.75
48,J.F. Drake State,90001546,MATTIE D DAVIS,May,31,2011,Instructional Salaries - Regul,UNRESTRICTED,"$6,493.52"
48,J.F. Drake State,90001547,BRANDIE A DEL VALLE,May,31,2011,Instructional Salaries - Tempo,UNRESTRICTED,$195.00
48,J.F. Drake State,90001548,MARLO DRAKE,May,31,2011,Support Personnel Salaries - S,ARRA STIMULUS FUNDS,"$2,365.69"
48,J.F. Drake State,90001548,MARLO DRAKE,May,31,2011,Support Personnel Salaries - S,TITLE III,$788.56
48,J.F. Drake State,90001549,MARTHA W DUBEY,May,31,2011,Support Personnel Salaries - S,UNRESTRICTED,"$4,500.00"
48,J.F. Drake State,90001550,CHRISTIANA A OPARA EGBUJO,May,31,2011,Instructional Salaries - Tempo,UNRESTRICTED,$930.00
48,J.F. Drake State,90001551,RONALD E EGSON,May,31,2011,Instructional Salaries - Tempo,UNRESTRICTED,$675.00
48,J.F. Drake State,90001552,ROSELINE C ELIKE,May,31,2011,Instructional Salaries - Tempo,UNRESTRICTED,"$1,230.00"
48,J.F. Drake State,90001553,GAIL E FISCH,May,31,2011,Instructional Salaries - Regul,ADULT ED,"$2,687.50"
48,J.F. Drake State,90001554,EDWIN T FORBES,May,31,2011,Instructional Salaries - Regul,UNRESTRICTED,"$3,951.42"
48,J.F. Drake State,90001554,EDWIN T FORBES,May,31,2011,Instructional Salaries - Tempo,UNRESTRICTED,$675.00
48,J.F. Drake State,90001555,HORACE L FRANKLIN JR,May,31,2011,Instructional Salaries - Regul,UNRESTRICTED,"$4,972.00"
48,J.F. Drake State,90001556,MATTIE B FREEMAN,May,31,2011,Instructional Salaries - Tempo,UNRESTRICTED,"$1,650.00"
48,J.F. Drake State,90001557,WENDY F GANNON,May,31,2011,Other Professional Salaries -,ALLIED HEALTH,"$5,268.55"
48,J.F. Drake State,90001558,JAMEHA L GARDNER,May,31,2011,Instructional Salaries - Tempo,UNRESTRICTED,$337.50
48,J.F. Drake State,90001559,SYMMETRIS K GOHANNA,May,31,2011,Instructional Salaries - Regul,UNRESTRICTED,"$5,823.88"
48,J.F. Drake State,90001559,SYMMETRIS K GOHANNA,May,31,2011,Instructional Salaries - Tempo,UNRESTRICTED,$337.50
48,J.F. Drake State,90001560,LARDELL GOODLOE JR,May,31,2011,Instructional Salaries - Regul,UNRESTRICTED,"$5,009.88"
48,J.F. Drake State,90001561,TIMOTHY RYAN GREEN,May,31,2011,Instructional Salaries - Tempo,UNRESTRICTED,"$2,025.00"
48,J.F. Drake State,90001561,TIMOTHY RYAN GREEN,May,31,2011,Instructional Salaries - Regul,ARRA STIMULUS FUNDS,"$3,823.76"
48,J.F. Drake State,90001562,VICKIE E GREEN,May,31,2011,Instructional Salaries - Regul,ALLIED HEALTH,"$4,972.00"
48,J.F. Drake State,90001563,CHARLES GROSS,May,31,2011,Instructional Salaries - Tempo,UNRESTRICTED,$675.00
48,J.F. Drake State,90001564,MANELZA CRAWFORD HAMBRICK,May,31,2011,Support Personnel Salaries - S,UNRESTRICTED,"$2,411.00"
48,J.F. Drake State,90001565,AUNDREA D HANSON,May,31,2011,Instructional Salaries - Tempo,UNRESTRICTED,$675.00
48,J.F. Drake State,90001566,KATRINA J HARRIS,May,31,2011,Support Personnel Salaries - S,UNRESTRICTED,$955.75
48,J.F. Drake State,90001566,KATRINA J HARRIS,May,31,2011,Support Personnel Salaries - S,TITLE III,"$2,867.25"
48,J.F. Drake State,90001567,CAROLYN HENDERSON,May,31,2011,Instructional Salaries - Tempo,UNRESTRICTED,"$1,012.50"
48,J.F. Drake State,90001567,CAROLYN HENDERSON,May,31,2011,Instructional Salaries - Regul,UNRESTRICTED,"$2,963.56"
48,J.F. Drake State,90001567,CAROLYN HENDERSON,May,31,2011,Instructional Salaries - Regul,NAT'L SCIENCE FOUNDATION,$987.85
48,J.F. Drake State,90001568,DEXTER R HENRY,May,31,2011,Instructional Salaries - Regul,UNRESTRICTED,"$6,416.88"
48,J.F. Drake State,90001568,DEXTER R HENRY,May,31,2011,Instructional Salaries - Tempo,UNRESTRICTED,$562.50
48,J.F. Drake State,90001569,KARL W HENRY SR,May,31,2011,Instructional Salaries - Regul,UNRESTRICTED,"$5,546.25"
48,J.F. Drake State,90001569,KARL W HENRY SR,May,31,2011,Instructional Salaries - Tempo,UNRESTRICTED,"$2,025.00"
48,J.F. Drake State,90001569,KARL W HENRY SR,May,31,2011,Instructional Salaries - Regul,NAT'L SCIENCE FOUNDATION,"$1,715.39"
48,J.F. Drake State,90001570,DORIS HINTON,May,31,2011,Instructional Salaries - Regul,UNRESTRICTED,"$5,416.76"
48,J.F. Drake State,90001570,DORIS HINTON,May,31,2011,Instructional Salaries - Tempo,ALLIED HEALTH,$375.00
48,J.F. Drake State,90001571,CANDICE HOWELL,May,31,2011,Instructional Salaries - Tempo,UNRESTRICTED,$337.50
48,J.F. Drake State,90001572,PATRICIA HUGHES,May,31,2011,Administrative Salaries- Sched,UNRESTRICTED,"$7,893.08"
48,J.F. Drake State,90001574,JAN J HYMAN,May,31,2011,Support Personnel Salaries - S,ALLIED HEALTH,"$3,154.50"
48,J.F. Drake State,90001576,NEOKA JANE IVEY,May,31,2011,Support Personnel Salaries - S,UNRESTRICTED,"$1,889.83"
48,J.F. Drake State,90001577,SARAH J JAMAR,May,31,2011,Instructional Salaries - Tempo,UNRESTRICTED,"$1,012.50"
48,J.F. Drake State,90001577,SARAH J JAMAR,May,31,2011,Hourly Wages,NAT'L SCIENCE FOUNDATION,"$1,520.00"
48,J.F. Drake State,90001578,DONYALE D JONES,May,31,2011,Instructional Salaries - Tempo,UNRESTRICTED,$112.50
48,J.F. Drake State,90001578,DONYALE D JONES,May,31,2011,Support Personnel Salaries - S,TITLE III,"$3,303.41"
48,J.F. Drake State,90001579,PETURA M JONES,May,31,2011,Instructional Salaries - Tempo,UNRESTRICTED,$562.50
48,J.F. Drake State,90001580,PINEY L JORDAN,May,31,2011,Instructional Salaries - Tempo,UNRESTRICTED,"$1,425.00"
48,J.F. Drake State,90001581,CHERYL P KEMP,May,31,2011,Instructional Salaries - Tempo,UNRESTRICTED,"$2,400.00"
48,J.F. Drake State,90001582,PRAVEENA KOMMIDI,May,31,2011,Instructional Salaries - Tempo,UNRESTRICTED,"$1,350.00"
48,J.F. Drake State,90001582,PRAVEENA KOMMIDI,May,31,2011,Instructional Salaries - Regul,UNRESTRICTED,"$6,345.33"
48,J.F. Drake State,90001583,NICHOLAS PAUL KSEPKA,May,31,2011,Hourly Wages,UNRESTRICTED,"$1,170.00"
48,J.F. Drake State,90001583,NICHOLAS PAUL KSEPKA,May,31,2011,Hourly Wages,NAT'L SCIENCE FOUNDATION,$255.00
48,J.F. Drake State,90001584,HONG THUYDUC LAM,May,31,2011,Instructional Salaries - Regul,UNRESTRICTED,"$6,082.64"
48,J.F. Drake State,90001585,JOYCE P LAMAR,May,31,2011,Support Personnel Salaries - S,UNRESTRICTED,"$4,419.17"
48,J.F. Drake State,90001586,DEBORAH WORLEY LEMIRE,May,31,2011,Instructional Salaries - Tempo,ALLIED HEALTH,$825.00
48,J.F. Drake State,90001587,CASEY D LEWIS,May,31,2011,Instructional Salaries - Tempo,UNRESTRICTED,$225.00
48,J.F. Drake State,90001588,STEPHANY L STEINFAITH,May,31,2011,Instructional Salaries - Tempo,UNRESTRICTED,$337.50
48,J.F. Drake State,90001589,RODNEY D MARTIN,May,31,2011,Hourly Wages,TITLE III,"$1,187.50"
48,J.F. Drake State,90001590,MICHEAL V MAXTON,May,31,2011,Instructional Salaries - Tempo,UNRESTRICTED,$675.00
48,J.F. Drake State,90001591,HELEN T MCALPINE,May,31,2011,Administrative Salaries- Sched,UNRESTRICTED,"$14,266.45"
48,J.F. Drake State,90001591,HELEN T MCALPINE,May,31,2011,President's Expense Allowance,UNRESTRICTED,$200.00
48,J.F. Drake State,90001591,HELEN T MCALPINE,May,31,2011,Housing Allowance,UNRESTRICTED,"$1,000.00"
48,J.F. Drake State,90001592,DEMETIUS L MCCARTY,May,31,2011,Support Personnel Salaries - S,UNRESTRICTED,"$2,113.00"
48,J.F. Drake State,90001593,JERRY L MCCAULLEY,May,31,2011,Instructional Salaries - Tempo,UNRESTRICTED,"$1,800.00"
48,J.F. Drake State,90001594,PATRICK T MCDONALD,May,31,2011,Hourly Wages,TITLE III,"$1,187.50"
48,J.F. Drake State,90001595,MISHIKI A MCINTYRE,May,31,2011,Hourly Wages,TITLE III,$825.00
48,J.F. Drake State,90001596,SCOTTY MCLAUGHLIN,May,31,2011,Instructional Salaries - Regul,UNRESTRICTED,"$7,016.48"
48,J.F. Drake State,90001596,SCOTTY MCLAUGHLIN,May,31,2011,Instructional Salaries - Tempo,UNRESTRICTED,$450.00
48,J.F. Drake State,90001597,TABITHA D MCWILLIAMS,May,31,2011,Support Personnel Salaries - S,UNRESTRICTED,"$2,038.66"
48,J.F. Drake State,90001598,DEBORAH A MILLING,May,31,2011,Instructional Salaries - Regul,UNRESTRICTED,"$4,962.33"
48,J.F. Drake State,90001598,DEBORAH A MILLING,May,31,2011,Instructional Salaries - Tempo,ALLIED HEALTH,$600.00
48,J.F. Drake State,90001599,SAMMY J MILTON,May,31,2011,Support Personnel Salaries - S,UNRESTRICTED,"$3,452.83"
48,J.F. Drake State,90001600,PREMA A MONTEIRO,May,31,2011,Instructional Salaries - Regul,UNRESTRICTED,"$4,823.76"
48,J.F. Drake State,90001601,ALFRED CROSHAN MOORE,May,31,2011,Instructional Salaries - Tempo,UNRESTRICTED,$750.00
48,J.F. Drake State,90001602,MARY JO MORAN,May,31,2011,Instructional Salaries - Tempo,UNRESTRICTED,$660.00
48,J.F. Drake State,90001603,BRUCE D MORRISON,May,31,2011,Support Personnel Salaries - S,UNRESTRICTED,"$4,196.17"
48,J.F. Drake State,90001604,KATHRYN B NEAL,May,31,2011,Other Professional Salaries -,UNRESTRICTED,"$7,905.25"
48,J.F. Drake State,90001606,JENNIFER O'LINGER,May,31,2011,Other Professional Salaries -,UNRESTRICTED,"$4,333.00"
48,J.F. Drake State,90001607,DONALD ORR,May,31,2011,Support Personnel Salaries - S,UNRESTRICTED,"$3,750.17"
48,J.F. Drake State,90001608,JENNIFER E PATTERSON,May,31,2011,Instructional Salaries - Regul,UNRESTRICTED,"$4,981.42"
48,J.F. Drake State,90001609,ALBERT B PETERSON II,May,31,2011,Instructional Salaries - Tempo,ADULT ED,$84.50
48,J.F. Drake State,90001610,JERROLD DION PHIPPS,May,31,2011,Instructional Salaries - Tempo,UNRESTRICTED,"$2,025.00"
48,J.F. Drake State,90001611,INODU TONY PIRI,May,31,2011,Instructional Salaries - Tempo,UNRESTRICTED,$337.50
48,J.F. Drake State,90001612,JAMES W PLEASURE,May,31,2011,Instructional Salaries - Tempo,UNRESTRICTED,"$2,025.00"
48,J.F. Drake State,90001613,JAMES ANTHONY PLENTY,May,31,2011,Instructional Salaries - Tempo,UNRESTRICTED,$337.50
48,J.F. Drake State,90001614,BARBARA J PRIMEAUX,May,31,2011,Support Personnel Salaries - S,UNRESTRICTED,"$2,336.00"
48,J.F. Drake State,90001615,FREDRICK O PRUITT,May,31,2011,Instructional Salaries - Regul,UNRESTRICTED,"$4,972.00"
48,J.F. Drake State,90001615,FREDRICK O PRUITT,May,31,2011,Instructional Salaries - Tempo,UNRESTRICTED,"$1,350.00"
48,J.F. Drake State,90001616,KARL A PRUITT,May,31,2011,Instructional Salaries - Tempo,UNRESTRICTED,"$1,125.00"
48,J.F. Drake State,90001617,MICHAEL RADDEN,May,31,2011,Instructional Salaries - Tempo,UNRESTRICTED,"$1,012.50"
48,J.F. Drake State,90001618,LORAINE RAGIN,May,31,2011,Instructional Salaries - Regul,UNRESTRICTED,"$3,823.76"
48,J.F. Drake State,90001619,ALICE G RAYMOND,May,31,2011,Instructional Salaries - Regul,UNRESTRICTED,"$8,079.64"
48,J.F. Drake State,90001620,JAMES A REID,May,31,2011,Support Personnel Salaries - S,STUDENT SUPPORT SERVICES,$727.71
48,J.F. Drake State,90001621,JOYCE L RENTZ,May,31,2011,Instructional Salaries - Regul,UNRESTRICTED,"$6,706.36"
48,J.F. Drake State,90001621,JOYCE L RENTZ,May,31,2011,Instructional Salaries - Tempo,UNRESTRICTED,"$1,012.50"
48,J.F. Drake State,90001622,JOHN REUTTER III,May,31,2011,Other Professional Salaries -,NAT'L SCIENCE FOUNDATION,"$6,616.75"
48,J.F. Drake State,90001623,LYSCELLE M REYES,May,31,2011,Instructional Salaries - Tempo,UNRESTRICTED,$562.50
48,J.F. Drake State,90001623,LYSCELLE M REYES,May,31,2011,Hourly Wages,NAT'L SCIENCE FOUNDATION,$780.00
48,J.F. Drake State,90001624,HAZEL L RICHARDSON,May,31,2011,Instructional Salaries - Tempo,UNRESTRICTED,$225.00
48,J.F. Drake State,90001625,MARTHA J ROBERTS,May,31,2011,Support Personnel Salaries - S,UNRESTRICTED,"$4,940.33"
48,J.F. Drake State,90001626,BARRY E SHELTON,May,31,2011,Instructional Salaries - Tempo,UNRESTRICTED,$420.00
48,J.F. Drake State,90001627,JACQUELINE M SHIVERS,May,31,2011,Instructional Salaries - Tempo,ADULT ED,"$1,287.50"
48,J.F. Drake State,90001628,LESLEY SHOTTS,May,31,2011,Instructional Salaries - Regul,UNRESTRICTED,"$4,336.17"
48,J.F. Drake State,90001629,PATRICIA GORDON SIMS,May,31,2011,Administrative Salaries- Sched,UNRESTRICTED,"$9,245.09"
48,J.F. Drake State,90001630,KAREN DENISE SMITH,May,31,2011,Instructional Salaries - Tempo,UNRESTRICTED,$112.50
48,J.F. Drake State,90001631,RYAN E SMITH,May,31,2011,Other Professional Salaries -,ADULT ED,"$4,000.00"
48,J.F. Drake State,90001632,DELORIS A SMOTHERS,May,31,2011,Instructional Salaries - Tempo,UNRESTRICTED,$675.00
48,J.F. Drake State,90001632,DELORIS A SMOTHERS,May,31,2011,Instructional Salaries - Regul,UNRESTRICTED,"$7,261.64"
48,J.F. Drake State,90001633,JULIE P SPURGEON,May,31,2011,Support Personnel Salaries - S,UNRESTRICTED,"$1,964.25"
48,J.F. Drake State,90001634,VERLINDSEY B STEWART,May,31,2011,Instructional Salaries - Regul,UNRESTRICTED,"$6,616.48"
48,J.F. Drake State,90001635,MONICA SUDEALL-HAWKINS,May,31,2011,Other Professional Salaries -,UNRESTRICTED,"$4,993.33"
48,J.F. Drake State,90001636,CHARLES A SULLINS JR,May,31,2011,Instructional Salaries - Tempo,UNRESTRICTED,$337.50
48,J.F. Drake State,90001637,SHANNON SUMMERS,May,31,2011,Instructional Salaries - Tempo,ADULT ED,$352.00
48,J.F. Drake State,90001638,DOCQUINN N TAYLOR,May,31,2011,Instructional Salaries - Tempo,UNRESTRICTED,$112.50
48,J.F. Drake State,90001638,DOCQUINN N TAYLOR,May,31,2011,Hourly Wages,TITLE III,"$1,200.00"
48,J.F. Drake State,90001639,YOLANDA R TONEY,May,31,2011,Instructional Salaries - Tempo,UNRESTRICTED,$675.00
48,J.F. Drake State,90001640,JOY D TORNQUIST,May,31,2011,Instructional Salaries - Tempo,UNRESTRICTED,"$2,010.00"
48,J.F. Drake State,90001641,KRISTIN TREADWAY,May,31,2011,Support Personnel Salaries - S,ALLIED HEALTH,"$2,782.25"
48,J.F. Drake State,90001642,ELIZABETH A TUGGLE,May,31,2011,Instructional Salaries - Tempo,ADULT ED,"$1,092.00"
48,J.F. Drake State,90001643,GILBERT T TURLEY,May,31,2011,Other Professional Salaries -,UNRESTRICTED,"$6,450.08"
48,J.F. Drake State,90001644,KAROL C WADDELL,May,31,2011,Other Professional Salaries -,READY TO WORK,"$2,430.00"
48,J.F. Drake State,90001645,LETITIA E WALKER,May,31,2011,Support Personnel Salaries - S,UNRESTRICTED,"$3,229.42"
48,J.F. Drake State,90001646,TAMMY G WALKER,May,31,2011,Instructional Salaries - Tempo,ADULT ED,$360.00
48,J.F. Drake State,90001647,THEO NATHAN WALSTON,May,31,2011,Support Personnel Salaries - S,UNRESTRICTED,"$3,095.41"
48,J.F. Drake State,90001647,THEO NATHAN WALSTON,May,31,2011,Hourly Wages,NAT'L SCIENCE FOUNDATION,$240.00
48,J.F. Drake State,90001648,KATINA L WALTON,May,31,2011,Instructional Salaries - Tempo,ADULT ED,$819.00
48,J.F. Drake State,90001649,DWAYNIA WILKERSON,May,31,2011,Hourly Wages,TITLE III,$840.00
48,J.F. Drake State,90001650,KRISHALON WILKERSON,May,31,2011,Support Personnel Salaries - S,TECH PREP FUNDS,"$1,688.83"
48,J.F. Drake State,90001650,KRISHALON WILKERSON,May,31,2011,Support Personnel Salaries - S,NAT'L SCIENCE FOUNDATION,"$1,688.83"
48,J.F. Drake State,90001651,RICKY WILLINGHAM,May,31,2011,Other Professional Salaries -,TITLE III,"$6,886.00"
48,J.F. Drake State,90001652,INA M WILSON,May,31,2011,Other Professional Salaries -,TITLE III,"$4,333.33"
48,J.F. Drake State,90001653,TRACEY L WILSON,May,31,2011,Instructional Salaries - Tempo,UNRESTRICTED,"$1,125.00"
48,J.F. Drake State,90001654,BRANDI G WINCHESTER,May,31,2011,Instructional Salaries - Tempo,UNRESTRICTED,"$1,350.00"
48,J.F. Drake State,90001655,GEORGE R WINN,May,31,2011,Instructional Salaries - Regul,UNRESTRICTED,"$5,527.36"
48,J.F. Drake State,90001655,GEORGE R WINN,May,31,2011,Instructional Salaries - Tempo,UNRESTRICTED,$337.50
48,J.F. Drake State,90001656,ROSE M YATES,May,31,2011,Instructional Salaries - Tempo,UNRESTRICTED,$112.50
48,J.F. Drake State,90001657,ANDRAIN YELDELL,May,31,2011,Instructional Salaries - Tempo,UNRESTRICTED,$112.50
48,J.F. Drake State,90001658,DANIEL W YOCOM,May,31,2011,Support Personnel Salaries - S,CAREER COACHES,"$2,559.33"
48,J.F. Drake State,102405,AMERICAN TECH. PUBLISHERS,May,20,2011,Purchases for Resale,UNRESTRICTED,"$1,861.58"
48,J.F. Drake State,102407,GREENWAY PLUMBING,May,20,2011,Maintenance and Repairs,PLANT FUNDS,$602.00
48,J.F. Drake State,102408,J. A. MAJORS COMPANY,May,20,2011,Purchases for Resale,UNRESTRICTED,"$1,888.84"
48,J.F. Drake State,102409,JOHNSTONE SUPPLY,May,20,2011,Purchases for Resale,UNRESTRICTED,"$1,168.59"
48,J.F. Drake State,102410,JOHNSTONE SUPPLY,May,20,2011,Purchases for Resale,UNRESTRICTED,"$1,168.59"
48,J.F. Drake State,102411,JOHNSTONE SUPPLY,May,20,2011,Purchases for Resale,UNRESTRICTED,"$1,168.59"
48,J.F. Drake State,102412,JOHNSTONE SUPPLY,May,20,2011,Purchases for Resale,UNRESTRICTED,"$1,168.59"
48,J.F. Drake State,102413,KOORSEN PROTECTION SERVIC,May,20,2011,Materials and Supplies,ARMY GRANT,$259.00
48,J.F. Drake State,102414,"LANIER,FORD,SHAVER &",May,20,2011,Legal Services,UNRESTRICTED,"$19,340.19"
48,J.F. Drake State,102415,MICROCHIP DIRECT,May,20,2011,Purchases for Resale,UNRESTRICTED,$584.79
48,J.F. Drake State,102416,NORTH AL SICKLE CELL,May,20,2011,Advertising and Promotions,UNRESTRICTED,$500.00
48,J.F. Drake State,102417,RANDALL A SCHRIMSHER,May,20,2011,Rent - Facilities,UNRESTRICTED,"$6,250.00"
48,J.F. Drake State,102418,SAM'S CLUB/WALMART,May,20,2011,Materials and Supplies,UNRESTRICTED,$145.31
48,J.F. Drake State,102419,SAM'S CLUB/WALMART,May,20,2011,Purchases for Resale,UNRESTRICTED,$250.00
48,J.F. Drake State,102420,SCHROFF DEVELOPMENT CORP,May,20,2011,Purchases for Resale,UNRESTRICTED,$753.00
48,J.F. Drake State,102421,ROBERT SMITH,May,20,2011,Other Contractual Services,UNRESTRICTED,$600.00
48,J.F. Drake State,102422,SOUTHERNLINC WIRELESS,May,20,2011,Communications,UNRESTRICTED,$15.90
48,J.F. Drake State,102423,"THE SOLUTIONS TEAM, INC",May,20,2011,Other Contractual Services,UNRESTRICTED,$200.00
48,J.F. Drake State,102424,WASTE MANAGEMENT OF NORTH,May,20,2011,Other Contractual Services,UNRESTRICTED,$413.51
48,J.F. Drake State,90001523,MELANIE K ALLEN,May,19,2011,Other Professional Salaries -,UNRESTRICTED,"$1,632.91"
48,J.F. Drake State,102399,GLIDDEN PROFESSIONAL PAI,May,18,2011,Maintenance and Repairs,UNRESTRICTED,$58.60
48,J.F. Drake State,102400,NACUBO,May,18,2011,Memberships,UNRESTRICTED,$125.00
48,J.F. Drake State,102365,ACT,May,13,2011,Materials and Supplies,UNRESTRICTED,"$1,463.00"
48,J.F. Drake State,102366,AT&T LONG DISTANCE SERV.,May,13,2011,Communications,UNRESTRICTED,$145.36
48,J.F. Drake State,102367,BIRNBAUM INTERPRETING,May,13,2011,Other Contractual Services,UNRESTRICTED,"$3,510.00"
48,J.F. Drake State,102368,BRUCE BULLUCK,May,13,2011,Materials and Supplies,PLANT FUNDS,$74.11
48,J.F. Drake State,102369,CDW-G,May,13,2011,Other Contractual Services,UNRESTRICTED,$734.38
48,J.F. Drake State,102370,CHEVRON CARD SERVICES,May,13,2011,Gasoline and Oil - Motor Vehic,UNRESTRICTED,$714.39
48,J.F. Drake State,102371,COASTAL SKILLS TRAINING D,May,13,2011,Materials and Supplies,READY TO WORK,"$1,000.00"
48,J.F. Drake State,102372,"DYNAMIC SECURITY, INC.",May,13,2011,Other Contractual Services,UNRESTRICTED,"$17,821.44"
48,J.F. Drake State,102373,"DYNAMIC SECURITY, INC.",May,13,2011,Other Contractual Services,UNRESTRICTED,"$5,940.48"
48,J.F. Drake State,102374,FOCUS ELECTRICAL SERVICE,May,13,2011,Materials and Supplies,PLANT FUNDS,"$5,319.67"
48,J.F. Drake State,102375,GED TESTING PROGRAM,May,13,2011,Materials and Supplies,UNRESTRICTED,$338.00
48,J.F. Drake State,102376,GLIDDEN PROFESSIONAL PAI,May,13,2011,Maintenance and Repairs,UNRESTRICTED,$58.01
48,J.F. Drake State,102377,INTERNATIONAL FUN SHOP,May,13,2011,Materials and Supplies,UNRESTRICTED,$71.05
48,J.F. Drake State,102378,KOORSEN PROTECTION SERVIC,May,13,2011,Maintenance and Repairs,ARMY GRANT,$736.00
48,J.F. Drake State,102379,KRISTI SHERRARD,May,13,2011,Advertising and Promotions,UNRESTRICTED,$240.00
48,J.F. Drake State,102380,THE LAMAR COMPANIES,May,13,2011,Advertising and Promotions,UNRESTRICTED,"$1,500.00"
48,J.F. Drake State,102381,LOWE'S,May,13,2011,Maintenance and Repairs,UNRESTRICTED,$621.34
48,J.F. Drake State,102381,LOWE'S,May,13,2011,Materials and Supplies,UNRESTRICTED,$720.66
48,J.F. Drake State,102382,LOWE'S,May,13,2011,Materials and Supplies,UNRESTRICTED,$175.50
48,J.F. Drake State,102384,MCCRARYS SUPPLY CORP,May,13,2011,Maintenance and Repairs,UNRESTRICTED,$258.42
48,J.F. Drake State,102385,MID CITY SUPPLY CO,May,13,2011,Materials and Supplies,UNRESTRICTED,$153.00
48,J.F. Drake State,102386,MORRIS GREENHOUSES,May,13,2011,Institutional Use,UNRESTRICTED,$100.00
48,J.F. Drake State,102387,OAKHALL INDUSTRIES,May,13,2011,Institutional Use,UNRESTRICTED,"$1,359.50"
48,J.F. Drake State,102388,PARKWAY SCRUBS,May,13,2011,Purchases for Resale,UNRESTRICTED,$105.78
48,J.F. Drake State,102391,"SIMS, PATRICIA G.",May,13,2011,Out-of-State Travel,ADULT ED,$299.76
48,J.F. Drake State,102393,TAMMY NOBLITT,May,13,2011,Other Contractual Services,UNRESTRICTED,$70.00
48,J.F. Drake State,102394,"THOMAS ELECTRIC, INC",May,13,2011,Materials and Supplies,ARMY GRANT,"$2,137.00"
48,J.F. Drake State,102395,VERIZON WIRELESS,May,13,2011,Communications,UNRESTRICTED,$943.92
48,J.F. Drake State,102396,WASTE MANAGEMENT OF NORTH,May,13,2011,Other Contractual Services,UNRESTRICTED,$714.87
48,J.F. Drake State,102397,"WHOLESALE TROPHIES, INC.",May,13,2011,Institutional Use,UNRESTRICTED,$61.50
48,J.F. Drake State,102398,WITTICHEN SUPPLY COMPANY,May,13,2011,Maintenance and Repairs,UNRESTRICTED,$14.10
48,J.F. Drake State,203603,BERNEY OFFICE SOLUTIONS,May,13,2011,Materials and Supplies,TITLE III,$109.08
48,J.F. Drake State,203604,CDW-G,May,13,2011,Materials and Supplies,TITLE III,$653.71
48,J.F. Drake State,203605,CLAITOR'S LAW BOOKS & PUB,May,13,2011,Books,TITLE III,$50.15
48,J.F. Drake State,203606,DR. THELMA SCOTT-SKILLMAN,May,13,2011,Memberships,TITLE III,$500.00
48,J.F. Drake State,203607,DR. MOHAMMED R. KARIM,May,13,2011,Other Contractual Services,NAT'L SCIENCE FOUNDATION,"$3,250.00"
48,J.F. Drake State,203608,MULLINS FIVE POINTS RENTA,May,13,2011,Materials and Supplies,ALLIED HEALTH,$74.82
48,J.F. Drake State,203609,"OFFICE DEPOT, INC.",May,13,2011,Materials and Supplies,TITLE III,"$1,870.01"
48,J.F. Drake State,203609,"OFFICE DEPOT, INC.",May,13,2011,Materials and Supplies,STUDENT SUPPORT SERVICES,$402.68
48,J.F. Drake State,203610,"OFFICE DEPOT, INC.",May,13,2011,Materials and Supplies,STUDENT SUPPORT SERVICES,$165.96
48,J.F. Drake State,203611,"OFFICE DEPOT, INC.",May,13,2011,Materials and Supplies,TITLE III,$173.16
48,J.F. Drake State,203612,"OFFICE DEPOT, INC.",May,13,2011,Materials and Supplies,TITLE III,$231.64
48,J.F. Drake State,203613,RAYTECH,May,13,2011,Materials and Supplies,PERKINS FUNDS,"$6,900.00"
48,J.F. Drake State,203614,SACSCOC,May,13,2011,Out-of-State Travel,TITLE III,"$3,750.00"
48,J.F. Drake State,203615,WALLCUR INC.,May,13,2011,Materials and Supplies,ALLIED HEALTH,$49.90
48,J.F. Drake State,203586,"BATTS, HAROLD",May,11,2011,In-State Travel,TITLE III,$564.19
48,J.F. Drake State,203587,APRIL CLEMENT,May,11,2011,In-State Travel,TITLE III,$346.00
48,J.F. Drake State,203588,MONIQUE COSBY,May,11,2011,In-State Travel,TITLE III,$225.00
48,J.F. Drake State,203589,HAMPTON CONTRACTING,May,11,2011,Alterations,ALLIED HEALTH,"$14,766.45"
48,J.F. Drake State,203590,"HENRY, KARL W. SR.",May,11,2011,Out-of-State Travel,NSF CARRYOVER,$71.22
48,J.F. Drake State,203591,INA WILSON,May,11,2011,Out-of-State Travel,TITLE III,$985.76
48,J.F. Drake State,203592,PAMELA A. KELSEY,May,11,2011,Out-of-State Travel,NAT'L SCIENCE FOUNDATION,$82.38
48,J.F. Drake State,203593,KRISHALON WILKERSON,May,11,2011,In-State Travel,NAT'L SCIENCE FOUNDATION,$186.19
48,J.F. Drake State,203594,"MCALPINE, HELEN",May,11,2011,In-State Travel,TITLE III,$150.00
48,J.F. Drake State,203595,PREMA A MONTEIRO,May,11,2011,In-State Travel,TITLE III,$67.42
48,J.F. Drake State,203596,"OFFICE DEPOT, INC.",May,11,2011,Materials and Supplies,TITLE III,$829.47
48,J.F. Drake State,203597,JENNIFER OLINGER,May,11,2011,In-State Travel,TITLE III,$348.53
48,J.F. Drake State,203598,"POPE, GWENDOLYN M.",May,11,2011,In-State Travel,TITLE III,$158.00
48,J.F. Drake State,203599,DR. JOHN REUTTER,May,11,2011,Out-of-State Travel,NAT'L SCIENCE FOUNDATION,$776.26
48,J.F. Drake State,203599,DR. JOHN REUTTER,May,11,2011,Out-of-State Travel,TITLE III,$575.12
48,J.F. Drake State,203600,DELORIS SMOTHERS,May,11,2011,In-State Travel,TITLE III,$276.08
48,J.F. Drake State,203601,"STEWART, VERLINDSEY B.",May,11,2011,In-State Travel,TITLE III,$264.08
48,J.F. Drake State,203602,"SUDEALL, MONICA",May,11,2011,In-State Travel,TITLE III,$225.00
48,J.F. Drake State,203565,"BATTS, HAROLD",May,10,2011,In-State Travel,TITLE III,$564.19
48,J.F. Drake State,203566,BERNEY OFFICE SOLUTIONS,May,10,2011,Materials and Supplies,TITLE III,$109.08
48,J.F. Drake State,203567,CDW-G,May,10,2011,Materials and Supplies,TITLE III,$653.71
48,J.F. Drake State,203568,APRIL CLEMENT,May,10,2011,In-State Travel,TITLE III,$346.00
48,J.F. Drake State,203569,MONIQUE COSBY,May,10,2011,In-State Travel,TITLE III,$225.00
48,J.F. Drake State,203570,HAMPTON CONTRACTING,May,10,2011,Alterations,ALLIED HEALTH,"$14,766.45"
48,J.F. Drake State,203571,INA WILSON,May,10,2011,Out-of-State Travel,TITLE III,$985.76
48,J.F. Drake State,203572,PAMELA A. KELSEY,May,10,2011,Out-of-State Travel,NAT'L SCIENCE FOUNDATION,$82.38
48,J.F. Drake State,203573,KRISHALON WILKERSON,May,10,2011,In-State Travel,NAT'L SCIENCE FOUNDATION,$186.19
48,J.F. Drake State,203574,"MCALPINE, HELEN",May,10,2011,In-State Travel,TITLE III,$150.00
48,J.F. Drake State,203575,PREMA A MONTEIRO,May,10,2011,In-State Travel,TITLE III,$67.42
48,J.F. Drake State,203576,MULLINS FIVE POINTS RENTA,May,10,2011,Materials and Supplies,ALLIED HEALTH,$74.82
48,J.F. Drake State,203577,"OFFICE DEPOT, INC.",May,10,2011,Materials and Supplies,STUDENT SUPPORT SERVICES,$343.65
48,J.F. Drake State,203577,"OFFICE DEPOT, INC.",May,10,2011,Materials and Supplies,TITLE III,"$2,274.81"
48,J.F. Drake State,203578,JENNIFER OLINGER,May,10,2011,In-State Travel,TITLE III,$348.53
48,J.F. Drake State,203579,"POPE, GWENDOLYN M.",May,10,2011,In-State Travel,TITLE III,$158.00
48,J.F. Drake State,203580,RAYTECH,May,10,2011,Materials and Supplies,PERKINS FUNDS,"$6,900.00"
48,J.F. Drake State,203581,DR. JOHN REUTTER,May,10,2011,Out-of-State Travel,NAT'L SCIENCE FOUNDATION,$776.26
48,J.F. Drake State,203581,DR. JOHN REUTTER,May,10,2011,Out-of-State Travel,TITLE III,$575.12
48,J.F. Drake State,203582,DELORIS SMOTHERS,May,10,2011,In-State Travel,TITLE III,$276.08
48,J.F. Drake State,203583,"STEWART, VERLINDSEY B.",May,10,2011,In-State Travel,TITLE III,$264.08
48,J.F. Drake State,203584,"SUDEALL, MONICA",May,10,2011,In-State Travel,TITLE III,$225.00
48,J.F. Drake State,203585,WALLCUR INC.,May,10,2011,Materials and Supplies,ALLIED HEALTH,$49.90
48,J.F. Drake State,5201121,AT&T,May,9,2011,Communications,UNRESTRICTED,"$4,730.94"
48,J.F. Drake State,5201123,COMCAST,May,9,2011,Communications,UNRESTRICTED,$94.78
48,J.F. Drake State,5201124,COOK'S PEST CONTROL,May,9,2011,Other Contractual Services,UNRESTRICTED,$386.00
48,J.F. Drake State,5201125,HUNTSVILLE UTILITIES,May,9,2011,Electricity,ARMY GRANT,"$3,017.19"
48,J.F. Drake State,5201125,HUNTSVILLE UTILITIES,May,9,2011,Gas and Heating Fuel,ARMY GRANT,$90.99
48,J.F. Drake State,5201125,HUNTSVILLE UTILITIES,May,9,2011,Gas and Heating Fuel,UNRESTRICTED,"$1,995.32"
48,J.F. Drake State,5201125,HUNTSVILLE UTILITIES,May,9,2011,Water and Sewer,UNRESTRICTED,"$2,460.08"
48,J.F. Drake State,5201125,HUNTSVILLE UTILITIES,May,9,2011,Electricity,UNRESTRICTED,"$16,849.78"
48,J.F. Drake State,5201126,WOW! BUSINESS,May,9,2011,Communications,UNRESTRICTED,"$1,097.72"
48,J.F. Drake State,5201127,PITNEY BOWES,May,9,2011,Postage,UNRESTRICTED,"$1,200.00"
48,J.F. Drake State,99201128,HUNTSVILLE UTILITIES,May,9,2011,Electricity,UNRESTRICTED,"$1,078.36"
48,J.F. Drake State,99201128,HUNTSVILLE UTILITIES,May,9,2011,Electricity,ARMY GRANT,"$2,483.72"
48,J.F. Drake State,99201128,HUNTSVILLE UTILITIES,May,9,2011,Gas and Heating Fuel,ARMY GRANT,$250.68
48,J.F. Drake State,99201129,WOW! BUSINESS,May,9,2011,Communications,UNRESTRICTED,$104.70
48,J.F. Drake State,301194,ROBBIE LEE AKINS,Apr,29,2011,Support Personnel Salaries - S,UNRESTRICTED,"$2,113.00"
48,J.F. Drake State,301195,BEN BATTLE,Apr,29,2011,Instructional Salaries - Regul,UNRESTRICTED,"$5,306.33"
48,J.F. Drake State,301196,PATRICE BIVINS,Apr,29,2011,Support Personnel Salaries - S,STUDENT SUPPORT SERVICES,"$1,889.83"
48,J.F. Drake State,301197,DEAVIANCE FOWLKS BLEVINS,Apr,29,2011,Instructional Salaries - Tempo,ALLIED HEALTH,$712.50
48,J.F. Drake State,301198,STEPHANIE JONES BOUNDS,Apr,29,2011,Instructional Salaries - Regul,UNRESTRICTED,"$3,535.00"
48,J.F. Drake State,301200,CHRISTINE H DAVIS,Apr,29,2011,Instructional Salaries - Regul,UNRESTRICTED,"$5,306.33"
48,J.F. Drake State,301201,MARLO DRAKE,Apr,29,2011,Support Personnel Salaries - S,ARRA STIMULUS FUNDS,"$2,365.69"
48,J.F. Drake State,301201,MARLO DRAKE,Apr,29,2011,Support Personnel Salaries - S,TITLE III,$788.56
48,J.F. Drake State,301202,VERNESSA M EDWARDS,Apr,29,2011,Instructional Salaries - Tempo,UNRESTRICTED,$562.50
48,J.F. Drake State,301203,WENDY F GANNON,Apr,29,2011,Other Professional Salaries -,ALLIED HEALTH,"$5,810.45"
48,J.F. Drake State,301204,ROBERT N GRISSIM,Apr,29,2011,Instructional Salaries - Tempo,UNRESTRICTED,"$1,125.00"
48,J.F. Drake State,301205,JORDAN DAVID GUERIN,Apr,29,2011,Hourly Wages,TITLE III,$750.00
48,J.F. Drake State,301206,TROY LEE HARAWAY,Apr,29,2011,Hourly Wages,TITLE III,$906.25
48,J.F. Drake State,301207,CHARMAINE A HOVIS,Apr,29,2011,Instructional Salaries - Tempo,UNRESTRICTED,$720.00
48,J.F. Drake State,301208,JUSTIN M KELLY,Apr,29,2011,Instructional Salaries - Tempo,UNRESTRICTED,$675.00
48,J.F. Drake State,301209,SUSAN KREULEN,Apr,29,2011,Instructional Salaries - Tempo,ADULT ED,"$1,050.00"
48,J.F. Drake State,301210,TELLUS LANGFORD,Apr,29,2011,Instructional Salaries - Tempo,UNRESTRICTED,$675.00
48,J.F. Drake State,301211,CHRISTEN LANE LEONARD,Apr,29,2011,Hourly Wages,TITLE III,$712.50
48,J.F. Drake State,301212,EDWIN EARL MARKS,Apr,29,2011,Hourly Wages,TITLE III,$575.00
48,J.F. Drake State,301213,RICHARD H NEWTON,Apr,29,2011,Hourly Wages,TITLE III,$875.00
48,J.F. Drake State,301214,DOROTHY J NOBLE,Apr,29,2011,Instructional Salaries - Tempo,UNRESTRICTED,"$1,800.00"
48,J.F. Drake State,301215,AMANDA R SIMPSON,Apr,29,2011,Support Personnel Salaries - S,UNRESTRICTED,"$2,112.00"
48,J.F. Drake State,301216,RUSSELL B THOMAS,Apr,29,2011,Hourly Wages,TITLE III,"$1,187.50"
48,J.F. Drake State,301217,MELINDA WEST,Apr,29,2011,Instructional Salaries - Tempo,UNRESTRICTED,"$1,080.00"
48,J.F. Drake State,301218,CALANDRA S WILLIAMS,Apr,29,2011,Instructional Salaries - Tempo,ADULT ED,$540.50
48,J.F. Drake State,301219,BRYAN T WRIGHTS,Apr,29,2011,Instructional Salaries - Tempo,UNRESTRICTED,"$1,012.50"
48,J.F. Drake State,90001384,LYSA AUGUSTIN,Apr,29,2011,Instructional Salaries - Tempo,ADULT ED,$748.00
48,J.F. Drake State,90001385,CAROLYN AVRITTE,Apr,29,2011,Instructional Salaries - Tempo,UNRESTRICTED,"$1,150.25"
48,J.F. Drake State,90001386,KANDICE D BARNES,Apr,29,2011,Hourly Wages,NAT'L SCIENCE FOUNDATION,$675.00
48,J.F. Drake State,90001387,NELSON E BARNES,Apr,29,2011,Instructional Salaries - Tempo,UNRESTRICTED,"$1,012.50"
48,J.F. Drake State,90001389,HAROLD E BATTS,Apr,29,2011,Other Professional Salaries -,UNRESTRICTED,"$8,649.00"
48,J.F. Drake State,90001391,ANGELA NICOLE BELL,Apr,29,2011,Instructional Salaries - Regul,UNRESTRICTED,"$5,372.00"
48,J.F. Drake State,90001393,JACQUELINE T BOOKER,Apr,29,2011,Support Personnel Salaries - S,NAT'L SCIENCE FOUNDATION,"$2,027.40"
48,J.F. Drake State,90001394,CHERYL BRAWLEY-KELLY,Apr,29,2011,Instructional Salaries - Tempo,UNRESTRICTED,"$1,890.00"
48,J.F. Drake State,90001395,LASHONDA D BROWN,Apr,29,2011,Instructional Salaries - Tempo,UNRESTRICTED,$337.50
48,J.F. Drake State,90001396,BRUCE A BULLUCK,Apr,29,2011,Other Professional Salaries -,UNRESTRICTED,"$5,833.33"
48,J.F. Drake State,90001397,LINDA BURRUSS,Apr,29,2011,Instructional Salaries - Tempo,UNRESTRICTED,$112.50
48,J.F. Drake State,90001398,KHALILAH BURTON,Apr,29,2011,Instructional Salaries - Regul,UNRESTRICTED,"$2,796.75"
48,J.F. Drake State,90001398,KHALILAH BURTON,Apr,29,2011,Instructional Salaries - Regul,NAT'L SCIENCE FOUNDATION,$932.25
48,J.F. Drake State,90001399,KEMBA CHAMBERS,Apr,29,2011,Other Professional Salaries -,UNRESTRICTED,"$7,360.42"
48,J.F. Drake State,90001400,KATIE E CHANCE,Apr,29,2011,Support Personnel Salaries - S,UNRESTRICTED,"$2,485.42"
48,J.F. Drake State,90001401,ROGER CHEN,Apr,29,2011,Instructional Salaries - Tempo,UNRESTRICTED,$112.50
48,J.F. Drake State,90001401,ROGER CHEN,Apr,29,2011,Hourly Wages,NAT'L SCIENCE FOUNDATION,$760.00
48,J.F. Drake State,90001402,ADAM CLARK,Apr,29,2011,Instructional Salaries - Regul,UNRESTRICTED,"$4,934.33"
48,J.F. Drake State,90001402,ADAM CLARK,Apr,29,2011,Instructional Salaries - Tempo,UNRESTRICTED,"$1,237.50"
48,J.F. Drake State,90001403,APRIL CLEMENT,Apr,29,2011,Other Professional Salaries -,TITLE III,"$4,000.00"
48,J.F. Drake State,90001404,MONIQUE C COSBY,Apr,29,2011,Support Personnel Salaries - S,ARRA STIMULUS FUNDS,"$3,228.75"
48,J.F. Drake State,90001405,DEIONE L CRUTCHER,Apr,29,2011,Support Personnel Salaries - S,ADULT ED,"$1,014.00"
48,J.F. Drake State,90001406,MATTIE D DAVIS,Apr,29,2011,Instructional Salaries - Regul,UNRESTRICTED,"$6,493.56"
48,J.F. Drake State,90001407,BRANDIE A DEL VALLE,Apr,29,2011,Instructional Salaries - Tempo,UNRESTRICTED,$630.00
48,J.F. Drake State,90001408,MARTHA W DUBEY,Apr,29,2011,Support Personnel Salaries - S,UNRESTRICTED,"$4,500.00"
48,J.F. Drake State,90001409,GABRIELE DUNSEITH,Apr,29,2011,Instructional Salaries - Tempo,UNRESTRICTED,$450.00
48,J.F. Drake State,90001410,CHRISTIANA A OPARA EGBUJO,Apr,29,2011,Instructional Salaries - Tempo,UNRESTRICTED,"$1,800.00"
48,J.F. Drake State,90001411,RONALD E EGSON,Apr,29,2011,Instructional Salaries - Tempo,UNRESTRICTED,$675.00
48,J.F. Drake State,90001412,ROSELINE C ELIKE,Apr,29,2011,Instructional Salaries - Tempo,UNRESTRICTED,$120.00
48,J.F. Drake State,90001413,GAIL E FISCH,Apr,29,2011,Instructional Salaries - Regul,ADULT ED,"$2,687.50"
48,J.F. Drake State,90001414,EDWIN T FORBES,Apr,29,2011,Instructional Salaries - Regul,UNRESTRICTED,"$3,951.42"
48,J.F. Drake State,90001414,EDWIN T FORBES,Apr,29,2011,Instructional Salaries - Tempo,UNRESTRICTED,$675.00
48,J.F. Drake State,90001415,HORACE L FRANKLIN JR,Apr,29,2011,Instructional Salaries - Regul,UNRESTRICTED,"$4,972.00"
48,J.F. Drake State,90001416,MATTIE B FREEMAN,Apr,29,2011,Instructional Salaries - Tempo,UNRESTRICTED,"$2,280.00"
48,J.F. Drake State,90001417,JAMEHA L GARDNER,Apr,29,2011,Instructional Salaries - Tempo,UNRESTRICTED,$337.50
48,J.F. Drake State,90001418,SYMMETRIS K GOHANNA,Apr,29,2011,Instructional Salaries - Regul,UNRESTRICTED,"$5,823.89"
48,J.F. Drake State,90001418,SYMMETRIS K GOHANNA,Apr,29,2011,Instructional Salaries - Tempo,UNRESTRICTED,$337.50
48,J.F. Drake State,90001419,LARDELL GOODLOE JR,Apr,29,2011,Instructional Salaries - Regul,UNRESTRICTED,"$5,009.89"
